Workbook

Sheet modList00 (hidden)

Sheet modHTTP (hidden)

Sheet modPreload (hidden)

Sheet modProvGeneralProc (hidden)

Sheet modReestr (hidden)

Sheet modList02 (hidden)

Sheet modfrmReestrSource (hidden)

Sheet Инструкция
AA1: (требуется обновление)
B2: ="Код шаблона: " & GetCode() -> Код шаблона: EXPERT.VSVO.ANALOG
B3: ="Версия " & Getversion() -> Версия 4.2
B5: Экспертное заключение об установлении тарифов в сфере холодного водоснабжения/водоотведения методом сравнения аналогов
E7: • На рабочем месте должен быть установлен MS Office 2007 SP3, 2010, 2013, 2016, 2019 с полной версией MS Excel • Макросы во время работы должны быть включены (!) • Для корректной работы отчёта требуется выбрать низкий уровень безопасности (В меню MS Excel 2007 и выше: Параметры Excel | Центр управления безопасностью | Параметры центра управления безопасностью | Параметры макросов | Включить все макросы | ОК)
E14: • Если Вы работаете в табличном процессоре MS Excel 2007 и выше, то можете использовать для работы формат XLSB (Двоичная книга Excel). При работе в формате XLSB заметно быстрее происходит сохранение файла, а также уменьшается размер по сравнению с форматами XLS и XLSM • Не рекомендуется снимать защиту с листов и каким-либо образом модифицировать защищаемые формулы и расчётные поля, в противном случае, отчёт будет отклонён системой • При сохранении не следует выбирать формат XLSX (Книга Excel), так как в указанном формате макросы, необходимые для работы отчёта, безвозвратно удаляются
E21: A | F21: - предназначенные для заполнения | O21: A | P21: - ссылки и автозаполняемые поля
E22: A | F22: - с формулами и константами | O22: A | P22: - обязательные для заполнения
E35: Если в предложенном Вам списке необходимая организация, МР/МО отсутствуют, обновите реестры с помощью кнопок В результате синхронизации с базой данных список организаций (МР/МО) будет заменён актуальным (механизм синхронизации требует подключения к сети Интернет и основан на использовании протокола HTTPS (TCP порт 443))
E46: • При сохранении шаблона осуществляется проверка корректности данных, в том числе на наличие значений в ячейках, обязательных для заполнения • Если какая-то ячейка не удовлетворяет условию проверки, на лист «Проверка» добавляется гиперссылка на данную ячейку и указывается причина ошибки • В колонке «Статус» для каждого сообщения возможны 2 значения: ошибка и предупреждение • При наличии сообщений со статусом «Ошибка» шаблон будет отклонён системой и не будет загружен в хранилище данных, сообщения со статусом «Предупреждение» носят информационный характер, и такой шаблон будет принят системой
E59: Обратиться в службу поддержки
E70: Понятия, используемые в Типовом экспертном заключении: "Факт, принятый органом регулирования" - экономически обоснованные фактические значения расходов на основании данных бухгалтерской и статистической отчетности регулируемой организации за соответствующий период, с учетом данных, полученных по результатам проведенных органом регулирования тарифов мероприятий по контролю, предусмотренных Постановлением Правительства РФ от 27.06.2013 N 543; "Факт по данным организации" - экономически обоснованные фактические значения расходов в соответствии с данными раздельного учета затрат по видам деятельности организаций, осуществляющих горячее водоснабжение, холодное водоснабжение и (или) водоотведение.
E93: При наличии подключения к Интернет, можно автоматически проверять наличие доступных обновлений. Выберите способ оповещения о наличии обновлений для отчёта:
F95: проверять доступные обновления (рекомендуется) | AA95: y
F97: никогда не проверять наличие обновлений (не рекомендуется)

Sheet Лог обновления (hidden)
A1: Дата/Время | B1: Сообщение | C1: Статус
A3: 2023-11-30T15:01:53 | B3: Проверка доступных обновлений... | C3: Информация
A4: 2023-11-30T15:01:55 | B4: Нет доступных обновлений для отчёта с кодом EXPERT.VSVO.ANALOG! | C4: Информация
A5: 2023-11-30T15:03:41 | B5: Проверка доступных обновлений... | C5: Информация
A6: 2023-12-01T08:51:13 | B6: Проверка доступных обновлений... | C6: Информация
A7: 2023-12-01T08:54:30 | B7: Проверка доступных обновлений... | C7: Информация

Sheet Пояснения (hidden)
L12: Понятия, используемые в Типовом экспертном заключении
L14: № п/п | M14: Используемое понятие | N14: Расшифровка (пояснения)
L15: 1 | M15: факт по данным организации | N15: фактические значения расходов в соответствии с данными раздельного учета затрат по видам деятельности организаций, осуществляющих горячее водоснабжение, холодное водоснабжение и (или) водоотведение
L16: 2 | M16: факт, принятый органом регулирования | N16: фактические значения расходов в соответствии с данными бухгалтерской и статистической отчетности регулируемой организации за соответствующий период, с учетом данных, полученных по результатам проведенных органом регулирования тарифов мероприятий по контролю, предусмотренных Постановление Правительства РФ от 27.06.2013 N 543 (ред. от 17.08.2020) "О государственном контроле (надзоре) в области регулируемых государством цен (тарифов).
L17: 3 | M17: Номер тарифа (идентификатор) | N17: Уникальный идентификатор тарифа в БД ЕИАС ФАС России. Формат: [Сфера].[Код региона].[Номер организации в реестре ФАС России].[Порядковый номер тарифа]

Sheet Общие сведения
E7: Субъект РФ | H7: Кемеровская область | I7: =INDEX(TEHSHEET!B1:B86,MATCH(region_name,REGION,0)) -> RU42
E8: Период регулирования | H8: 2024
E11: Экспертное заключение
E12: =IF(LEN(region_name)=0,"<наименование регионального органа регулирования>",VLOOKUP(region_name,OIV_LIST,2,FALSE)) -> Региональная энергетическая комиссия Кузбасса
E13: по результатам экспертизы предложения
D14: 26322895 | E14: ОАО «СКЭК» | O14: =region_name & " / " & god & " / " & org& " (ИНН:" &inn& ", КПП:" &kpp&")" -> Кемеровская область / 2024 / ОАО «СКЭК» (ИНН:4205153492, КПП:420501001)
E15: ="об установлении тарифов в сфере "&IF(AND(OR(hasVS,hasTranspVS),OR(hasVO,hasTranspVO)),"холодного водоснабжения / водоотведения",IF(OR(hasVS,hasTranspVS),"холодного водоснабжения",IF(OR(hasVO,hasTranspVO),"водоотведения","<не указано>")))&" методом сравнения аналогов" -> об установлении тарифов в сфере водоотведения методом сравнения аналогов
E16: ="на " & god & " год" -> на 2024 год
E18: 1. Сведения о регулируемой организации
E19: Полное наименование юридического лица (индивидуального предпринимателя) в соответствии с данными из ЕГРЮЛ/ЕГРИП | H19: ОТКРЫТОЕ АКЦИОНЕРНОЕ ОБЩЕСТВО "СЕВЕРО-КУЗБАССКАЯ ЭНЕРГЕТИЧЕСКАЯ КОМПАНИЯ"
E20: Сокращенное наименование юридического лица (индивидуального предпринимателя) в соответствии с данными из ЕГРЮЛ/ЕГРИП | H20: ОАО "СКЭК"
E21: Наименование (описание) обособленного подразделения
E22: ОГРН | H22: 1084205006600
E23: ИНН | H23: 4205153492
E24: КПП | H24: 420501001
E25: Код по ОКПО | J25: L2_7
E26: Организационно-правовая форма | H26: 1 22 67 | Непубличные акционерные общества | J26: L2_8
E27: Юридический адрес | H27: 650000, Россия, Кемеровская область, г. Кемерово, ул. Кузбасская, 6 | J27: L2_9
E28: Фактический адрес | H28: 650000, Россия, Кемеровская область, г. Кемерово, ул. Кузбасская, 6 | J28: L2_10
E29: Телефон организации | H29: (384-2)36-26-83 | J29: L2_11
E30: e-mail | H30: krupov@skek.ru | J30: L2_12
E31: ФИО руководителя | H31: Волков Дмитрий Иванович | J31: L2_13
E32: Должность руководителя | H32: Генеральный директор | J32: L2_14
E33: Официальный сайт регулируемой организации в сети "Интернет" | H33: www.skek.ru | J33: L2_15
E34: Государственное и (или) муниципальное участие в юридическом лице | G34: Наличие | H34: нет | J34: L3_1
G35: Сведения о доле, % | H35: 0 % | J35: L3_2
G36: Преобладающий тип собственности в юридическом лице | H36: частная | J36: L3_3
E37: Наличие раздельного учёта затрат по регулируемым видам деятельности в сфере холодного водоснабжения / водоотведения | H37: да | J37: L4_1
E38: Плательщик НДС | H38: да | J38: L4_2
E39: Является ли деятельность в сфере холодного водоснабжения / водоотведения профильным видом деятельности | H39: да | J39: L4_3
E41: Наименование гарантирующей организации (ГО) | H41: АО "СУЭК-Кузбасс" | J41: L9_1
E42: ИНН ГО | H42: 4212024138 | J42: L9_2
E43: КПП ГО | H43: 424950001 | J43: L9_3
E44: Реквизиты письма ГО о направлении данных для расчета | J44: L9_4
E45: ГО плательщик НДС | H45: да | J45: L9_5
E47: Наличие программы в области энергосбережения и повышения энергетической эффективности | H47: да | J47: L4_6
A48: HAS_DOC2 | E48: Наличие программы комплексного развития | H48: нет | J48: L4_7
E49: Реквизиты решения | F49: Наименование
F50: Вид
F51: Номер
F52: Дата принятия
F53: URL-ссылка на решение
A54: HAS_DOC2 | H54: Добавить
A55: HAS_DOC3 | E55: Наличие схемы холодного водоснабжения / водоотведения | H55: да | J55: L4_8
E56: Реквизиты решения | F56: Наименование | H56: Об актуализации схемы водоснабжения и водоотведения на территории Полысаевского городского округа
F57: Вид | H57: постановление
F58: Номер | H58: 1745
F59: Дата принятия | H59: 2016-11-14
F60: URL-ссылка на решение | H60: https://portal.eias.ru/Portal/DownloadPage.aspx?type=12&guid=62b49a45-e77f-4bb4-958a-5048d92dcfa6
A61: HAS_DOC3 | H61: Добавить
E62: Иные сведения | J62: L4_13
E64: Данные об ответственном исполнителе от организации | G64: ФИО исполнителя | H64: Жулега Светлана Михайловна
G65: Должность исполнителя
G66: Контактный телефон исполнителя | H66: 8 (384-2) 68-18-95
G67: e-mail исполнителя | H67: julega@skek.ru
E69: Перечень нормативных правовых актов, использованных в процессе проведения экспертизы предложения об установлении тарифов:
E70: 1. Гражданский кодекс Российской Федерации;
E71: 2. Налоговый кодекс Российской Федерации;
E72: 3. Федеральный закон от 17.08.1995 № 147-ФЗ "О естественных монополиях";
E73: 4. Федеральный закон от 26.07.2006 № 135-ФЗ "О защите конкуренции";
E74: 5. Федеральный закон от 07.12.2011 № 416-ФЗ "О водоснабжении и водоотведении";
E75: 6. Федеральный закон от 23.11.2009 № 261-ФЗ "Об энергосбережении и о повышении энергетической эффективности, и о внесении изменений в отдельные законодательные акты Российской Федерации";
E76: 7. Постановление Правительства Российской Федерации от 13.05.2013 № 406 "О государственном регулировании тарифов в сфере водоснабжения и водоотведения";
E77: 8. Постановление Правительства Российской Федерации от 29.07.2013 № 641 "Об инвестиционных и производственных программах организаций, осуществляющих деятельность в сфере водоснабжения и водоотведения";
E78: 9. Методические указания по расчету регулируемых тарифов в сфере водоснабжения и водоотведения, утвержденные приказом ФСТ России от 27.12.2013 № 1746-э;
E79: 10. Регламент установления регулируемых тарифов в сфере водоснабжения и водоотведения, утвержденный приказом ФСТ России от 16.07.2014 № 1154-э;
E80: 11. Приказ Минстроя России от 25.12.2014 № 22/пр "Об утверждении Порядка ведения раздельного учета затрат по видам деятельности организаций, осуществляющих горячее водоснабжение, холодное водоснабжение и (или) водоотведение, и единой системы классификации таких затрат";
E81: 12. Приказ Минстроя России от 04.04.2014 № 162/пр "Об утверждении перечня показателей надежности, качества, энергетической эффективности объектов централизованных систем горячего водоснабжения, холодного водоснабжения и (или) водоотведения, порядка и правил определения плановых значений и фактических значений таких показателей";
E82: 13. Иные нормативные правовые акты Российской Федерации.
G83: =COUNTIF(H89:H103,"Водоснабжение")-COUNTIF(H89:H103,"Транспортировка воды")>0 -> FALSE | H83: =COUNTIF(H89:H103,"Водоотведение")-COUNTIF(H89:H103,"Транспортировка сточных вод")>0 -> FALSE | I83: =COUNTIF(H89:H103,"Транспортировка воды")>0 -> FALSE | J83: =COUNTIF(H89:H103,"Транспортировка сточных вод")>0 -> TRUE
E84: 2. Информация о рассмотрении дела об установлении тарифов
E85: Реквизиты решения, которым установлены действующие тарифы | G85: Организация регулируется впервые | H85: нет | J85: L6_1
G86: Вид | H86: постановление | J86: L6_2
G87: Номер | H87: 442 | J87: L6_3
G88: Дата принятия | H88: 2022-11-24 | J88: L6_4
D89: 0 | E89: ="Заявление организации" -> Заявление организации
D90: 1 | G90: ="Тариф " & D90 -> Тариф 1 | H90: Водоотведение | I90: О | J90: =G90 & " (" &H90& ") - " &H92 & IF(H96="",""," (" & H96 & ")") -> Тариф 1 (Водоотведение) - тариф на транспортировку сточных вод | K90: =H95 -> без дифференциации | L90: =H92 -> тариф на транспортировку сточных вод | M90: =H96 -> 0 | N90: =H93 -> одноставочный
G91: Номер тарифа (идентификатор) | H91: ВО.42.26322895.0022
G92: Вид тарифа | H92: тариф на транспортировку сточных вод
G93: Тип тарифа | H93: одноставочный
G94: Вид(-ы) деятельности | H94: Транспортировка сточных вод
G95: =IF(H90="Водоотведение","Вид сточных вод","Вид воды") -> Вид сточных вод | H95: без дифференциации
G96: Дополнительный признак дифференциации тарифа
B97: =org_declaration="Заявление организации" -> TRUE | G97: Номер входящий | H97: 2413
B98: TRUE | G98: Дата регистрации | H98: 2023-04-27
B99: TRUE | G99: Дополнительные сведения
B100: TRUE | G100: Метод регулирования, предложенный организацией | H100: сравнения аналогов
B101: TRUE | G101: =IF(OR(H100="экономически обоснованных расходов (затрат)",H100="сравнения аналогов"),"Период регулирования","Первый год долгосрочного периода регулирования, предложенный организацией") -> Период регулирования
B102: TRUE | G102: Период долгосрочной индексации (количество лет)
G103: Добавить тариф
E104: Решение об открытии дела об установлении тарифов | G104: Номер дела (приказа) об установлении тарифа | H104: № 26-ВО | J104: L7_2
G105: ФИО уполномоченного по делу | H105: Белоусова Ирина Анатольевна | J105: L7_3
G106: Должность уполномоченного по делу | H106: Главный консультант | J106: L7_4
G107: Контактный телефон уполномоченного по делу | H107: 8 (384-2) 34-94-52 | J107: L7_5
G108: e-mail уполномоченного по делу | H108: belousova_ia.71@mail.ru | J108: L7_6
G109: Добавить строку
G110: Выбранный метод регулирования | H110: сравнения аналогов
G111: Период регулирования | H111: =god -> 2024
E112: Представленные документы и материалы достаточны и предложение регулируемой организации об установлении тарифов соответствует законодательству Российской Федерации | H112: да

Sheet Список территорий
M1: MR_NAME | N1: MO_NAME | O1: OKTMO
M11: =tpl_title -> Кемеровская область / 2024 / ОАО «СКЭК» (ИНН:4205153492, КПП:420501001)
L12: 3. Перечень муниципальных образований, на территории которых организация оказывает услуги холодного водоснабжения / водоотведения
L14: № п/п | M14: Муниципальный район | N14: Муниципальное образование | O14: ОКТМО | P14: Тип муниципального образования | Q14: Дополнительные сведения
A15: ='Общие сведения'!$D$90 -> 1 | L15: =INDEX('Общие сведения'!$J$89:$J$103,MATCH($A15,'Общие сведения'!$D$89:$D$103,0)) -> Тариф 1 (Водоотведение) - тариф на транспортировку сточных вод
A16: =A15 -> 1 | L16: 1 | M16: город Полысаево | N16: город Полысаево | O16: 32732000 | Q16: В границах ул. Полысаево, ул. Токарева
A17: =A15 -> 1 | M17: Добавить территорию

Sheet Список объектов
O1: =god -> 2024 | P1: =god -> 2024 | Q1: =god -> 2024
O2: Предложение организации | P2: Принято органом регулирования | Q2: Не определено
M11: =tpl_title -> Кемеровская область / 2024 / ОАО «СКЭК» (ИНН:4205153492, КПП:420501001)
L12: 4. Перечень объектов организации, с помощью которых организация оказывает услуги холодного водоснабжения/ водоотведения
L14: № п/п | M14: Наименование показателя | N14: Единица измерения | O14: =god & " год" -> 2024 год | P14: =god & " год" -> 2024 год | Q14: Комментарии
A15: t | O15: Предложение организации | P15: Принято органом регулирования
A16: ='Общие сведения'!$D$90 -> 1 | L16: =INDEX('Общие сведения'!$J$89:$J$103,MATCH($A16,'Общие сведения'!$D$89:$D$103,0)) -> Тариф 1 (Водоотведение) - тариф на транспортировку сточных вод
A17: =A16 -> 1 | B17: L1 | C17: L3 | D17: =M17&"::"&N17 -> Канализационные насосные станции::ед. | E17: ЭЭ | L17: 1 | M17: Канализационные насосные станции | N17: ед. | O17: 0 | P17: 0
A18: =A17 -> 1 | B18: L1 | C18: L3 | D18: =M18&"::"&N18 -> Канализационные сети::км | L18: 2 | M18: Канализационные сети | N18: км | O18: =SUMIFS('Условные метры'!$U$17:$U$22,'Условные метры'!$A$17:$A$22,$A18,'Условные метры'!$B$17:$B$22,"Итог") -> 1.053 | P18: =SUMIFS('Условные метры'!$W$17:$W$22,'Условные метры'!$A$17:$A$22,$A18,'Условные метры'!$B$17:$B$22,"Итог") -> 1.053
A19: =OFFSET(B19,-1,-1) -> 1 | B19: L1 | C19: L3 | D19: =M19&"::"&N19 -> Канализационные сети с реестровым номером 101031000847 (кадастровый номер 42:38:0101002:21176)::км | K19: О | L19: 3 | M19: Канализационные сети с реестровым номером 101031000847 (кадастровый номер 42:38:0101002:21176) | N19: км | O19: 1.053 | P19: 1.053
A20: =A18 -> 1 | B20: =A20&"pIns" -> 1pIns | M20: Добавить
A21: =A20 -> 1 | B21: L2 | C21: L3 | D21: =M21 -> Краткое описание технологического процесса | M21: Краткое описание технологического процесса | O21: Канализационные сети с реестровым номером 101031000847 (кадастровый номер 42:38:0101002:21176, № 60 в Перечне Иного имущества, передаваемого по указанному Концессионному соглашению), в отношении которых устанавливается тариф на транспортировку сточных вод, расположены в поселке шахты Полысаевская, удаленном от центральной части города Полысаево. Сети состоят из безнапорных трубопроводов канализации. Сбор канализационных сточных вод производится по разветвленной сети, начиная от выпусков из зданий по внутриквартальным сетям, которые собирают стоки в коллектор. По коллекторам стоки транспортируются на очистные сооружения АО «СУЭК-Кузбасс» (до 2020 г. - Шахтопроходческое управление, Обогатительная фабрика). Согласно данным Приложения № 2, суммарная протяженность канализационной сети составляет 1,053 км, величина первоначальной стоимости – 1500,20 тыс. руб. Согласно постановлению Администрации Полысаевского городского округа от 02.09.2013 № 1443 «Об определении гарантирующих организаций, осуществляющих водоснабжение и водоотведение на территории Полысаевского городского округа», АО «СУЭК-Кузбасс» наделено статусом гарантирующего поставщика услуг водоотведения на территории Полысаевского городского округа в границах улиц Техническая и Токарева.
L23: Правоустанавливающие и подтверждающие документы на объекты коммунальной инфраструктуры
M24: L1 | N24: L2 | O24: L3 | P24: L4_1 | Q24: L4_2 | R24: L5
A25: t | L25: № п/п | M25: Объект коммунальной инфраструктуры | N25: Основание эксплуатации | O25: Вид документа | P25: Номер документа | Q25: Дата документа | R25: Срок действия
D26: ВО | F26: сеть | G26: Сети водоотведения (транспортировка) | H26: г Полысаево / г. Полысаево / б/н | K26: О | L26: 1 | M26: =F26&" :: " &G26&" :: " & H26 -> сеть :: Сети водоотведения (транспортировка) :: г Полысаево / г. Полысаево / б/н | N26: концессионное соглашение | O26: соглашение | P26: 3 | Q26: 14.11.2019 | R26: До 31.12.2028
A27: t | M27: Добавить объект

Sheet Баланс
O1: =god-2 -> 2022 | P1: =god-2 -> 2022 | Q1: =god-2 -> 2022 | R1: =god-1 -> 2023 | S1: =god -> 2024 | T1: =god -> 2024
O2: =O16 -> Принято органом регулирования | P2: Факт по данным организации | Q2: Факт, принятый органом регулирования | R2: Принято органом регулирования | S2: Предложение организации | T2: Принято органом регулирования
O3: =O1&O2 -> 2022Принято органом регулирования | P3: =P1&P2 -> 2022Факт по данным организации | Q3: =Q1&Q2 -> 2022Факт, принятый органом регулирования | R3: =R1&R2 -> 2023Принято органом регулирования
M11: =tpl_title -> Кемеровская область / 2024 / ОАО «СКЭК» (ИНН:4205153492, КПП:420501001)
L12: 5. Баланс водоснабжения / водоотведения
G14: =hasTranspVS -> FALSE | L14: 5.1. Баланс водоснабжения (транспортировка воды)
G15: =hasTranspVS -> FALSE | L15: № п/п | M15: Наименование показателя | N15: Единица измерения | O15: =god-2 & " год" -> 2022 год | P15: =god-2 & " год" -> 2022 год | Q15: =god-2 & " год" -> 2022 год | R15: =god-1 & " год" -> 2023 год | S15: =god & " год" -> 2024 год | T15: =god & " год" -> 2024 год | U15: Ссылка на правовую норму (основание для принятия показателя в расчет тарифа)
G16: =hasTranspVS -> FALSE | O16: Принято органом регулирования | P16: Факт по данным организации | Q16: Факт, принятый органом регулирования | R16: Принято органом регулирования | S16: Предложение организации | T16: Принято органом регулирования
G17: =hasTranspVS -> FALSE
G18: =hasTranspVO -> TRUE | L18: 5.2. Баланс водоотведения (транспортировка сточных вод)
G19: =hasTranspVO -> TRUE | L19: № п/п | M19: Наименование показателя | N19: Единица измерения | O19: =god-2 & " год" -> 2022 год | P19: =god-2 & " год" -> 2022 год | Q19: =god-2 & " год" -> 2022 год | R19: =god-1 & " год" -> 2023 год | S19: =god & " год" -> 2024 год | T19: =god & " год" -> 2024 год | U19: Ссылка на правовую норму (основание для принятия показателя в расчет тарифа)
G20: =hasTranspVO -> TRUE | O20: Принято органом регулирования | P20: Факт по данным организации | Q20: Факт, принятый органом регулирования | R20: Принято органом регулирования | S20: Предложение организации | T20: Принято органом регулирования
A21: ='Общие сведения'!$D$90 -> 1 | L21: =INDEX('Общие сведения'!$J$89:$J$103,MATCH($A21,'Общие сведения'!$D$89:$D$103,0)) -> Тариф 1 (Водоотведение) - тариф на транспортировку сточных вод
A22: =A21 -> 1 | L22: 1 | M22: Вид стоков | O22: =INDEX('Общие сведения'!$K$89:$K$103,MATCH($A22,'Общие сведения'!$D$89:$D$103,0)) -> без дифференциации
A23: 1 | C23: L2 | L23: 2 | M23: Установленная мощность | N23: куб.м/час | P23: 400 | Q23: =P23/24 -> 16.66666667 | T23: =Q23 -> 16.66666667
A24: 1 | C24: L3 | L24: 3 | M24: Подключённая (фактическая) нагрузка | N24: куб.м/час | P24: 220 | Q24: =P24/24 -> 9.166666667 | T24: =Q24 -> 9.166666667
A25: 1 | C25: L4 | L25: 4 | M25: Объём транспортируемых сточных вод | N25: тыс.куб.м | O25: =O26+O28+O27 -> 38.54 | P25: 36.84995 | Q25: 36.84995 | R25: 37.38 | S25: 36.8 | T25: 36.8
A26: 1 | C26: L4_1 | L26: 4.1 | M26: на собственные очистные сооружения | N26: тыс.куб.м
A27: 1 | C27: L4_2 | L27: 4.2 | M27: другим организациям | N27: тыс.куб.м | O27: =O32 -> 38.54 | P27: =P32 -> 36.84995 | Q27: =P27 -> 36.84995 | R27: =R32 -> 37.38 | S27: =S32 -> 36.8 | T27: =T32 -> 36.8
A28: 1 | C28: L4_3 | L28: 4.3 | M28: Передано на другие территории, дифференцированные по тарифу | N28: тыс.куб.м
A29: 1 | B29: ПО | C29: L5 | L29: 5 | M29: Приём сточных вод, поступающих на очистные сооружения | N29: тыс.куб.м | O29: =O30+O31+O34 -> 38.54 | P29: 36.84995 | Q29: 36.84995 | R29: 37.38 | S29: 36.8 | T29: 36.8
A30: 1 | C30: L5_1 | L30: 5.1 | M30: от собственных нужд | N30: тыс.куб.м
A31: 1 | C31: L5_2 | L31: 5.2 | M31: от других канализаций или отдельных канализационных сетей | N31: тыс.куб.м | O31: =O32+O33 -> 38.54 | P31: 36.84995 | Q31: 36.84995 | R31: 37.38 | S31: 36.8 | T31: 36.8
A32: 1 | C32: L5_2_1 | L32: 5.2.1 | M32: по приборам учёта | N32: тыс.куб.м | O32: 38.54 | P32: =36849.95/1000 -> 36.84995 | Q32: =P32 -> 36.84995 | R32: 37.38 | S32: 36.8 | T32: 36.8 | U32: п. 8 Методических указаний ФСТ № 1746-э.
A33: 1 | C33: L5_2_2 | L33: 5.2.2 | M33: по нормативам | N33: тыс.куб.м
A34: 1 | C34: L5_3 | L34: 5.3 | M34: Получено от других территорий, дифференцированных по тарифу | N34: тыс.куб.м
G35: =hasTranspVO -> TRUE
L36: Комментарии и обоснования к разделу
L37: Фактические объемы реализации услуги транспортировки сточных вод за 2022 год определены на основании материалов, представленных в Деле № 60-ВО «Об установлении тарифов на услугу водоотведения на 2024-2028 годы, оказываемую АО «СУЭК-Кузбасс» (г. Полысаево)» (документы представлены на бумажном носителе), а именно:
K38: О | L38: 1) "Сведения по транспортировке по договору № 300 ( от 01.01.2020) со "СКЭК" за 2022 год" (Том № 6, стр. 115); 2) копии счетов-фактур за 2022 год - (Т. № 6, стр. 78 - 112).
K39: О | L39: Данные АО "СУЭК-Кузбасс" совпадают с данными, представленными ОАО "СКЭК" (см. "Отчеты с суммами по номенклатуре по оказанию услуг в разрезе номенклатурных номеров" за периоды выписки: с 01/01/2022 по 30/06/2022, с 01/07/2022 по 30/11/2022, с 01/12/2022 по 31/12/2022).
K40: О | L40: При расчете плановых объемов реализации на 2024 год использованы имеющиеся у регулятора данные о фактических объемах реализации за 2020, 2021 и 2022 г. (данные за 2019 г. не использованы в связи с тем, что регулируемая деятельность на данной территории осуществляется ОАО "СКЭК" начиная с 01.05.2019). Плановый показатель реализации на 2024 г., определенный в соответствии сФормулами (1), (1.1) Методических указаний, составил 35 235,73 м3.
K41: О | L41: По итогам проведенной экспертизы плановый объем реализации на 2024 г. принят на уровне величины, предложенной организацией.
L42: Добавить комментарий

Sheet Условные метры
U1: =god -> 2024 | W1: =god -> 2024
M4: L1 | N4: L2 | O4: L3 | P4: L4 | Q4: L5 | R4: L6 | S4: L7 | T4: L8 | U4: L9_1 | V4: L9_2 | W4: L9_3 | X4: L9_4 | Y4: L13 | Z4: L14
M11: =tpl_title -> Кемеровская область / 2024 / ОАО «СКЭК» (ИНН:4205153492, КПП:420501001)
L12: 6. Расчет условных метров водопроводной (канализационной) сети
L14: № п/п | M14: Размер диаметра трубопровода, мм | N14: Тип материала трубопровода | O14: Тип грунта | P14: Глубина грунта, м | Q14: Средняя стоимость строительства 1 км трубопровода, тыс. руб. | R14: Средняя стоимость строительства 1 км трубопровода диаметром 500 мм, тыс.руб. | S14: Источник информации по средней стоимости строительства | T14: Kd | U14: Протяженность | Y14: Ссылка на правовую норму (основание для принятия показателя в расчет тарифа) | Z14: Комментарии
U15: =god & " год" -> 2024 год
U16: Предложение организации | W16: Принято органом регулирования
U17: км | V17: усл.км | W17: км | X17: усл.км
A18: ='Общие сведения'!$D$90 -> 1 | B18: Итог | L18: =INDEX('Общие сведения'!$J$89:$J$103,MATCH($A18,'Общие сведения'!$D$89:$D$103,0)) -> Тариф 1 (Водоотведение) - тариф на транспортировку сточных вод | U18: =SUM(U19:U21) -> 1.053 | V18: =SUM(V19:V21) -> 0.571 | W18: =SUM(W19:W21) -> 1.053 | X18: =SUM(X19:X21) -> 0.5750630633
A19: =A18 -> 1 | L19: 0 | R19: =OFFSET(R19,-1,0) -> 0
A20: =OFFSET(A20,-1,0) -> 1 | K20: О | L20: 1 | M20: Ду от 150 до 200 мм (включительно) | N20: чугун | O20: мокрый | P20: 3 | Q20: 1481.44 | R20: 2712.67 | S20: Сметные расчёты организации | T20: =IF(R20=0,0,Q20/R20) -> 0.5461187686 | U20: 1.053 | V20: 0.571 | W20: 1.053 | X20: =W20*$T20 -> 0.5750630633 | Y20: П. 38 Методических указаний ФСТ № 1746-э.
A21: =A19 -> 1 | B21: =A21&"pIns" -> 1pIns | M21: Добавить
L23: Комментарии и обоснования к разделу
L24: Представленный гарантирующей организацией в целях тарифного регулирования на 2024 год расчет коэффициентов дифференциации стоимости строительства канализационных сетей (имеется в "Расчете размера удельных текущих расходов" на стр. 26 в Томе № 3 Дела № 60-ВО) не подкреплен сметными расчетами. Регулятором использованы данные имеющихся дел об установлении тарифов на транспортировку сточных вод на территории г. Полысаево на 2020, 2021, 2022 год, которые были ранее подтверждены сметными расчетами АО "СУЭК-Кузбасс".
K25: О
L26: Добавить комментарий

Sheet et_union (hidden)
A1: Титульный
A2: et_List00_tariff
D3: 1 | G3: ="Тариф " & D3 -> Тариф 1 | H3: Водоснабжение | I3: О | J3: =G3 & " (" &H3& ") - " &H5 & IF(H9="",""," (" & H9 & ")") -> Тариф 1 (Водоснабжение) - | K3: =H8 -> 0 | L3: =H5 -> 0 | M3: =H9 -> 0 | N3: =H6 -> одноставочный
G4: Номер тарифа (идентификатор)
G5: Вид тарифа
G6: Тип тарифа | H6: одноставочный
G7: Вид(-ы) деятельности
G8: =IF(H3="Водоотведение","Вид сточных вод","Вид воды") -> Вид воды
G9: Дополнительный признак дифференциации тарифа
B10: =org_declaration="Заявление организации" -> TRUE | G10: Номер входящий
B11: TRUE | G11: Дата регистрации
B12: TRUE | G12: Дополнительные сведения
B13: TRUE | G13: Метод регулирования, предложенный организацией
B14: TRUE | G14: =IF(OR(H13="экономически обоснованных расходов (затрат)",H13="сравнения аналогов"),"Период регулирования","Первый год долгосрочного периода регулирования, предложенный организацией") -> Первый год долгосрочного периода регулирования, предложенный организацией
B15: TRUE | G15: Период долгосрочной индексации (количество лет)
A16: et_List00_HAS_DOC2
A17: et_List00_HAS_DOC3
D18: О | E18: Реквизиты решения | F18: Наименование
F19: Вид
F20: Номер
F21: Дата принятия
F22: URL-ссылка на решение
A23: et_List00_fio
I24: О
A26: 1. Список территорий
A27: et_List01_tariff
A28: 1 | L28: =INDEX('Общие сведения'!$J$89:$J$103,MATCH($A28,'Общие сведения'!$D$89:$D$103,0)) -> Тариф 1 (Водоотведение) - тариф на транспортировку сточных вод
A29: =A28 -> 1 | L29: 1
A30: =A28 -> 1 | M30: Добавить территорию
A31: et_List01_mo
A32: =OFFSET(A32,-1,0) -> et_List01_mo | K32: О | L32: 1
A34: 2. Список объектов
A35: et_List02_tariff_vs
A36: 1 | L36: =INDEX('Общие сведения'!$J$89:$J$103,MATCH($A36,'Общие сведения'!$D$89:$D$103,0)) -> Тариф 1 (Водоотведение) - тариф на транспортировку сточных вод
A37: =A36 -> 1 | B37: L1 | C37: L3 | D37: =M37&"::"&N37 -> Подкачивающие насосные станции::ед. | E37: ЭЭ | L37: 1 | M37: Подкачивающие насосные станции | N37: ед.
A38: =A37 -> 1 | B38: L1 | C38: L3 | D38: =M38&"::"&N38 -> Водопроводные сети::км | L38: 2 | M38: Водопроводные сети | N38: км | O38: =SUMIFS('Условные метры'!$U$17:$U$22,'Условные метры'!$A$17:$A$22,$A38,'Условные метры'!$B$17:$B$22,"Итог") -> 1.053 | P38: =SUMIFS('Условные метры'!$W$17:$W$22,'Условные метры'!$A$17:$A$22,$A38,'Условные метры'!$B$17:$B$22,"Итог") -> 1.053
A39: =A38 -> 1 | B39: =A39&"pIns" -> 1pIns | M39: Добавить
A40: =A39 -> 1 | B40: L2 | C40: L3 | D40: =M40 -> Краткое описание технологического процесса | M40: Краткое описание технологического процесса
A41: et_List02_tariff_vo
A42: 1 | L42: =INDEX('Общие сведения'!$J$89:$J$103,MATCH($A42,'Общие сведения'!$D$89:$D$103,0)) -> Тариф 1 (Водоотведение) - тариф на транспортировку сточных вод
A43: =A42 -> 1 | B43: L1 | C43: L3 | D43: =M43&"::"&N43 -> Канализационные насосные станции::ед. | E43: ЭЭ | L43: 1 | M43: Канализационные насосные станции | N43: ед.
A44: =A43 -> 1 | B44: L1 | C44: L3 | D44: =M44&"::"&N44 -> Канализационные сети::км | L44: 2 | M44: Канализационные сети | N44: км | O44: =SUMIFS('Условные метры'!$U$17:$U$22,'Условные метры'!$A$17:$A$22,$A44,'Условные метры'!$B$17:$B$22,"Итог") -> 1.053 | P44: =SUMIFS('Условные метры'!$W$17:$W$22,'Условные метры'!$A$17:$A$22,$A44,'Условные метры'!$B$17:$B$22,"Итог") -> 1.053
A45: =A44 -> 1 | B45: =A45&"pIns" -> 1pIns | M45: Добавить
A46: =A45 -> 1 | B46: L2 | C46: L3 | D46: =M46 -> Краткое описание технологического процесса | M46: Краткое описание технологического процесса
A47: et_List02_obj
K48: О | M48: =F48&" :: " &G48&" :: " & H48 -> :: ::
A49: et_List02_1
A50: =OFFSET(B50,-1,-1) -> et_List02_1 | B50: L1 | C50: L3 | D50: =M50&"::"&N50 -> :: | K50: О | L50: 1
A52: 3. Баланс
A53: et_List03_tariff_vs_transp
A54: 1 | L54: =INDEX('Общие сведения'!$J$89:$J$103,MATCH($A54,'Общие сведения'!$D$89:$D$103,0)) -> Тариф 1 (Водоотведение) - тариф на транспортировку сточных вод
A55: =A54 -> 1 | L55: 1 | M55: Вид воды | O55: =INDEX('Общие сведения'!$K$89:$K$103,MATCH($A55,'Общие сведения'!$D$89:$D$103,0)) -> без дифференциации
A56: 1 | C56: L2 | L56: 2 | M56: Установленная мощность | N56: куб.м/час
A57: 1 | C57: L3 | L57: 3 | M57: Подключённая (фактическая) нагрузка | N57: куб.м/час
A58: 1 | C58: L4 | L58: 4 | M58: Объём воды, поступившей в сеть | N58: тыс.куб.м | O58: =O62+O64+O67+O70 -> 0 | P58: 0 | Q58: 0 | R58: 0 | S58: 0 | T58: 0
A59: 1 | C59: L4_1 | L59: 4.1 | M59: из собственных источников | N59: тыс.куб.м
A60: 1 | C60: L4_2 | L60: 4.2 | M60: от других операторов | N60: тыс.куб.м
A61: 1 | C61: L4_3 | L61: 4.3 | M61: получено от других территорий, дифференцированных по тарифу | N61: тыс.куб.м
A62: 1 | C62: L5 | L62: 5 | M62: Потери воды | N62: тыс.куб.м
A63: 1 | C63: L5_1 | L63: 5.1 | M63: Уровень потерь воды | N63: % | O63: =IF(O58=0,0,O62/O58*100) -> 0 | P63: 0 | Q63: 0 | R63: 0 | S63: 0 | T63: 0
A64: 1 | C64: L6 | L64: 6 | M64: Расход воды на нужды предприятия | N64: тыс.куб.м | O64: =O65+O66 -> 0 | P64: 0 | Q64: 0 | R64: 0 | S64: 0 | T64: 0
A65: 1 | C65: L6_1 | L65: 6.1 | M65: хозяйственные нужды | N65: тыс.куб.м
A66: 1 | C66: L6_2 | L66: 6.2 | M66: на основное производство | N66: тыс.куб.м
A67: 1 | B67: ПО | C67: L7 | L67: 7 | M67: Отпущено воды другим водопроводам | N67: тыс.куб.м | O67: =O68+O69 -> 0 | P67: 0 | Q67: 0 | R67: 0 | S67: 0 | T67: 0
A68: 1 | C68: L7_1 | L68: 7.1 | M68: по приборам учёта | N68: тыс.куб.м
A69: 1 | C69: L7_2 | L69: 7.2 | M69: по нормативам | N69: тыс.куб.м
A70: 1 | C70: L8 | L70: 8 | M70: Передано на другие территории, дифференцированные по тарифу | N70: тыс.куб.м
A71: et_List03_tariff_vo_transp
A72: 1 | L72: =INDEX('Общие сведения'!$J$89:$J$103,MATCH($A72,'Общие сведения'!$D$89:$D$103,0)) -> Тариф 1 (Водоотведение) - тариф на транспортировку сточных вод
A73: =A72 -> 1 | L73: 1 | M73: Вид стоков | O73: =INDEX('Общие сведения'!$K$89:$K$103,MATCH($A73,'Общие сведения'!$D$89:$D$103,0)) -> без дифференциации
A74: 1 | C74: L2 | L74: 2 | M74: Установленная мощность | N74: куб.м/час
A75: 1 | C75: L3 | L75: 3 | M75: Подключённая (фактическая) нагрузка | N75: куб.м/час
A76: 1 | C76: L4 | L76: 4 | M76: Объём транспортируемых сточных вод | N76: тыс.куб.м | O76: =O77+O79+O78 -> 0 | P76: 0 | Q76: 0 | R76: 0 | S76: 0 | T76: 0
A77: 1 | C77: L4_1 | L77: 4.1 | M77: на собственные очистные сооружения | N77: тыс.куб.м
A78: 1 | C78: L4_2 | L78: 4.2 | M78: другим организациям | N78: тыс.куб.м
A79: 1 | C79: L4_3 | L79: 4.3 | M79: Передано на другие территории, дифференцированные по тарифу | N79: тыс.куб.м
A80: 1 | B80: ПО | C80: L5 | L80: 5 | M80: Приём сточных вод, поступающих на очистные сооружения | N80: тыс.куб.м | O80: =O81+O82+O85 -> 0 | P80: 0 | Q80: 0 | R80: 0 | S80: 0 | T80: 0
A81: 1 | C81: L5_1 | L81: 5.1 | M81: от собственных нужд | N81: тыс.куб.м
A82: 1 | C82: L5_2 | L82: 5.2 | M82: от других канализаций или отдельных канализационных сетей | N82: тыс.куб.м | O82: =O83+O84 -> 0 | P82: 0 | Q82: 0 | R82: 0 | S82: 0 | T82: 0
A83: 1 | C83: L5_2_1 | L83: 5.2.1 | M83: по приборам учёта | N83: тыс.куб.м
A84: 1 | C84: L5_2_2 | L84: 5.2.2 | M84: по нормативам | N84: тыс.куб.м
A85: 1 | C85: L5_3 | L85: 5.3 | M85: Получено от других территорий, дифференцированных по тарифу | N85: тыс.куб.м
A87: 4. Условные метры
A88: et_List04_tariff
A89: 1 | B89: Итог | L89: =INDEX('Общие сведения'!$J$89:$J$103,MATCH($A89,'Общие сведения'!$D$89:$D$103,0)) -> Тариф 1 (Водоотведение) - тариф на транспортировку сточных вод | U89: =SUM(U90:U91) -> 0 | V89: =SUM(V90:V91) -> 0 | W89: =SUM(W90:W91) -> 0 | X89: =SUM(X90:X91) -> 0
A90: =A89 -> 1 | L90: 0 | R90: =OFFSET(R90,-1,0) -> 0
A91: =A90 -> 1 | B91: =A91&"pIns" -> 1pIns | M91: Добавить
A92: et_List04_1
A93: =OFFSET(A93,-1,0) -> et_List04_1 | K93: О | L93: 1 | T93: =IF(R93=0,0,Q93/R93) -> 0 | V93: =U93*$T93 -> 0 | X93: =W93*$T93 -> 0
A97: 5. Амортизация (аналог)
A98: et_List05_tariff
A99: 1 | L99: =INDEX('Общие сведения'!$J$89:$J$103,MATCH($A99,'Общие сведения'!$D$89:$D$103,0)) -> Тариф 1 (Водоотведение) - тариф на транспортировку сточных вод
A100: =A99 -> 1 | B100: L1 | L100: 1 | M100: Удельная величина амортизации | N100: тыс.руб./усл.км | O100: =IF(O102=0,0,O101/O102) -> 0 | P100: =IF(P102=0,0,P101/P102) -> 0
A101: 1 | B101: L1_1 | L101: 1.1 | M101: Годовая сумма амортизации | N101: тыс.руб.
A102: 1 | B102: L1_2 | L102: 1.2 | M102: Протяженность водопроводной / канализационной сети в сопоставимых величинах | N102: усл.км | O102: =SUMIFS('Условные метры'!$V$17:$V$22,'Условные метры'!$A$17:$A$22,$A102,'Условные метры'!$B$17:$B$22,"Итог") -> 0.571 | P102: =SUMIFS('Условные метры'!$X$17:$X$22,'Условные метры'!$A$17:$A$22,$A102,'Условные метры'!$B$17:$B$22,"Итог") -> 0.5750630633
A103: 1 | B103: L2 | L103: 2 | M103: Нормативный уровень расходов на амортизацию в расчете на протяженность сети | N103: тыс.руб./усл.км | O103: =MIN(O105,O100) -> 0 | P103: =MIN(P105,P100) -> 0
A104: 1 | B104: L3 | L104: 3 | M104: Удельные текущие расходы гарантирующей организации (ГО) (УТР) | N104: тыс.руб./усл.км | O104: =SUMIFS('Расчёт тарифа'!O$15:O$35,'Расчёт тарифа'!$A$15:$A$35,$A104,'Расчёт тарифа'!$B$15:$B$35,"УТР") -> 146.3766667 | P104: =SUMIFS('Расчёт тарифа'!P$15:P$35,'Расчёт тарифа'!$A$15:$A$35,$A104,'Расчёт тарифа'!$B$15:$B$35,"УТР") -> 148.9551147
A105: 1 | B105: L4 | L105: 4 | M105: 15% УТР | N105: тыс.руб./усл.км | O105: =O104*0.15 -> 21.9565 | P105: =P104*0.15 -> 22.3432672
A108: 6. ГО
A109: et_List06_tariff
A110: 1 | B110: Итог | L110: =INDEX('Общие сведения'!$J$89:$J$103,MATCH($A110,'Общие сведения'!$D$89:$D$103,0)) -> Тариф 1 (Водоотведение) - тариф на транспортировку сточных вод | O110: =O111+O161+O180 -> 0
A111: =A110 -> 1 | C111: L1 | L111: 1 | M111: Операционные расходы | N111: тыс.руб. | O111: =O112+O130+O138+O158 -> 0
A112: =A111 -> 1 | C112: L1_1 | L112: 1.1 | M112: Производственные расходы: | N112: тыс.руб. | O112: =O113+O114+O115+O120+O121+O122 -> 0
A113: 1 | C113: L1_1_1 | L113: 1.1.1 | M113: расходы на приобретение сырья и материалов и их хранение | N113: тыс.руб.
A114: 1 | C114: L1_1_2 | L114: 1.1.2 | M114: расходы на оплату регулируемыми организациями выполняемых сторонними организациями работ и (или) услуг | N114: тыс.руб.
A115: 1 | C115: L1_1_3 | L115: 1.1.3 | M115: расходы на оплату труда и страховые взносы на обязательное социальное страхование основного производственного персонала | N115: тыс.руб. | O115: =O116+O119 -> 0
A116: 1 | C116: L1_1_3_1 | L116: 1.1.3.1 | M116: расходы на оплату труда основного производственного персонала | N116: тыс.руб.
A117: 1 | C117: L1_1_3_1_1 | L117: 1.1.3.1.1 | M117: численность персонала основного производственного персонала | N117: чел
A118: 1 | C118: L1_1_3_1_2 | L118: 1.1.3.1.2 | M118: средняя заработная плата основного производственного персонала | N118: руб./мес
A119: 1 | C119: L1_1_3_2 | L119: 1.1.3.2 | M119: страховые взносы на обязательное социальное страхование основного производственного персонала | N119: тыс.руб.
A120: 1 | C120: L1_1_4 | L120: 1.1.4 | M120: расходы на уплату процентов по займам и кредитам | N120: тыс.руб.
A121: 1 | C121: L1_1_5 | L121: 1.1.5 | M121: общехозяйственные расходы | N121: тыс.руб.
A122: 1 | C122: L1_1_6 | L122: 1.1.6 | M122: прочие производственные расходы: | N122: тыс.руб. | O122: =SUM(O123:O129) -> 0
A123: 1 | C123: L1_1_6_1 | L123: 1.1.6.1 | M123: расходы на амортизацию автотранспорта | N123: тыс.руб.
A124: 1 | C124: L1_1_6_2 | L124: 1.1.6.2 | M124: расходы на обезвоживание, обезвреживание и захоронение осадка сточных вод | N124: тыс.руб.
A125: 1 | C125: L1_1_6_3 | L125: 1.1.6.3 | M125: расходы на приобретение (использование) вспомогательных материалов, запасных частей | N125: тыс.руб.
A126: 1 | C126: L1_1_6_4 | L126: 1.1.6.4 | M126: расходы на эксплуатацию, техническое обслуживание и ремонт автотранспорт | N126: тыс.руб.
A127: 1 | C127: L1_1_6_5 | L127: 1.1.6.5 | M127: расходы на осуществление производственного контроля качества воды и производственного контроля состава и свойств сточных вод расходы на осуществление производственного контроля качества воды и производственного контроля состава и свойств сточных вод | N127: тыс.руб.
A128: 1 | C128: L1_1_6_6 | L128: 1.1.6.6 | M128: расходы на аварийно-диспетчерское обслуживание | N128: тыс.руб.
A129: 1 | C129: L1_1_6_7 | L129: 1.1.6.7 | M129: иные расходы | N129: тыс.руб.
A130: 1 | C130: L1_2 | L130: 1.2 | M130: Ремонтные расходы | N130: тыс.руб. | O130: =O131+O132+O133 -> 0
A131: 1 | C131: L1_2_1 | L131: 1.2.1 | M131: расходы на текущий ремонт производственных фондов | N131: тыс.руб.
A132: 1 | C132: L1_2_2 | L132: 1.2.2 | M132: расходы на капитальный ремонт производственных фондов | N132: тыс.руб.
A133: 1 | C133: L1_2_3 | L133: 1.2.3 | M133: расходы на оплату труда и страховые взносы на обязательное социальное страхование ремонтного персонала | N133: тыс.руб. | O133: =O134+O137 -> 0
A134: 1 | C134: L1_2_3_1 | L134: 1.2.3.1 | M134: расходы на оплату труда ремонтного персонала | N134: тыс.руб.
A135: 1 | C135: L1_2_3_1_1 | L135: 1.2.3.1.1 | M135: численность персонала ремонтного персонала | N135: чел
A136: 1 | C136: L1_2_3_1_2 | L136: 1.2.3.1.2 | M136: средняя заработная плата ремонтного персонала | N136: руб./мес
A137: 1 | C137: L1_2_3_2 | L137: 1.2.3.2 | M137: страховые взносы на обязательное социальное страхование ремонтного персонала | N137: тыс.руб.
A138: 1 | C138: L1_3 | L138: 1.3 | M138: Административные расходы | N138: тыс.руб. | O138: =O139+O145+O150+O151+O152+O153+O154 -> 0
A139: 1 | C139: L1_3_1 | L139: 1.3.1 | M139: Расходы на оплату работ и услуг, выполняемых сторонними организациями | N139: тыс.руб. | O139: =SUM(O140:O144) -> 0
A140: 1 | C140: L1_3_1_1 | L140: 1.3.1.1 | M140: услуги связи и интернет | N140: тыс.руб.
A141: 1 | C141: L1_3_1_2 | L141: 1.3.1.2 | M141: юридические услуги | N141: тыс.руб.
A142: 1 | C142: L1_3_1_3 | L142: 1.3.1.3 | M142: аудиторские услуги | N142: тыс.руб.
A143: 1 | C143: L1_3_1_4 | L143: 1.3.1.4 | M143: консультационные услуги | N143: тыс.руб.
A144: 1 | C144: L1_3_1_5 | L144: 1.3.1.5 | M144: информационные услуги | N144: тыс.руб.
A145: 1 | C145: L1_3_2 | L145: 1.3.2 | M145: расходы на оплату труда и страховые взносы на обязательное социальное страхование административно-управленческого персонала | N145: тыс.руб. | O145: =O146+O149 -> 0
A146: 1 | C146: L1_3_2_1 | L146: 1.3.2.1 | M146: расходы на оплату труда административно-управленческого персонала | N146: тыс.руб.
A147: 1 | C147: L1_3_2_1_1 | L147: 1.3.2.1.1 | M147: численность административно-управленческого персонала | N147: чел
A148: 1 | C148: L1_3_2_1_2 | L148: 1.3.2.1.2 | M148: средняя заработная плата административно-управленческого персонала | N148: руб./мес
A149: 1 | C149: L1_3_2_2 | L149: 1.3.2.2 | M149: страховые взносы на обязательное социальное страхование административно-управленческого персонала | N149: тыс.руб.
A150: 1 | C150: L1_3_3 | L150: 1.3.3 | M150: Арендная плата, лизинговые платежи, не связанные с арендой (лизингом) основных производственных фондов | N150: тыс.руб.
A151: 1 | C151: L1_3_4 | L151: 1.3.4 | M151: Служебные командировки | N151: тыс.руб.
A152: 1 | C152: L1_3_5 | L152: 1.3.5 | M152: Обучение персонала | N152: тыс.руб.
A153: 1 | C153: L1_3_6 | L153: 1.3.6 | M153: Страхование производственных объектов | N153: тыс.руб.
A154: 1 | C154: L1_3_7 | L154: 1.3.7 | M154: Прочие административные расходы | N154: тыс.руб. | O154: =O155+O156+O157 -> 0
A155: 1 | C155: L1_3_7_1 | L155: 1.3.7.1 | M155: Расходы на амортизацию непроизводственных активов | N155: тыс.руб.
A156: 1 | C156: L1_3_7_2 | L156: 1.3.7.2 | M156: Расходы по охране объектов и территорий | N156: тыс.руб.
A157: 1 | C157: L1_3_7_3 | L157: 1.3.7.3 | M157: иные расходы | N157: тыс.руб.
A158: 1 | C158: L1_4 | L158: 1.4 | M158: Прочие операционные расходы | N158: тыс.руб. | O158: =SUM(O159:O160) -> 0
A159: 1 | L159: 1.4.0
A160: 1 | B160: =A160&"pIns1" -> 1pIns1 | C160: L1_4 | M160: Добавить
A161: 1 | C161: L2 | L161: 2 | M161: Неподконтрольные расходы | N161: тыс.руб. | O161: =O162+O170+O171+O172+O175+O176+O177 -> 0
A162: 1 | C162: L2_2 | L162: 2.2 | M162: Налоги и сборы | N162: тыс.руб. | O162: =SUM(O163:O169) -> 0
A163: 1 | C163: L2_2_1 | L163: 2.2.1 | M163: Налог на прибыль | N163: тыс.руб.
A164: 1 | C164: L2_2_2 | L164: 2.2.2 | M164: Налог на имущество организаций | N164: тыс.руб.
A165: 1 | C165: L2_2_3 | L165: 2.2.3 | M165: Земельный налог | N165: тыс.руб.
A166: 1 | C166: L2_2_4 | L166: 2.2.4 | M166: Водный налог | N166: тыс.руб.
A167: 1 | C167: L2_2_5 | L167: 2.2.5 | M167: Плата за пользование водным объектом | N167: тыс.руб.
A168: 1 | C168: L2_2_6 | L168: 2.2.6 | M168: Транспортный налог | N168: тыс.руб.
A169: 1 | C169: L2_2_8 | L169: 2.2.8 | M169: Прочие налоги и сборы | N169: тыс.руб.
A170: 1 | C170: L2_3 | L170: 2.3 | M170: Аренда земельных участков | N170: тыс.руб.
A171: 1 | C171: L2_6 | L171: 2.6 | M171: Расходы на обслуживание бесхозяйных сетей | N171: тыс.руб.
A172: 1 | C172: L2_8 | L172: 2.8 | M172: Займы и кредиты (для метода индексации) | N172: тыс.руб. | O172: =O173+O174 -> 0
A173: 1 | C173: L2_8_1 | L173: 2.8.1 | M173: Возврат займов и кредитов | N173: тыс.руб.
A174: 1 | C174: L2_8_2 | L174: 2.8.2 | M174: Проценты по займам и кредитам (на обслуживание займов и кредитов, привлекаемых на пополнение оборотных средств) | N174: тыс.руб.
A175: 1 | C175: L2_10 | L175: 2.10 | M175: Расходы на мероприятия по защите централизованных систем водоснабжения и (или) водоотведения и их отдельных объектов от угроз техногенного, природного характера и террористических актов, по предотвращению возникновения аварийных ситуаций, снижению риска и смягчению последствий чрезвычайных ситуаций (за исключением мероприятий, включенных в инвестиционную программу) | N175: тыс.руб.
A176: 1 | C176: L2_12 | L176: 2.12 | M176: Расходы на оплату услуг банков | N176: тыс.руб.
A177: =A176 -> 1 | C177: L2_13 | L177: 2.13 | M177: Прочие неподконтрольные расходы | N177: тыс.руб. | O177: =SUM(O178:O179) -> 0
A178: =A177 -> 1 | L178: 2.13.0
A179: =A178 -> 1 | B179: =A179&"pIns2" -> 1pIns2 | C179: L2_13 | M179: Добавить
A180: =A179 -> 1 | B180: ЭЭ | C180: L3 | L180: 3 | M180: Расходы на электрическую энергию | N180: тыс.руб.
A181: et_List06_1
A182: =OFFSET(A182,-1,0) -> et_List06_1 | D182: =M182 -> 0 | K182: О | N182: тыс.руб.
A184: 7. Расчёт тарифа
A185: et_List07_tariff
A186: 1 | L186: =INDEX('Общие сведения'!$J$89:$J$103,MATCH($A186,'Общие сведения'!$D$89:$D$103,0)) -> Тариф 1 (Водоотведение) - тариф на транспортировку сточных вод
A187: =A186 -> 1 | C187: L1 | L187: 1 | M187: Необходимая валовая выручка транзитной организации | N187: тыс.руб. | O187: =(O188+O196)*O194 -> 0 | P187: =(P188+P196)*P194 -> 0
A188: =A187 -> 1 | B188: УТР | C188: L2 | L188: 2 | M188: Удельные текущие расходы гарантирующей организации (ГО) (УТР) | N188: тыс.руб./усл.км | O188: =IF(O193=0,0,(O189-IF(SUMIFS('Список объектов'!$O$15:$O$22,'Список объектов'!$A$15:$A$22,$A188,'Список объектов'!$E$15:$E$22,"ЭЭ")>0,0,O190))/O193) -> 0 | P188: =IF(P193=0,0,(P189-IF(SUMIFS('Список объектов'!$P$15:$P$22,'Список объектов'!$A$15:$A$22,$A188,'Список объектов'!$E$15:$E$22,"ЭЭ")>0,0,P190))/P193) -> 0
A189: 1 | C189: L2_1 | L189: 2.1 | M189: текущие расходы ГО, отнесенные на вид деятельности по транспортировке воды/сточных вод | N189: тыс.руб. | P189: =SUMIFS(ГО!$O$15:$O$87,ГО!$A$15:$A$87,$A189,ГО!$B$15:$B$87,"Итог")*(1+P191/100)*(1+P192/100) -> 394
A190: 1 | C190: L2_1_1 | L190: 2.1.1 | M190: в т.ч. расходы на электрическую энергию* | N190: тыс.руб. | P190: =SUMIFS(ГО!$O$15:$O$87,ГО!$A$15:$A$87,$A190,ГО!$B$15:$B$87,"ЭЭ")*(1+P191/100)*(1+P192/100) -> 0
A191: 1 | C191: L2_2 | L191: 2.2 | M191: ="индекс потребительских цен на " & god-1 & " год" -> индекс потребительских цен на 2023 год | N191: %
A192: 1 | C192: L2_3 | L192: 2.3 | M192: ="индекс потребительских цен на " & god & " год" -> индекс потребительских цен на 2024 год | N192: %
A193: =A191 -> 1 | C193: L2_4 | L193: 2.4 | M193: протяженность сети ГО, определенная в сопоставимых величинах | N193: усл.км
A194: 1 | C194: L3 | L194: 3 | M194: Протяженность сети транзитной организации | N194: усл.км | O194: =SUMIFS('Условные метры'!$V$17:$V$22,'Условные метры'!$A$17:$A$22,$A194,'Условные метры'!$B$17:$B$22,"Итог") -> 0.571 | P194: =SUMIFS('Условные метры'!$X$17:$X$22,'Условные метры'!$A$17:$A$22,$A194,'Условные метры'!$B$17:$B$22,"Итог") -> 0.5750630633
A195: 1 | C195: L3_1 | L195: 3.1 | M195: фактическая протяженность сетей | N195: км | O195: =SUMIFS('Условные метры'!$U$17:$U$22,'Условные метры'!$A$17:$A$22,$A195,'Условные метры'!$B$17:$B$22,"Итог") -> 1.053 | P195: =SUMIFS('Условные метры'!$W$17:$W$22,'Условные метры'!$A$17:$A$22,$A195,'Условные метры'!$B$17:$B$22,"Итог") -> 1.053
A196: 1 | C196: L4 | L196: 4 | M196: Нормативный уровень расходов на амортизацию | N196: тыс.руб./усл.км | O196: =SUMIFS('Амортизация (аналог)'!O$15:O$23,'Амортизация (аналог)'!$A$15:$A$23,$A196,'Амортизация (аналог)'!$L$15:$L$23,"2") -> 0 | P196: =SUMIFS('Амортизация (аналог)'!P$15:P$23,'Амортизация (аналог)'!$A$15:$A$23,$A196,'Амортизация (аналог)'!$L$15:$L$23,"2") -> 0
A197: 1 | C197: L4_1 | L197: 4.1 | M197: норматив амортизации | N197: % | O197: =IF(O188=0,0,O196/O188*100) -> 0 | P197: =IF(P188=0,0,P196/P188*100) -> 0
A198: 1 | C198: L5 | L198: 5 | M198: Объем транспортируемой холодной воды / сточных вод | N198: тыс.м3 | O198: =SUMIFS(Баланс!S$16:S$35,Баланс!$A$16:$A$35,$A198,Баланс!$B$16:$B$35,"ПО") -> 36.8 | P198: =SUMIFS(Баланс!T$16:T$35,Баланс!$A$16:$A$35,$A198,Баланс!$B$16:$B$35,"ПО") -> 36.8
A199: 1 | C199: L5_1 | L199: 5.1 | M199: 1 полугодие | N199: тыс.м3
A200: 1 | C200: L5_2 | L200: 5.2 | M200: 2 полугодие | N200: тыс.м3 | O200: =O198-O199 -> 36.8 | P200: =P198-P199 -> 36.8
A201: 1 | C201: L6 | L201: 6 | M201: Среднегодовой тариф | N201: руб./куб.м | O201: =IF(O198=0,0,O187/O198) -> 0 | P201: =IF(P198=0,0,P187/P198) -> 0
A202: 1 | C202: L6_1_1 | L202: 6.1.1 | M202: Тариф с 1.01 по 30.06 | N202: руб./куб.м
A203: 1 | C203: L6_1_2 | L203: 6.1.2 | M203: Тариф с 1.07 по 31.12 | N203: руб./куб.м | O203: =IF(O200=0,0,(O187-O202*O199)/O200) -> 0 | P203: =IF(P200=0,0,(P187-P202*P199)/P200) -> 0
A204: 1 | C204: L6_2 | L204: 6.2 | M204: Темп рост тарифа | N204: % | O204: =IF(O202=0,0,O203/O202*100) -> 0 | P204: =IF(P202=0,0,P203/P202*100) -> 0

Sheet Амортизация (аналог)
O1: =god -> 2024 | P1: =god -> 2024
O2: =O15 -> Предложение организации | P2: =P15 -> Принято органом регулирования
M11: =tpl_title -> Кемеровская область / 2024 / ОАО «СКЭК» (ИНН:4205153492, КПП:420501001)
L12: 7. Нормативный уровень расходов на амортизацию основных средств и нематериальных активов, относимых к объектам централизованой системы водоснабжения / водоотведения, используемым для транспортировки воды / сточных вод
L14: № п/п | M14: Наименование | N14: Единица измерения | O14: =god & " год" -> 2024 год
O15: Предложение организации | P15: Принято органом регулирования
A16: ='Общие сведения'!$D$90 -> 1 | L16: =INDEX('Общие сведения'!$J$89:$J$103,MATCH($A16,'Общие сведения'!$D$89:$D$103,0)) -> Тариф 1 (Водоотведение) - тариф на транспортировку сточных вод
A17: =A16 -> 1 | B17: L1 | L17: 1 | M17: Удельная величина амортизации | N17: тыс.руб./усл.км | O17: =IF(O19=0,0,O18/O19) -> 0 | P17: =IF(P19=0,0,P18/P19) -> 0
A18: 1 | B18: L1_1 | L18: 1.1 | M18: Годовая сумма амортизации | N18: тыс.руб. | O18: 0 | P18: 0
A19: 1 | B19: L1_2 | L19: 1.2 | M19: Протяженность водопроводной / канализационной сети в сопоставимых величинах | N19: усл.км | O19: =SUMIFS('Условные метры'!$V$17:$V$22,'Условные метры'!$A$17:$A$22,$A19,'Условные метры'!$B$17:$B$22,"Итог") -> 0.571 | P19: =SUMIFS('Условные метры'!$X$17:$X$22,'Условные метры'!$A$17:$A$22,$A19,'Условные метры'!$B$17:$B$22,"Итог") -> 0.5750630633
A20: 1 | B20: L2 | L20: 2 | M20: Нормативный уровень расходов на амортизацию в расчете на протяженность сети | N20: тыс.руб./усл.км | O20: =MIN(O22,O17) -> 0 | P20: =MIN(P22,P17) -> 0
A21: 1 | B21: L3 | L21: 3 | M21: Удельные текущие расходы гарантирующей организации (ГО) (УТР) | N21: тыс.руб./усл.км | O21: =SUMIFS('Расчёт тарифа'!O$15:O$35,'Расчёт тарифа'!$A$15:$A$35,$A21,'Расчёт тарифа'!$B$15:$B$35,"УТР") -> 146.3766667 | P21: =SUMIFS('Расчёт тарифа'!P$15:P$35,'Расчёт тарифа'!$A$15:$A$35,$A21,'Расчёт тарифа'!$B$15:$B$35,"УТР") -> 148.9551147
A22: 1 | B22: L4 | L22: 4 | M22: 15% УТР | N22: тыс.руб./усл.км | O22: =O21*0.15 -> 21.9565 | P22: =P21*0.15 -> 22.3432672
L24: Комментарии и обоснования к разделу
L25: П. 36 Методических указаний ФСТ № 1746-э определяет, что нормативный уровень расходов на амортизацию основных средств и нематериальных активов, относимых к объектам централизованной системы (централизованных систем) водоснабжения и (или) водоотведения, используемым для транспортировки воды (сточных вод), определяется органом регулирования тарифов в соответствии с формулой (2.2) исходя из величины расходов регулируемой организации на амортизацию основных средств и нематериальных активов, определенной в соответствии с пунктом 28 настоящих Методических указаний, в расчете на километр протяженности водопроводной (канализационной) сети, определенной в сопоставимых величинах, в размере, не превышающем 15 процентов удельных текущих расходов гарантирующей организации.
K26: О | L26: Нормативный уровень расходов на амортизацию основных средств не учтен регулятором в составе необходимой валовой выручки на 2024 год, так как имущество, переданное по концессионному соглашению, учитывается на забалансовых счетах и в бухгалтерском учете амортизационные отчисления по такому имуществу не включаются в расходы по обычной деятельности.
L27: Добавить комментарий

Sheet ГО
O1: =god -> 2024
M11: =tpl_title -> Кемеровская область / 2024 / ОАО «СКЭК» (ИНН:4205153492, КПП:420501001)
L12: ="8. Калькуляция расходов гарантирующей организации (" & STATUS_GO & ")" -> 8. Калькуляция расходов гарантирующей организации (АО "СУЭК-Кузбасс")
L14: № п/п | M14: Наименование | N14: Единица измерения | O14: =god-2 & " год" -> 2022 год
O15: Величина, принятая органом регулирования
A16: ='Общие сведения'!$D$90 -> 1 | B16: Итог | L16: =INDEX('Общие сведения'!$J$89:$J$103,MATCH($A16,'Общие сведения'!$D$89:$D$103,0)) -> Тариф 1 (Водоотведение) - тариф на транспортировку сточных вод | O16: =O17+O67+O86 -> 394
A17: =A16 -> 1 | C17: L1 | L17: 1 | M17: Операционные расходы | N17: тыс.руб. | O17: =O18+O36+O44+O64 -> 394
A18: =A17 -> 1 | C18: L1_1 | L18: 1.1 | M18: Производственные расходы: | N18: тыс.руб. | O18: =O19+O20+O21+O26+O27+O28 -> 0
A19: 1 | C19: L1_1_1 | L19: 1.1.1 | M19: расходы на приобретение сырья и материалов и их хранение | N19: тыс.руб.
A20: 1 | C20: L1_1_2 | L20: 1.1.2 | M20: расходы на оплату регулируемыми организациями выполняемых сторонними организациями работ и (или) услуг | N20: тыс.руб.
A21: 1 | C21: L1_1_3 | L21: 1.1.3 | M21: расходы на оплату труда и страховые взносы на обязательное социальное страхование основного производственного персонала | N21: тыс.руб. | O21: =O22+O25 -> 0
A22: 1 | C22: L1_1_3_1 | L22: 1.1.3.1 | M22: расходы на оплату труда основного производственного персонала | N22: тыс.руб.
A23: 1 | C23: L1_1_3_1_1 | L23: 1.1.3.1.1 | M23: численность персонала основного производственного персонала | N23: чел
A24: 1 | C24: L1_1_3_1_2 | L24: 1.1.3.1.2 | M24: средняя заработная плата основного производственного персонала | N24: руб./мес
A25: 1 | C25: L1_1_3_2 | L25: 1.1.3.2 | M25: страховые взносы на обязательное социальное страхование основного производственного персонала | N25: тыс.руб.
A26: 1 | C26: L1_1_4 | L26: 1.1.4 | M26: расходы на уплату процентов по займам и кредитам | N26: тыс.руб.
A27: 1 | C27: L1_1_5 | L27: 1.1.5 | M27: общехозяйственные расходы | N27: тыс.руб.
A28: 1 | C28: L1_1_6 | L28: 1.1.6 | M28: прочие производственные расходы: | N28: тыс.руб. | O28: =SUM(O29:O35) -> 0
A29: 1 | C29: L1_1_6_1 | L29: 1.1.6.1 | M29: расходы на амортизацию автотранспорта | N29: тыс.руб.
A30: 1 | C30: L1_1_6_2 | L30: 1.1.6.2 | M30: расходы на обезвоживание, обезвреживание и захоронение осадка сточных вод | N30: тыс.руб.
A31: 1 | C31: L1_1_6_3 | L31: 1.1.6.3 | M31: расходы на приобретение (использование) вспомогательных материалов, запасных частей | N31: тыс.руб.
A32: 1 | C32: L1_1_6_4 | L32: 1.1.6.4 | M32: расходы на эксплуатацию, техническое обслуживание и ремонт автотранспорт | N32: тыс.руб.
A33: 1 | C33: L1_1_6_5 | L33: 1.1.6.5 | M33: расходы на осуществление производственного контроля качества воды и производственного контроля состава и свойств сточных вод расходы на осуществление производственного контроля качества воды и производственного контроля состава и свойств сточных вод | N33: тыс.руб.
A34: 1 | C34: L1_1_6_6 | L34: 1.1.6.6 | M34: расходы на аварийно-диспетчерское обслуживание | N34: тыс.руб.
A35: 1 | C35: L1_1_6_7 | L35: 1.1.6.7 | M35: иные расходы | N35: тыс.руб.
A36: 1 | C36: L1_2 | L36: 1.2 | M36: Ремонтные расходы | N36: тыс.руб. | O36: =O37+O38+O39 -> 394
A37: 1 | C37: L1_2_1 | L37: 1.2.1 | M37: расходы на текущий ремонт производственных фондов | N37: тыс.руб. | O37: 394
A38: 1 | C38: L1_2_2 | L38: 1.2.2 | M38: расходы на капитальный ремонт производственных фондов | N38: тыс.руб.
A39: 1 | C39: L1_2_3 | L39: 1.2.3 | M39: расходы на оплату труда и страховые взносы на обязательное социальное страхование ремонтного персонала | N39: тыс.руб. | O39: =O40+O43 -> 0
A40: 1 | C40: L1_2_3_1 | L40: 1.2.3.1 | M40: расходы на оплату труда ремонтного персонала | N40: тыс.руб.
A41: 1 | C41: L1_2_3_1_1 | L41: 1.2.3.1.1 | M41: численность персонала ремонтного персонала | N41: чел
A42: 1 | C42: L1_2_3_1_2 | L42: 1.2.3.1.2 | M42: средняя заработная плата ремонтного персонала | N42: руб./мес
A43: 1 | C43: L1_2_3_2 | L43: 1.2.3.2 | M43: страховые взносы на обязательное социальное страхование ремонтного персонала | N43: тыс.руб.
A44: 1 | C44: L1_3 | L44: 1.3 | M44: Административные расходы | N44: тыс.руб. | O44: =O45+O51+O56+O57+O58+O59+O60 -> 0
A45: 1 | C45: L1_3_1 | L45: 1.3.1 | M45: Расходы на оплату работ и услуг, выполняемых сторонними организациями | N45: тыс.руб. | O45: =SUM(O46:O50) -> 0
A46: 1 | C46: L1_3_1_1 | L46: 1.3.1.1 | M46: услуги связи и интернет | N46: тыс.руб.
A47: 1 | C47: L1_3_1_2 | L47: 1.3.1.2 | M47: юридические услуги | N47: тыс.руб.
A48: 1 | C48: L1_3_1_3 | L48: 1.3.1.3 | M48: аудиторские услуги | N48: тыс.руб.
A49: 1 | C49: L1_3_1_4 | L49: 1.3.1.4 | M49: консультационные услуги | N49: тыс.руб.
A50: 1 | C50: L1_3_1_5 | L50: 1.3.1.5 | M50: информационные услуги | N50: тыс.руб.
A51: 1 | C51: L1_3_2 | L51: 1.3.2 | M51: расходы на оплату труда и страховые взносы на обязательное социальное страхование административно-управленческого персонала | N51: тыс.руб. | O51: =O52+O55 -> 0
A52: 1 | C52: L1_3_2_1 | L52: 1.3.2.1 | M52: расходы на оплату труда административно-управленческого персонала | N52: тыс.руб.
A53: 1 | C53: L1_3_2_1_1 | L53: 1.3.2.1.1 | M53: численность административно-управленческого персонала | N53: чел
A54: 1 | C54: L1_3_2_1_2 | L54: 1.3.2.1.2 | M54: средняя заработная плата административно-управленческого персонала | N54: руб./мес
A55: 1 | C55: L1_3_2_2 | L55: 1.3.2.2 | M55: страховые взносы на обязательное социальное страхование административно-управленческого персонала | N55: тыс.руб.
A56: 1 | C56: L1_3_3 | L56: 1.3.3 | M56: Арендная плата, лизинговые платежи, не связанные с арендой (лизингом) основных производственных фондов | N56: тыс.руб.
A57: 1 | C57: L1_3_4 | L57: 1.3.4 | M57: Служебные командировки | N57: тыс.руб.
A58: 1 | C58: L1_3_5 | L58: 1.3.5 | M58: Обучение персонала | N58: тыс.руб.
A59: 1 | C59: L1_3_6 | L59: 1.3.6 | M59: Страхование производственных объектов | N59: тыс.руб.
A60: 1 | C60: L1_3_7 | L60: 1.3.7 | M60: Прочие административные расходы | N60: тыс.руб. | O60: =O61+O62+O63 -> 0
A61: 1 | C61: L1_3_7_1 | L61: 1.3.7.1 | M61: Расходы на амортизацию непроизводственных активов | N61: тыс.руб.
A62: 1 | C62: L1_3_7_2 | L62: 1.3.7.2 | M62: Расходы по охране объектов и территорий | N62: тыс.руб.
A63: 1 | C63: L1_3_7_3 | L63: 1.3.7.3 | M63: иные расходы | N63: тыс.руб.
A64: 1 | C64: L1_4 | L64: 1.4 | M64: Прочие операционные расходы | N64: тыс.руб. | O64: =SUM(O65:O66) -> 0
A65: 1 | L65: 1.4.0
A66: 1 | B66: =A66&"pIns1" -> 1pIns1 | C66: L1_4 | M66: Добавить
A67: 1 | C67: L2 | L67: 2 | M67: Неподконтрольные расходы | N67: тыс.руб. | O67: =O68+O76+O77+O78+O81+O82+O83 -> 0
A68: 1 | C68: L2_2 | L68: 2.2 | M68: Налоги и сборы | N68: тыс.руб. | O68: =SUM(O69:O75) -> 0
A69: 1 | C69: L2_2_1 | L69: 2.2.1 | M69: Налог на прибыль | N69: тыс.руб.
A70: 1 | C70: L2_2_2 | L70: 2.2.2 | M70: Налог на имущество организаций | N70: тыс.руб.
A71: 1 | C71: L2_2_3 | L71: 2.2.3 | M71: Земельный налог | N71: тыс.руб.
A72: 1 | C72: L2_2_4 | L72: 2.2.4 | M72: Водный налог | N72: тыс.руб.
A73: 1 | C73: L2_2_5 | L73: 2.2.5 | M73: Плата за пользование водным объектом | N73: тыс.руб.
A74: 1 | C74: L2_2_6 | L74: 2.2.6 | M74: Транспортный налог | N74: тыс.руб.
A75: 1 | C75: L2_2_8 | L75: 2.2.8 | M75: Прочие налоги и сборы | N75: тыс.руб.
A76: 1 | C76: L2_3 | L76: 2.3 | M76: Аренда земельных участков | N76: тыс.руб.
A77: 1 | C77: L2_6 | L77: 2.6 | M77: Расходы на обслуживание бесхозяйных сетей | N77: тыс.руб.
A78: 1 | C78: L2_8 | L78: 2.8 | M78: Займы и кредиты (для метода индексации) | N78: тыс.руб. | O78: =O79+O80 -> 0
A79: 1 | C79: L2_8_1 | L79: 2.8.1 | M79: Возврат займов и кредитов | N79: тыс.руб.
A80: 1 | C80: L2_8_2 | L80: 2.8.2 | M80: Проценты по займам и кредитам (на обслуживание займов и кредитов, привлекаемых на пополнение оборотных средств) | N80: тыс.руб.
A81: 1 | C81: L2_10 | L81: 2.10 | M81: Расходы на мероприятия по защите централизованных систем водоснабжения и (или) водоотведения и их отдельных объектов от угроз техногенного, природного характера и террористических актов, по предотвращению возникновения аварийных ситуаций, снижению риска и смягчению последствий чрезвычайных ситуаций (за исключением мероприятий, включенных в инвестиционную программу) | N81: тыс.руб.
A82: =A81 -> 1 | C82: L2_12 | L82: 2.12 | M82: Расходы на оплату услуг банков | N82: тыс.руб.
A83: =A82 -> 1 | C83: L2_13 | L83: 2.13 | M83: Прочие неподконтрольные расходы | N83: тыс.руб. | O83: =SUM(O84:O85) -> 0
A84: =A83 -> 1 | L84: 2.13.0
A85: =A84 -> 1 | B85: =A85&"pIns2" -> 1pIns2 | C85: L2_13 | M85: Добавить
A86: =A85 -> 1 | B86: ЭЭ | C86: L3 | L86: 3 | M86: Расходы на электрическую энергию | N86: тыс.руб.
L88: Комментарии и обоснования к разделу
L89: Текущие расходы гарантирующей организации на транспортировку воды (сточных вод) по соответствующей централизованной системе водоснабжения и (или) водоотведения определяются согласно п. 37, с учетом положений главы VI.I Методических указаний ФСТ № 1746-э.
K90: О | L90: Расчет текущих расходов гарантирующей организации представлен в Деле № 60-ВО «Об установлении тарифов на услугу водоотведения на 2024-2028 годы, оказываемую АО «СУЭК-Кузбасс» (г. Полысаево)» (документы представлены на бумажном носителе, см. "Расчет размера удельных текущих расходов" на стр. 26 в Томе № 3 ).
K91: О | L91: В связи с отсутствием у гарантирующей организации (АО «СУЭК-Кузбасс») штатного персонала, обслуживающего сети водоотведения, а также отсутствием раздельного учета затрат и недостаточным обоснованием величин косвенных (прочих производственных и административных) расходов, затраты на обслуживание сетей приняты в размере фактических расходов по регулируемому виду деятельности "Водоотведение" за 2022 год по статье "Ремонтные расходы" (Текущий ремонт").
L92: Добавить комментарий

Sheet Расчёт тарифа
O1: =god -> 2024 | P1: =god -> 2024
O2: =O15 -> Предложение организации | P2: =P15 -> Принято органом регулирования
M11: =tpl_title -> Кемеровская область / 2024 / ОАО «СКЭК» (ИНН:4205153492, КПП:420501001)
L12: 9. Расчет тарифа на транспортировку холодной воды / сточных вод методом сравнения аналогов
L14: № п/п | M14: Наименование | N14: Единица измерения | O14: =god & " год" -> 2024 год
O15: Предложение организации | P15: Принято органом регулирования
A16: ='Общие сведения'!$D$90 -> 1 | L16: =INDEX('Общие сведения'!$J$89:$J$103,MATCH($A16,'Общие сведения'!$D$89:$D$103,0)) -> Тариф 1 (Водоотведение) - тариф на транспортировку сточных вод
A17: =A16 -> 1 | C17: L1 | L17: 1 | M17: Необходимая валовая выручка транзитной организации | N17: тыс.руб. | O17: =(O18+O26)*O24 -> 83.58107667 | P17: =(P18+P26)*P24 -> 85.65858454
A18: =A17 -> 1 | B18: УТР | C18: L2 | L18: 2 | M18: Удельные текущие расходы гарантирующей организации (ГО) (УТР) | N18: тыс.руб./усл.км | O18: =IF(O23=0,0,(O19-IF(SUMIFS('Список объектов'!$O$15:$O$22,'Список объектов'!$A$15:$A$22,$A18,'Список объектов'!$E$15:$E$22,"ЭЭ")>0,0,O20))/O23) -> 146.3766667 | P18: =IF(P23=0,0,(P19-IF(SUMIFS('Список объектов'!$P$15:$P$22,'Список объектов'!$A$15:$A$22,$A18,'Список объектов'!$E$15:$E$22,"ЭЭ")>0,0,P20))/P23) -> 148.9551147
A19: 1 | C19: L2_1 | L19: 2.1 | M19: текущие расходы ГО, отнесенные на вид деятельности по транспортировке воды/сточных вод | N19: тыс.руб. | O19: 439.13 | P19: =SUMIFS(ГО!$O$15:$O$87,ГО!$A$15:$A$87,$A19,ГО!$B$15:$B$87,"Итог")*(1+P21/100)*(1+P22/100) -> 446.865344
A20: 1 | C20: L2_1_1 | L20: 2.1.1 | M20: в т.ч. расходы на электрическую энергию* | N20: тыс.руб. | O20: 0 | P20: =SUMIFS(ГО!$O$15:$O$87,ГО!$A$15:$A$87,$A20,ГО!$B$15:$B$87,"ЭЭ")*(1+P21/100)*(1+P22/100) -> 0
A21: 1 | C21: L2_2 | L21: 2.2 | M21: ="индекс потребительских цен на " & god-1 & " год" -> индекс потребительских цен на 2023 год | N21: % | O21: 6 | P21: 5.8
A22: 1 | C22: L2_3 | L22: 2.3 | M22: ="индекс потребительских цен на " & god & " год" -> индекс потребительских цен на 2024 год | N22: % | O22: 4.7 | P22: 7.2
A23: =A21 -> 1 | C23: L2_4 | L23: 2.4 | M23: протяженность сети ГО, определенная в сопоставимых величинах | N23: усл.км | O23: 3 | P23: 3
A24: 1 | C24: L3 | L24: 3 | M24: Протяженность сети транзитной организации | N24: усл.км | O24: =SUMIFS('Условные метры'!$V$17:$V$22,'Условные метры'!$A$17:$A$22,$A24,'Условные метры'!$B$17:$B$22,"Итог") -> 0.571 | P24: =SUMIFS('Условные метры'!$X$17:$X$22,'Условные метры'!$A$17:$A$22,$A24,'Условные метры'!$B$17:$B$22,"Итог") -> 0.5750630633
A25: 1 | C25: L3_1 | L25: 3.1 | M25: фактическая протяженность сетей | N25: км | O25: =SUMIFS('Условные метры'!$U$17:$U$22,'Условные метры'!$A$17:$A$22,$A25,'Условные метры'!$B$17:$B$22,"Итог") -> 1.053 | P25: =SUMIFS('Условные метры'!$W$17:$W$22,'Условные метры'!$A$17:$A$22,$A25,'Условные метры'!$B$17:$B$22,"Итог") -> 1.053
A26: 1 | C26: L4 | L26: 4 | M26: Нормативный уровень расходов на амортизацию | N26: тыс.руб./усл.км | O26: =SUMIFS('Амортизация (аналог)'!O$15:O$23,'Амортизация (аналог)'!$A$15:$A$23,$A26,'Амортизация (аналог)'!$L$15:$L$23,"2") -> 0 | P26: =SUMIFS('Амортизация (аналог)'!P$15:P$23,'Амортизация (аналог)'!$A$15:$A$23,$A26,'Амортизация (аналог)'!$L$15:$L$23,"2") -> 0
A27: 1 | C27: L4_1 | L27: 4.1 | M27: норматив амортизации | N27: % | O27: =IF(O18=0,0,O26/O18*100) -> 0 | P27: =IF(P18=0,0,P26/P18*100) -> 0
A28: 1 | C28: L5 | L28: 5 | M28: Объем транспортируемой холодной воды / сточных вод | N28: тыс.м3 | O28: =SUMIFS(Баланс!S$16:S$35,Баланс!$A$16:$A$35,$A28,Баланс!$B$16:$B$35,"ПО") -> 36.8 | P28: =SUMIFS(Баланс!T$16:T$35,Баланс!$A$16:$A$35,$A28,Баланс!$B$16:$B$35,"ПО") -> 36.8
A29: 1 | C29: L5_1 | L29: 5.1 | M29: 1 полугодие | N29: тыс.м3 | O29: 18.4 | P29: 18.4
A30: 1 | C30: L5_2 | L30: 5.2 | M30: 2 полугодие | N30: тыс.м3 | O30: =O28-O29 -> 18.4 | P30: =P28-P29 -> 18.4
A31: 1 | C31: L6 | L31: 6 | M31: Среднегодовой тариф | N31: руб./куб.м | O31: =IF(O28=0,0,O17/O28) -> 2.271224909 | P31: =IF(P28=0,0,P17/P28) -> 2.327678928
A32: 1 | C32: L6_1_1 | L32: 6.1.1 | M32: Тариф с 1.01 по 30.06 | N32: руб./куб.м | O32: 2.27 | P32: 2.15
A33: 1 | C33: L6_1_2 | L33: 6.1.2 | M33: Тариф с 1.07 по 31.12 | N33: руб./куб.м | O33: =IF(O30=0,0,(O17-O32*O29)/O30) -> 2.272449819 | P33: 2.5
A34: 1 | C34: L6_2 | L34: 6.2 | M34: Темп рост тарифа | N34: % | O34: =IF(O32=0,0,O33/O32*100) -> 100.1079215 | P34: =IF(P32=0,0,P33/P32*100) -> 116.2790698
L36: * - не учитываются в текущих расходах ГО в случае, если ТО не владеет на законных основаниях насосными станциями, канализационными насосными станциями, насосным оборудованием, иным оборудованием, потребляющим электрическую энергию, затрачиваемую в технологическом процессе транспортировки воды и (или) транспортировки сточных вод
L38: Комментарии и обоснования к разделу
L39: П. 35 Методических указаний ФСТ № 176-э: При установлении тарифов с применением метода сравнения аналогов величина необходимой валовой выручки регулируемой организации на очередной период регулирования рассчитывается по формулам (2), (2.1), (2.2).
K40: О | L40: Индексы потребительских цен (ИПЦ) на 2023 и 2024 годы определены в соответствии с основными параметрами базового варианта "Проноза социально-экономического развития Российской Федерации на 2024 год и на плановый период 2025 и 2026 годов", опубликованному на сайте Минэкономразвития России 22.09.2023.
L41: Добавить комментарий

Sheet TEHSHEET (hidden)
A1: Алтайский край | B1: RU22 | C1: Алтайский край | G1: YES_NO | M1: DNS | Q1: YEAR_LIST | R1: MONTH_LIST | S1: period_list | T1: sphere_list | U1: tariff_type_list | V1: COLDVSNA_VTOV | W1: COLDVSNA_VTARIFF | X1: osn_expl_list | Y1: VOLTAGE_LEVEL_list | Z1: VOLTAGE_LEVEL2_list | AA1: ist_info_build_list | AB1: diametr_list | AC1: material_list | AD1: grunt_list | AE1: glubina_list
A2: Амурская область | B2: RU28 | C2: Амурская область | G2: да | M2: https://eias.ru | Q2: 2012 | R2: Январь | S2: 3 | T2: Водоснабжение | U2: одноставочный | V2: питьевая вода | W2: тариф на питьевую воду | X2: аренда | Y2: Без разбивки | Z2: Без разбивки | AA2: Утверждённые укрупнённые НЦС | AB2: 100 | AC2: чугун | AD2: сухой | AE2: 1
A3: Архангельская область | B3: RU29 | C3: Архангельская область | G3: нет | Q3: 2013 | R3: Февраль | S3: 4 | T3: Водоотведение | U3: двухставочный | V3: техническая вода | W3: тариф на техническую воду | X3: безвозмездное пользование | Y3: ВН1 | Z3: ВН1 | AA3: Сметные расчёты организации | AB3: 110 | AC3: сталь | AD3: мокрый | AE3: 2
A4: Астраханская область | B4: RU30 | C4: Астраханская область | M4: NDS | Q4: 2014 | R4: Март | S4: 5 | V4: горячая вода | X4: концессионное соглашение | Y4: ВН | Z4: ВН | AB4: 125 | AC4: железобетон | AE4: 3
A5: Белгородская область | B5: RU31 | C5: Белгородская область | G5: STATE_SHARE | M5: 1.2 | Q5: 2015 | R5: Апрель | S5: 6 | W5: VOTV_VTARIFF | X5: оперативное управление | Y5: СН1 | Z5: СН1 | AB5: 150 | AC5: полиэтилен | AE5: 4
A6: Брянская область | B6: RU32 | C6: Брянская область | G6: VALUABLE_STATE_SHARE | Q6: 2016 | R6: Май | S6: 7 | V6: VOTV_VTOV | W6: тариф на водоотведение | X6: собственность | Y6: СН2 | Z6: СН2 | AB6: 160 | AE6: 5
A7: Владимирская область | B7: RU33 | C7: Владимирская область | G7: менее 50 % | M7: PERIOD | Q7: 2017 | R7: Июнь | S7: 8 | V7: без дифференциации | X7: хозяйственное ведение | Y7: НН | Z7: НН | AB7: 200
A8: Волгоградская область | B8: RU34 | C8: Волгоградская область | G8: 50 % и более | M8: 2021 | Q8: 2018 | R8: Июль | S8: 9 | V8: жидкие бытовые отходы | X8: договор хранения | Z8: Генерация напряжения | AB8: 250
A9: Вологодская область | B9: RU35 | C9: Вологодская область | G9: 100 % | Q9: 2019 | R9: Август | S9: 10 | V9: поверхностные сточные воды | X9: договор эксплуатации | AB9: 300
A10: Воронежская область | B10: RU36 | C10: Воронежская область | M10: Организация | Q10: 2020 | R10: Сентябрь | V10: хозяйственно-бытовые сточные воды | X10: договор обслуживания | AB10: 315
A11: г. Москва | B11: RU77 | C11: Москва | G11: OWNERSHIP_TYPE | M11: ="01.01." & PERIOD -> 01.01.2021 | Q11: 2021 | R11: Октябрь | V11: сточные воды (нормативы) | X11: бесхозяйный объект | AB11: 350
A12: г. Байконур | B12: RU00 | G12: NONPRIVATE_OWNERSHIP_TYPE | M12: ="31.12." & PERIOD -> 31.12.2021 | Q12: 2022 | R12: Ноябрь | V12: сточные воды (иные) | X12: договор инвестирования | AB12: 355
A13: г. Санкт-Петербург | B13: RU78 | C13: Cанкт-Петербург | G13: федеральная | Q13: 2023 | R13: Декабрь | X13: доверительное управление | AB13: 400
A14: г. Севастополь | B14: RU92 | C14: Севастополь | G14: субъект РФ | M14: Виды деятельности | Q14: 2024 | X14: субаренда | AB14: 450
A15: Еврейская автономная область | B15: RU79 | C15: Еврейская автономная область | G15: муниципальная | M15: ="01.01." & PERIOD -> 01.01.2021 | Q15: 2025 | AB15: 500
A16: Забайкальский край | B16: RU75 | C16: Забайкальский край | G16: частная | M16: ="31.12." & PERIOD -> 31.12.2021 | Q16: 2026 | X16: support_docs_list | AB16: 600
A17: Ивановская область | B17: RU37 | C17: Ивановская область | Q17: 2027 | X17: договор | AB17: 630
A18: Иркутская область | B18: RU38 | C18: Иркутская область | M18: Территории | Q18: 2028 | X18: свидетельство | AB18: 700
A19: Кабардино-Балкарская республика | B19: RU07 | C19: Республика Кабардино-Балкария | M19: ="01.01." & PERIOD -> 01.01.2021 | Q19: 2029 | X19: соглашение | AB19: 710
A20: Калининградская область | B20: RU39 | C20: Калининградская область | M20: ="31.12." & PERIOD -> 31.12.2021 | Q20: 2030 | X20: постановление | AB20: 800
A21: Калужская область | B21: RU40 | C21: Калужская область | X21: распоряжение | AB21: 900
A22: Камчатский край | B22: RU41 | C22: Камчатский край | X22: решение | AB22: 1000
A23: Карачаево-Черкесская республика | B23: RU09 | C23: Республика Карачаево-Черкессия | X23: приказ
A24: Кемеровская область | B24: RU42 | C24: Кемеровская область | X24: лицензия
A25: Кировская область | B25: RU43 | C25: Кировская область | X25: акт приёма-передачи
A26: Костромская область | B26: RU44 | C26: Костромская область | X26: государственный контракт
A27: Краснодарский край | B27: RU23 | C27: Краснодарский край | X27: балансовая справка
A28: Красноярский край | B28: RU24 | C28: Красноярский край | X28: кадастровый паспорт
A29: Курганская область | B29: RU45 | C29: Курганская область | X29: технический паспорт
A30: Курская область | B30: RU46 | C30: Курская область | X30: устав
A31: Ленинградская область | B31: RU47 | C31: Ленинградская область | X31: акт ввода в эксплуатацию
A32: Липецкая область | B32: RU48 | C32: Липецкая область | X32: план приватизации
A33: Магаданская область | B33: RU49 | C33: Магаданская область | X33: разрешение на ввод объекта в эксплуатацию
A34: Московская область | B34: RU50 | C34: Московская область | X34: выписка из ЕГРН
A35: Мурманская область | B35: RU51 | C35: Мурманская область | X35: выписка из РФИ
A36: Ненецкий автономный округ | B36: RU83 | C36: Ненецкий автономный округ | X36: документов нет вообще
A37: Нижегородская область | B37: RU52 | C37: Нижегородская область
A38: Новгородская область | B38: RU53 | C38: Новгородская область | K38: TARIFF_CALC_METHOD
A39: Новосибирская область | B39: RU54 | C39: Новосибирская область | K39: экономически обоснованных расходов (затрат)
A40: Омская область | B40: RU55 | C40: Омская область | K40: индексации
A41: Оренбургская область | B41: RU56 | C41: Оренбургская область | K41: индексации (корректировка)
A42: Орловская область | B42: RU57 | C42: Орловская область | K42: сравнения аналогов
A43: Пензенская область | B43: RU58 | C43: Пензенская область
A44: Пермский край | B44: RU59 | C44: Пермский край
A45: Приморский край | B45: RU25 | C45: Приморский край | K45: DOCUMENT_TYPES
A46: Псковская область | B46: RU60 | C46: Псковская область | K46: постановление
A47: Республика Адыгея | B47: RU01 | C47: Республика Адыгея | K47: распоряжение
A48: Республика Алтай | B48: RU04 | C48: Республика Алтай | K48: решение
A49: Республика Башкортостан | B49: RU02 | C49: Республика Башкортостан | K49: приказ
A50: Республика Бурятия | B50: RU03 | C50: Республика Бурятия | K50: закон
A51: Республика Дагестан | B51: RU05 | C51: Республика Дагестан | K51: соглашение
A52: Республика Ингушетия | B52: RU06 | C52: Республика Ингушетия | K52: протокол
A53: Республика Калмыкия | B53: RU08 | C53: Республика Калмыкия
A54: Республика Карелия | B54: RU10 | C54: Республика Карелия
A55: Республика Коми | B55: RU11 | C55: Республика Коми
A56: Республика Крым | B56: RU82 | C56: Крым
A57: Республика Марий Эл | B57: RU12 | C57: Республика Марий Эл
A58: Республика Мордовия | B58: RU13 | C58: Республика Мордовия
A59: Республика Саха (Якутия) | B59: RU14 | C59: Республика Саха (Якутия)
A60: Республика Северная Осетия-Алания | B60: RU15 | C60: Республика Северная Осетия (Алания)
A61: Республика Татарстан | B61: RU16 | C61: Республика Татарстан
A62: Республика Тыва | B62: RU17 | C62: Республика Тыва (Тува)
A63: Республика Хакасия | B63: RU19 | C63: Республика Хакасия
A64: Ростовская область | B64: RU61 | C64: Ростовская область
A65: Рязанская область | B65: RU62 | C65: Рязанская область
A66: Самарская область | B66: RU63 | C66: Самарская область
A67: Саратовская область | B67: RU64 | C67: Саратовская область
A68: Сахалинская область | B68: RU65 | C68: Сахалинская область
A69: Свердловская область | B69: RU66 | C69: Свердловская область
A70: Смоленская область | B70: RU67 | C70: Смоленская область
A71: Ставропольский край | B71: RU26 | C71: Ставропольский край
A72: Тамбовская область | B72: RU68 | C72: Тамбовская область
A73: Тверская область | B73: RU69 | C73: Тверская область
A74: Томская область | B74: RU70 | C74: Томская область
A75: Тульская область | B75: RU71 | C75: Тульская область
A76: Тюменская область | B76: RU72 | C76: Тюменская область
A77: Удмуртская республика | B77: RU18 | C77: Республика Удмуртия
A78: Ульяновская область | B78: RU73 | C78: Ульяновская область
A79: Хабаровский край | B79: RU27 | C79: Хабаровский край
A80: Ханты-Мансийский автономный округ | B80: RU86 | C80: Ханты-Мансийский автономный округ
A81: Челябинская область | B81: RU74 | C81: Челябинская область
A82: Чеченская республика | B82: RU20 | C82: Республика Чечня
A83: Чувашская республика | B83: RU21 | C83: Республика Чувашия
A84: Чукотский автономный округ | B84: RU87 | C84: Чукотский автономный округ
A85: Ямало-Ненецкий автономный округ | B85: RU89 | C85: Ямало-Ненецкий автономный округ
A86: Ярославская область | B86: RU76 | C86: Ярославская область
C87: Нижегородская область
A90: Алтайский край | B90: Управление Алтайского края по государственному регулированию цен и тарифов
A91: Амурская область | B91: Управление государственного регулирования цен и тарифов Амурской области
A92: Архангельская область | B92: Агентство по тарифам Архангельской области
A93: Астраханская область | B93: Служба по тарифам Астраханской области
A94: Белгородская область | B94: Департамент жилищно-коммунального хозяйства Белгородской области
A95: Брянская область | B95: Управление государственного регулирования тарифов Брянской области
A96: Владимирская область | B96: Департамент государственного регулирования цен и тарифов Владимирской области
A97: Волгоградская область | B97: комитет тарифного регулирования Волгоградской области
A98: Вологодская область | B98: Департамент ТЭК и ТР Вологодской области
A99: Воронежская область | B99: Департамент государственного регулирования тарифов Воронежской области
A100: г. Москва | B100: Департамент экономической политики и развития города Москвы
A101: г. Байконур | B101: Управление экономического развития администрации города Байконур
A102: г. Санкт-Петербург | B102: Комитет по тарифам Санкт-Петербурга
A103: г. Севастополь | B103: Управление по тарифам города Севастополя
A104: Еврейская автономная область | B104: Комитет тарифов и цен правительства Еврейской автономной области
A105: Забайкальский край | B105: Региональная служба по тарифам и ценообразованию Забайкальского края
A106: Ивановская область | B106: Департамент энергетики и тарифов Ивановской области
A107: Иркутская область | B107: Служба по тарифам Иркутской области
A108: Кабардино-Балкарская республика | B108: Государственный комитет Кабардино-Балкарский Республики по тарифам и жилищному надзору
A109: Калининградская область | B109: Служба по государственному регулированию цен и тарифов Калининградской области
A110: Калужская область | B110: Министерство конкурентной политики Калужской области
A111: Камчатский край | B111: Региональная служба по тарифам и ценам Камчатского края
A112: Карачаево-Черкесская республика | B112: Главное управление Карачаево-Черкесской Республики по тарифам и ценам
A113: Кемеровская область | B113: Региональная энергетическая комиссия Кузбасса
A114: Кировская область | B114: Региональная служба по тарифам Кировской области
A115: Костромская область | B115: Департамент государственного регулирования цен и тарифов Костромской области
A116: Краснодарский край | B116: Департамент государственного регулирования тарифов Краснодарского края
A117: Красноярский край | B117: Министерство тарифной политики Красноярского края
A118: Курганская область | B118: Департамент государственного регулирования цен и тарифов Курганской области
A119: Курская область | B119: Комитет по тарифам и ценам Курской области
A120: Ленинградская область | B120: Комитет по тарифам и ценовой политике Ленинградской области
A121: Липецкая область | B121: Управление энергетики и тарифов Липецкой области
A122: Магаданская область | B122: Департамент цен и тарифов Магаданской области
A123: Московская область | B123: Комитет по ценам и тарифам Московской области
A124: Мурманская область | B124: Комитет по тарифному регулированию Мурманской области
A125: Ненецкий автономный округ | B125: Управление по государственному регулированию цен (тарифов) Ненецкого автономного округа
A126: Нижегородская область | B126: Региональная служба по тарифам Нижегородской области
A127: Новгородская область | B127: Комитет по тарифной политике Новгородской области
A128: Новосибирская область | B128: Департамент по тарифам Новосибирской области
A129: Омская область | B129: Региональная энергетическая комиссия Омской области
A130: Оренбургская область | B130: Департамент Оренбургской области по ценам и регулированию тарифов
A131: Орловская область | B131: Управление по тарифам и ценовой политике Орловской области
A132: Пензенская область | B132: Департамент по регулированию тарифов и энергосбережению Пензенской области
A133: Пермский край | B133: Министерство тарифного регулирования и энергетики Пермского края
A134: Приморский край | B134: Агентство по тарифам Приморского края
A135: Псковская область | B135: Комитет по тарифам и энергетике Псковской области
A136: Республика Адыгея | B136: Управление государственного регулирования цен и тарифов Республики Адыгея
A137: Республика Алтай | B137: Комитет по тарифам Республики Алтай
A138: Республика Башкортостан | B138: Государственный комитет Республики Башкортостан по тарифам
A139: Республика Бурятия | B139: Республиканская служба по тарифам Республики Бурятия
A140: Республика Дагестан | B140: Республиканская служба по тарифам Республики Дагестан
A141: Республика Ингушетия | B141: Государственная жилищная инспекция Республики Ингушетия
A142: Республика Калмыкия | B142: Региональная служба по тарифам Республики Калмыкия
A143: Республика Карелия | B143: Государственный комитет Республики Карелия по ценам и тарифам
A144: Республика Коми | B144: Комитет Республики Коми по тарифам
A145: Республика Крым | B145: Государственный комитет по ценам и тарифам Республики Крым
A146: Республика Марий Эл | B146: Министерство промышленности, экономического развития и торговли Республики Марий Эл
A147: Республика Мордовия | B147: Республиканская служба по тарифам Республики Мордовия
A148: Республика Саха (Якутия) | B148: Государственный комитет по ценовой политике Республики Саха (Якутия)
A149: Республика Северная Осетия-Алания | B149: Региональная служба по тарифам Республики Северная Осетия-Алания
A150: Республика Татарстан | B150: Государственный комитет Республики Татарстан по тарифам
A151: Республика Тыва | B151: Служба по тарифам Республики Тыва
A152: Республика Хакасия | B152: Государственный комитет энергетики и тарифного регулирования Республики Хакасия
A153: Ростовская область | B153: Региональная служба по тарифам Ростовской области
A154: Рязанская область | B154: Главное управление "Региональная энергетическая комиссия" Рязанской области
A155: Самарская область | B155: Департамент ценового и тарифного регулирования Самарской области
A156: Саратовская область | B156: Комитет государственного регулирования тарифов Саратовской области
A157: Сахалинская область | B157: региональная энергетическая комиссии Сахалинской области
A158: Свердловская область | B158: Региональная энергетическая комиссия Свердловской области
A159: Смоленская область | B159: Департамент Смоленской области по энергетике, энергоэффективности, тарифной политике
A160: Ставропольский край | B160: Региональная тарифная комиссия Ставропольского края
A161: Тамбовская область | B161: Управление по регулированию тарифов Тамбовской области
A162: Тверская область | B162: Главное управление "Региональная энергетическая комиссия" Тверской области
A163: Томская область | B163: Департамент тарифного регулирования Томской области
A164: Тульская область | B164: Комитет Тульской области по тарифам
A165: Тюменская область | B165: Департамент тарифной и ценовой политики Тюменской области
A166: Удмуртская республика | B166: Министерство строительства, жилищно-коммунального хозяйства и энергетики Удмуртской Республики
A167: Ульяновская область | B167: Агентство по регулированию цен и тарифов Ульяновской области
A168: Хабаровский край | B168: Комитет по ценам и тарифам Правительства Хабаровского края
A169: Ханты-Мансийский автономный округ | B169: Региональная служба по тарифам Ханты-Мансийского автономного округа - Югры
A170: Челябинская область | B170: Министерство тарифного регулирования и энергетики Челябинской области
A171: Чеченская республика | B171: Государственный комитет цен и тарифов Чеченской Республики
A172: Чувашская республика | B172: Государственная служба Чувашской Республики по конкурентной политике и тарифам
A173: Чукотский автономный округ | B173: Комитет государственного регулирования цен и тарифов Чукотского автономного округа
A174: Ямало-Ненецкий автономный округ | B174: Департамент тарифной политики, энергетики и жилищно-коммунального комплекса Ямало-Ненецкого автономного округа
A175: Ярославская область | B175: Департамент жилищно-коммунального хозяйства, энергетики и регулирования тарифов Ярославской области

Sheet Комментарии
D7: Комментарии

Sheet Проверка
B2: Результат проверки
B4: Ссылка 1 | C4: Ссылка 2 | D4: Причина | E4: Статус

Sheet REESTR_OBJECT (hidden)
A1: SPHERE | B1: NMBR | C1: NMOB | D1: STYPE | E1: ADDRESS | F1: L_EXPLOIT_DOC_BASE | G1: L_EXPLOIT_DOC_TYPE | H1: L_EXPLOIT_DOC_NUMBER | I1: L_EXPLOIT_DOC_DATE
A2: ВС | C2: Cети водоснабжения | D2: сеть | E2: пгт Верх-Чебула / пгт Верх-Чебула / _ | F2: концессионное соглашение | G2: соглашение | H2: 2019/ЧМР | I2: 13.11.2019
A3: ВС | C3: Артезианская скважина | D3: НС | E3: п 1-й / ул Школьная / 2"д" | F3: концессионное соглашение | G3: соглашение | H3: 2019/ЧМР | I3: 13.11.2019
A4: ВС | C4: Барзасский водозабор НС 2-го подъема [нет] | D4: сеть | E4: г Кемерово / без адреса / б/н | F4: концессионное соглашение | G4: договор | H4: 2 | I4: 28.12.2018
A5: ВС | C5: Барзасский водоподъем долина р. Барзас (в резерве) | D5: НС | E5: г Березовский / г. Березовский / нет | F5: аренда | G5: договор | H5: б/н | I5: 20.06.2002
A6: ВС | C6: Буровая водозаборная разведочно-эксплуатационная скважина | D6: НС | E6: п Новоивановский / ул Садовая / 1"г" | F6: концессионное соглашение | G6: соглашение | H6: 2019/ЧМР | I6: 13.11.2019
A7: ВС | C7: ВНС "Лесная поляна" [нет] | D7: НС | E7: г Кемерово / автодорога г. Кемерово-Лесная поляна / б/н | F7: концессионное соглашение | G7: договор | H7: 2 | I7: 28.12.2018
A8: ВС | C8: ВОС Поселкового водозабора | D8: ОС | E8: пгт Яя / ул.Юбилейная / 1 | F8: аренда | G8: договор | H8: 6-11-23 | I8: 01.08.2023
A9: ВС | C9: Водозабор- насосная станция 1-го подъема | D9: НС | E9: пгт Крапивинский / пгт. Крапивинский / корпус 1 | F9: концессионное соглашение | G9: соглашение | H9: 1/Л-К | I9: 14.11.2019
A10: ВС | C10: Водопроводные сети пгт Яшкино | D10: сеть | E10: пгт Яшкино / - / - | F10: концессионное соглашение | G10: соглашение | H10: №7/ЯМО | I10: 28.09.2021
A11: ВС | C11: Врезки в водопроводну сеть с. Колмогорово | D11: сеть | E11: с Колмогорово / - / - | F11: концессионное соглашение | G11: соглашение | H11: №7/ЯМО | I11: 28.09.2021
A12: ВС | C12: Врезки в водопроводну сеть с. Пача | D12: сеть | E12: с Пача / - / - | F12: концессионное соглашение | G12: соглашение | H12: №7/ЯМО | I12: 28.09.2021
A13: ВС | C13: Гидроузел "Рудник" [нет] | D13: НС | E13: г Кемерово / ул. Мамонтова / б/н | F13: концессионное соглашение | G13: договор | H13: 2 | I13: 28.12.2018
A14: ВС | C14: Гидроузел №4 [нет] | D14: НС | E14: г Кемерово / ул. Мартемьянова / б/н | F14: концессионное соглашение | G14: договор | H14: 2 | I14: 28.12.2018
A15: ВС | C15: Гидроузел №6 | D15: НС | E15: г Полысаево / проезд Межквартальный, / д.7, строение 2 | F15: концессионное соглашение | G15: соглашение | H15: 3 | I15: 14.11.2019
A16: ВС | C16: Зона А [нет] | D16: НС | E16: г Кемерово / ул. Терешковой / 46 | F16: концессионное соглашение | G16: договор | H16: 2 | I16: 28.12.2018
A17: ВС | C17: Зона Б [нет] | D17: НС | E17: г Кемерово / ул. Космическая / нечётная сторона | F17: концессионное соглашение | G17: договор | H17: 2 | I17: 28.12.2018
A18: ВС | C18: Ковшевой водозабор с насосной станцией 1-ого подъема долина р. Барзас | D18: НС | E18: г Березовский / г. Березовский / нет | F18: аренда | G18: договор | H18: б/н | I18: 20.06.2002
A19: ВС | C19: НС | D19: НС | E19: пгт Яшкино / ул.Молодежная / 11а | F19: концессионное соглашение | G19: соглашение | H19: №7/ЯМО | I19: 28.09.2021
A20: ВС | C20: НС-2 | D20: НС | E20: пгт Яшкино / В 150м на север от ж.д. №14 по ул.1-я Осиновка / - | F20: концессионное соглашение | G20: соглашение | H20: №7/ЯМО | I20: 28.09.2021
A21: ВС | C21: НС-2 подъема Бердовского водозабора | D21: НС | E21: г Кемерово / без адреса / б/н | F21: концессионное соглашение | G21: договор | H21: 2 | I21: 28.12.2018
A22: ВС | C22: НС-2 подъема НФС-2 [нет] | D22: НС | E22: г Кемерово / ул. Советская / 38 | F22: концессионное соглашение | G22: договор | H22: 2 | I22: 28.12.2018
A23: ВС | C23: НС-3 | D23: НС | E23: пгт Яшкино / ул.Куйбышева / 9а | F23: концессионное соглашение | G23: соглашение | H23: №7/ЯМО | I23: 28.09.2021
A24: ВС | C24: НС-3 Кировского р-на [нет] | D24: НС | E24: г Кемерово / пер. Бакинский / 15 А | F24: концессионное соглашение | G24: договор | H24: 2 | I24: 28.12.2018
A25: ВС | C25: НС-3 Рудничного р-на [нет] | D25: НС | E25: г Кемерово / пер. Бакинский / 15 А | F25: концессионное соглашение | G25: договор | H25: 2 | I25: 28.12.2018
A26: ВС | C26: НС-3 ж.р. Кедровка (подача на ж.р. Кедровка) [нет] | D26: НС | E26: г Кемерово / ж.р. Кедровка, ул. Павленко / б/н | F26: концессионное соглашение | G26: договор | H26: 2 | I26: 28.12.2018
A27: ВС | C27: НС-3 ж.р. Кедровка (подача на ж.р. Промышленновский) [нет] | D27: НС | E27: г Кемерово / ж.р. Кедровка, ул. Павленко / б/н | F27: концессионное соглашение | G27: договор | H27: 2 | I27: 28.12.2018
A28: ВС | C28: НС-3 ж.р. Кедровка [нет] | D28: ОС | E28: г Кемерово / ж.р. Кедровка, ул. Павленко / б/н | F28: концессионное соглашение | G28: договор | H28: 2 | I28: 28.12.2018
A29: ВС | C29: НС-4 ж.р. Промышленновский [нет] | D29: НС | E29: г Кемерово / ж.р. Промышленновский, ул. Промшоссе / б/н | F29: концессионное соглашение | G29: договор | H29: 2 | I29: 28.12.2018
A30: ВС | C30: НФС Насосная станция 5-го подъема | D30: НС | E30: п Демьяновка / пер. Новый / 18, корпус 8 | F30: концессионное соглашение | G30: соглашение | H30: 1/Л-К | I30: 14.11.2019
A31: ВС | C31: НФС-2 [нет] | D31: ОС | E31: г Кемерово / ул. Советская / 38 | F31: концессионное соглашение | G31: договор | H31: 2 | I31: 28.12.2018
A32: ВС | C32: НФС-2 НС Пугачёвского водозабора [нет] | D32: НС | E32: г Кемерово / ул. Советская / 38 | F32: концессионное соглашение | G32: договор | H32: 2 | I32: 28.12.2018
A33: ВС | C33: НФС-2 НС ковшевого водозабора [нет] | D33: НС | E33: г Кемерово / ул. Советская / 38 | F33: концессионное соглашение | G33: договор | H33: 2 | I33: 28.12.2018
A34: ВС | C34: НФС-2 НС руслового водозабора [нет] | D34: НС | E34: г Кемерово / ул. Советская / 38 | F34: концессионное соглашение | G34: договор | H34: 2 | I34: 28.12.2018
A35: ВС | C35: НФС-2, НС-2 подъема (Левый берег) | D35: сеть | E35: г Кемерово / ул. Советская / 38 | F35: концессионное соглашение | G35: договор | H35: 2 | I35: 28.12.2018
A36: ВС | C36: НФС-2, НС-2 подъема (Правый берег) | D36: сеть | E36: г Кемерово / ул. Советская / 38 | F36: концессионное соглашение | G36: договор | H36: 2 | I36: 28.12.2018
A37: ВС | C37: Наружние сети водоснабжения с. Колмогорово | D37: сеть | E37: с Колмогорово / пер.Ленинский / От дома№6 до участка №9 | F37: концессионное соглашение | G37: соглашение | H37: №7/ЯМО | I37: 28.09.2021
A38: ВС | C38: Насосная пос.Красногорский | D38: НС | E38: п Красногорский / ул. Магистральная / строение 1 | F38: концессионное соглашение | G38: соглашение | H38: 3 | I38: 14.11.2019
A39: ВС | C39: Насосная станция Гидроузел №2 | D39: НС | E39: г Ленинск-Кузнецкий / проезд Объездная дорога / 13 | F39: концессионное соглашение | G39: соглашение | H39: 1/Л-К | I39: 14.11.2019
A40: ВС | C40: Насосная станция Гидроузел №4 | D40: НС | E40: г Ленинск-Кузнецкий / ул. Суворова / 209 | F40: концессионное соглашение | G40: соглашение | H40: 1/Л-К | I40: 14.11.2019
A41: ВС | C41: Насосная станция 2-го подъема | D41: НС | E41: пгт Крапивинский / 1 км автомобильной дороги Крапивинский-Панфилово / б/н | F41: концессионное соглашение | G41: соглашение | H41: 1/Л-К | I41: 14.11.2019
A42: ВС | C42: Насосная станция 2-ого подъема долина р. Каменушка | D42: НС | E42: г Березовский / ул. Н.Барзас / нет | F42: аренда | G42: договор | H42: б/н | I42: 20.06.2002
A43: ВС | C43: Насосная станция 3-го подъема | D43: НС | E43: пгт Крапивинский / 8 км автомобильной дороги Крапивинский-Панфилово / б/н | F43: концессионное соглашение | G43: соглашение | H43: 1/Л-К | I43: 14.11.2019
A44: ВС | C44: Насосная станция 3-ого подъема | D44: НС | E44: г Березовский / ул. Строителей / 6 | F44: аренда | G44: договор | H44: б/н | I44: 20.06.2002
A45: ВС | C45: Насосная станция №1 п.ш. "Южная" | D45: НС | E45: г Березовский / ул. Гвардейская / нет | F45: аренда | G45: договор | H45: б/н | I45: 20.06.2002
A46: ВС | C46: Насосная станция №12 п.ш. "Южная" | D46: НС | E46: г Березовский / ул. Таежная / нет | F46: аренда | G46: договор | H46: б/н | I46: 20.06.2002
A47: ВС | C47: Насосная станция №16 | D47: НС | E47: г Ленинск-Кузнецкий / пр.Ленина / 82"б" | F47: концессионное соглашение | G47: соглашение | H47: 1/Л-К | I47: 14.11.2019
A48: ВС | C48: Насосная станция №2 п.ш. "Березовская" | D48: НС | E48: г Березовский / г. Березовский / нет | F48: аренда | G48: договор | H48: б/н | I48: 20.06.2002
A49: ВС | C49: Насосная станция №2 п.ш. "Южная" | D49: НС | E49: г Березовский / ул. Калинина / нет | F49: аренда | G49: договор | H49: б/н | I49: 20.06.2002
A50: ВС | C50: Насосная станция Демьяновский ГУ Гидроузел №1 | D50: НС | E50: п Демьяновка / за придорожной полосой автомобильной дороги Новосибирск-Ленинск-Кузнецкий-Кемерово-Юрга, 259 км+500м(справа) корпус 5 / корпус 5 | F50: концессионное соглашение | G50: соглашение | H50: 1/Л-К | I50: 14.11.2019
A51: ВС | C51: Насосно-фильтровальная станция (НФС) | D51: ОС | E51: г Березовский / г. Березовский / нет | F51: аренда | G51: договор | H51: б/н | I51: 20.06.2002
A52: ВС | C52: ПНС 11 ЦТП [нет] | D52: НС | E52: г Кемерово / ул. Аврора / 6 | F52: концессионное соглашение | G52: договор | H52: 2 | I52: 28.12.2018
A53: ВС | C53: ПНС 14 [нет] | D53: НС | E53: г Кемерово / пр. Ленина / 132 Б | F53: концессионное соглашение | G53: договор | H53: 2 | I53: 28.12.2018
A54: ВС | C54: ПНС 16 [нет] | D54: НС | E54: г Кемерово / ул. Волгоградская / 8 А | F54: концессионное соглашение | G54: договор | H54: 2 | I54: 28.12.2018
A55: ВС | C55: ПНС 17/1 [нет] | D55: НС | E55: г Кемерово / пр. Московский / 27 | F55: концессионное соглашение | G55: договор | H55: 2 | I55: 28.12.2018
A56: ВС | C56: ПНС 17/2 [нет] | D56: НС | E56: г Кемерово / б-р Строителей / 4 А | F56: концессионное соглашение | G56: договор | H56: 2 | I56: 28.12.2018
A57: ВС | C57: ПНС 19 [нет] | D57: НС | E57: г Кемерово / пр. Ленина / 142 А | F57: концессионное соглашение | G57: договор | H57: 2 | I57: 28.12.2018
A58: ВС | C58: ПНС 52 [нет] | D58: НС | E58: г Кемерово / ул. Пролетарская / 22 | F58: концессионное соглашение | G58: договор | H58: 2 | I58: 28.12.2018
A59: ВС | C59: ПНС 54 (не работает) [нет] | D59: НС | E59: г Кемерово / ул. Сибиряков-Гвардейцев / 19 А | F59: концессионное соглашение | G59: договор | H59: 2 | I59: 28.12.2018
A60: ВС | C60: ПНС 9 [нет] | D60: НС | E60: г Кемерово / пр. Октябрьский / 61 | F60: концессионное соглашение | G60: договор | H60: 2 | I60: 28.12.2018
A61: ВС | C61: ПНС Боровой [нет] | D61: НС | E61: г Кемерово / п-к Боровой, ул. 2-ая Парковая / б/н | F61: концессионное соглашение | G61: договор | H61: 2 | I61: 28.12.2018
A62: ВС | C62: ПНС Греческая деревня [нет] | D62: НС | E62: г Кемерово / ж.р. Кедровка, ул. Греческая деревня / восточнее дома №118 | F62: концессионное соглашение | G62: договор | H62: 2 | I62: 28.12.2018
A63: ВС | C63: ПНС Лапичево [нет] | D63: НС | E63: г Кемерово / п. Лапичево, ул. Гвардейская / возле дома №22 | F63: концессионное соглашение | G63: договор | H63: 2 | I63: 28.12.2018
A64: ВС | C64: ПНС ул. Антипова [нет] | D64: НС | E64: г Кемерово / ул. Антипова / б/н | F64: концессионное соглашение | G64: договор | H64: 2 | I64: 28.12.2018
A65: ВС | C65: Петровский водозабор [нет] | D65: НС | E65: г Кемерово / п. Петровский / б/н | F65: концессионное соглашение | G65: договор | H65: 2 | I65: 28.12.2018
A66: ВС | C66: Поселковый водозабор | D66: НС | E66: пгт Яя / ул.Юбилейная / 1 | F66: аренда | G66: договор | H66: 6-11-23 | I66: 01.08.2023
A67: ВС | C67: Правобережная НС [нет] | D67: НС | E67: г Кемерово / ул. Терешковой / 14 | F67: концессионное соглашение | G67: договор | H67: 2 | I67: 28.12.2018
A68: ВС | C68: Сети водоснабжения д. Балахнино | D68: сеть | E68: д Балахнино / - / - | F68: концессионное соглашение | G68: соглашение | H68: №7/ЯМО | I68: 28.09.2021
A69: ВС | C69: Сети водоснабжения д. Ботьево | D69: сеть | E69: д Ботьево / - / - | F69: концессионное соглашение | G69: соглашение | H69: №7/ЯМО | I69: 28.09.2021
A70: ВС | C70: Сети водоснабжения д. Власково | D70: сеть | E70: д Власково / - / - | F70: концессионное соглашение | G70: соглашение | H70: №7/ЯМО | I70: 28.09.2021
A71: ВС | C71: Сети водоснабжения д. Дауровка | D71: сеть | E71: д Дауровка / - / - | F71: концессионное соглашение | G71: соглашение | H71: №7/ЯМО | I71: 28.09.2021
A72: ВС | C72: Сети водоснабжения д. Зырянка | D72: сеть | E72: д Зырянка / - / - | F72: концессионное соглашение | G72: соглашение | H72: №7/ЯМО | I72: 28.09.2021
A73: ВС | C73: Сети водоснабжения д. Каленово | D73: сеть | E73: д Каленово / - / - | F73: концессионное соглашение | G73: соглашение | H73: №7/ЯМО | I73: 28.09.2021
A74: ВС | C74: Сети водоснабжения д. Корчуганово | D74: сеть | E74: д Корчуганово / - / - | F74: концессионное соглашение | G74: соглашение | H74: №7/ЯМО | I74: 28.09.2021
A75: ВС | C75: Сети водоснабжения д. Крылово | D75: сеть | E75: д Крылово / - / - | F75: концессионное соглашение | G75: соглашение | H75: №7/ЯМО | I75: 28.09.2021
A76: ВС | C76: Сети водоснабжения д. Кулаково | D76: сеть | E76: д Кулаково / - / - | F76: концессионное соглашение | G76: соглашение | H76: №7/ЯМО | I76: 28.09.2021
A77: ВС | C77: Сети водоснабжения д. Литвиново | D77: сеть | E77: д Литвиново / - / - | F77: концессионное соглашение | G77: соглашение | H77: №7/ЯМО | I77: 28.09.2021
A78: ВС | C78: Сети водоснабжения д. Морковкино | D78: сеть | E78: д Морковкино / - / - | F78: концессионное соглашение | G78: соглашение | H78: №7/ЯМО | I78: 28.09.2021
A79: ВС | C79: Сети водоснабжения д. Нижняя-Тайменка | D79: сеть | E79: д Нижняя Тайменка / - / - | F79: концессионное соглашение | G79: соглашение | H79: №7/ЯМО | I79: 28.09.2021
A80: ВС | C80: Сети водоснабжения д. Саломатово | D80: сеть | E80: д Саломатово / - / - | F80: концессионное соглашение | G80: соглашение | H80: №7/ЯМО | I80: 28.09.2021
A81: ВС | C81: Сети водоснабжения д. Усть-Сосновка | D81: сеть | E81: д Усть-Сосновка / - / - | F81: концессионное соглашение | G81: соглашение | H81: №7/ЯМО | I81: 28.09.2021
A82: ВС | C82: Сети водоснабжения д. Юрты-Константиновы | D82: сеть | E82: д Юрты-Константиновы / - / - | F82: концессионное соглашение | G82: соглашение | H82: №7/ЯМО | I82: 28.09.2021
A83: ВС | C83: Сети водоснабжения п. Акация | D83: сеть | E83: п Акация / - / - | F83: концессионное соглашение | G83: соглашение | H83: №7/ЯМО | I83: 28.09.2021
A84: ВС | C84: Сети водоснабжения п. Дубровка | D84: сеть | E84: п Дубровка / - / - | F84: концессионное соглашение | G84: соглашение | H84: №7/ЯМО | I84: 28.09.2021
A85: ВС | C85: Сети водоснабжения п. Ленинский | D85: сеть | E85: п Ленинский / - / - | F85: концессионное соглашение | G85: соглашение | H85: №7/ЯМО | I85: 28.09.2021
A86: ВС | C86: Сети водоснабжения п. Октябрьский | D86: сеть | E86: п Октябрьский / - / - | F86: концессионное соглашение | G86: соглашение | H86: №7/ЯМО | I86: 28.09.2021
A87: ВС | C87: Сети водоснабжения п. Шахтер | D87: сеть | E87: п Шахтер / - / - | F87: концессионное соглашение | G87: соглашение | H87: №7/ЯМО | I87: 28.09.2021
A88: ВС | C88: Сети водоснабжения п. Яшкинский | D88: сеть | E88: п Яшкинский / - / - | F88: концессионное соглашение | G88: соглашение | H88: №7/ЯМО | I88: 28.09.2021
A89: ВС | C89: Сети водоснабжения п/ст. Литвиново | D89: сеть | E89: п.ст Литвиново / - / - | F89: концессионное соглашение | G89: соглашение | H89: №7/ЯМО | I89: 28.09.2021
A90: ВС | C90: Сети водоснабжения п/ст. Хопкино | D90: сеть | E90: п.ст Хопкино / - / - | F90: концессионное соглашение | G90: соглашение | H90: №7/ЯМО | I90: 28.09.2021
A91: ВС | C91: Сети водоснабжения пгт. Яя | D91: сеть | E91: пгт Яя / - / - | F91: аренда | G91: договор | H91: 6-11-23 | I91: 01.08.2023
A92: ВС | C92: Сети водоснабжения с. Колмогорово | D92: сеть | E92: с Колмогорово / - / - | F92: концессионное соглашение | G92: соглашение | H92: №7/ЯМО | I92: 28.09.2021
A93: ВС | C93: Сети водоснабжения с. Красноселка | D93: сеть | E93: с Красноселка / - / - | F93: концессионное соглашение | G93: соглашение | H93: №7/ЯМО | I93: 28.09.2021
A94: ВС | C94: Сети водоснабжения с. Нижнеяшкино | D94: сеть | E94: с Нижнеяшкино / - / - | F94: концессионное соглашение | G94: соглашение | H94: №7/ЯМО | I94: 28.09.2021
A95: ВС | C95: Сети водоснабжения с. Пача | D95: сеть | E95: с Пача / - / - | F95: концессионное соглашение | G95: соглашение | H95: №7/ЯМО | I95: 28.09.2021
A96: ВС | C96: Сети водоснабжения с. Пашково | D96: сеть | E96: с Пашково / - / - | F96: концессионное соглашение | G96: соглашение | H96: №7/ЯМО | I96: 28.09.2021
A97: ВС | C97: Сети водоснабжения с. Поломошное | D97: сеть | E97: с Поломошное / - / - | F97: концессионное соглашение | G97: соглашение | H97: №7/ЯМО | I97: 28.09.2021
A98: ВС | C98: Сети водоснабжения с. Таловка | D98: сеть | E98: с Таловка / - / - | F98: концессионное соглашение | G98: соглашение | H98: №7/ЯМО | I98: 28.09.2021
A99: ВС | C99: Сети водоснабжения ст. Тутальская | D99: сеть | E99: ст Тутальская / - / - | F99: концессионное соглашение | G99: соглашение | H99: №7/ЯМО | I99: 28.09.2021
A100: ВС | C100: Сети водоснабжения д. Арышево | D100: сеть | E100: д Арышево / - / - | F100: аренда | G100: договор | H100: 6-11-23 | I100: 01.08.2023
A101: ВС | C101: Сети водоснабжения д. Данковка | D101: сеть | E101: д Данковка / - / - | F101: аренда | G101: договор | H101: 6-11-23 | I101: 01.08.2023
A102: ВС | C102: Сети водоснабжения д. Емельяновка | D102: сеть | E102: д Емельяновка / - / - | F102: аренда | G102: договор | H102: 6-11-23 | I102: 01.08.2023
A103: ВС | C103: Сети водоснабжения д. Марьевка | D103: сеть | E103: д Марьевка / - / - | F103: аренда | G103: договор | H103: 6-11-23 | I103: 01.08.2023
A104: ВС | C104: Сети водоснабжения д. Ольговка | D104: сеть | E104: д Ольговка / - / - | F104: аренда | G104: договор | H104: 6-11-23 | I104: 01.08.2023
A105: ВС | C105: Сети водоснабжения д. Сергеевка | D105: сеть | E105: д Сергеевка / - / - | F105: аренда | G105: договор | H105: 6-11-23 | I105: 01.08.2023
A106: ВС | C106: Сети водоснабжения д. Соболинка | D106: сеть | E106: д Соболинка / - / - | F106: аренда | G106: договор | H106: 6-11-23 | I106: 01.08.2023
A107: ВС | C107: Сети водоснабжения п. Безлесный | D107: сеть | E107: п Безлесный / - / - | F107: аренда | G107: договор | H107: 6-11-23 | I107: 01.08.2023
A108: ВС | C108: Сети водоснабжения п. Воскресенка | D108: сеть | E108: п Воскресенка (Суровка) / - / - | F108: аренда | G108: договор | H108: 6-11-23 | I108: 01.08.2023
A109: ВС | C109: Сети водоснабжения п. Майский | D109: сеть | E109: п Майский / входило в состав сельского поселения Безлесное Яйского муниципального района / - / - | F109: аренда | G109: договор | H109: 6-11-23 | I109: 01.08.2023
A110: ВС | C110: Сети водоснабжения п. Новостройка | D110: сеть | E110: п Новостройка / - / - | F110: аренда | G110: договор | H110: 6-11-23 | I110: 01.08.2023
A111: ВС | C111: Сети водоснабжения п. Турат | D111: сеть | E111: п Турат / - / - | F111: аренда | G111: договор | H111: 6-11-23 | I111: 01.08.2023
A112: ВС | C112: Сети водоснабжения п. Чиндатский | D112: сеть | E112: п Чиндатский / - / - | F112: аренда | G112: договор | H112: 6-11-23 | I112: 01.08.2023
A113: ВС | C113: Сети водоснабжения п.ст. Судженка | D113: сеть | E113: п.ст Судженка / - / - | F113: аренда | G113: договор | H113: 6-11-23 | I113: 01.08.2023
A114: ВС | C114: Сети водоснабжения с. Бекет | D114: сеть | E114: с Бекет / - / - | F114: аренда | G114: договор | H114: 6-11-23 | I114: 01.08.2023
A115: ВС | C115: Сети водоснабжения с. Вознесенка | D115: сеть | E115: с Вознесенка / - / - | F115: аренда | G115: договор | H115: 6-11-23 | I115: 01.08.2023
A116: ВС | C116: Сети водоснабжения с. Ишим | D116: сеть | E116: с Ишим / - / - | F116: аренда | G116: договор | H116: 6-11-23 | I116: 01.08.2023
A117: ВС | C117: Сети водоснабжения с. Кайла | D117: сеть | E117: с Кайла / - / - | F117: аренда | G117: договор | H117: 6-11-23 | I117: 01.08.2023
A118: ВС | C118: Сети водоснабжения с. Мальцево | D118: сеть | E118: с Мальцево / - / - | F118: аренда | G118: договор | H118: 6-11-23 | I118: 01.08.2023
A119: ВС | C119: Сети водоснабжения с. Новониколаевка | D119: сеть | E119: с Новониколаевка / - / - | F119: аренда | G119: договор | H119: 6-11-23 | I119: 01.08.2023
A120: ВС | C120: Сети водоснабжения с. Судженка | D120: сеть | E120: с Судженка / - / - | F120: аренда | G120: договор | H120: 6-11-23 | I120: 01.08.2023
A121: ВС | C121: Сети водоснабжения с. Улановка | D121: сеть | E121: с Улановка / - / - | F121: аренда | G121: договор | H121: 6-11-23 | I121: 01.08.2023
A122: ВС | C122: Сети водоснабжения с. Яя-Борик | D122: сеть | E122: с Яя-Борик / - / - | F122: аренда | G122: договор | H122: 6-11-23 | I122: 01.08.2023
A123: ВС | C123: Скважина | D123: НС | E123: д Дмитриевка / ул Набережная / 16а | F123: концессионное соглашение | G123: соглашение | H123: 2019/ЧМР | I123: 13.11.2019
A124: ВС | C124: Скважина | D124: НС | E124: д Курск-Смоленка / ул Советская / 34"а" | F124: концессионное соглашение | G124: соглашение | H124: 2019/ЧМР | I124: 13.11.2019
A125: ВС | C125: Скважина | D125: НС | E125: д Курск-Смоленка / ул Советская / 2"а" | F125: концессионное соглашение | G125: соглашение | H125: 2019/ЧМР | I125: 13.11.2019
A126: ВС | C126: Скважина | D126: НС | E126: д Орлово-Розово / ул Центральная 200м на восток от дома №65 / _ | F126: концессионное соглашение | G126: соглашение | H126: 2019/ЧМР | I126: 13.11.2019
A127: ВС | C127: Скважина | D127: НС | E127: д Покровка / ул Зеленая / 14"а" | F127: концессионное соглашение | G127: соглашение | H127: 2019/ЧМР | I127: 13.11.2019
A128: ВС | C128: Скважина | D128: НС | E128: д Шестаково / ул Оренбургская / 2"в" | F128: концессионное соглашение | G128: соглашение | H128: 2019/ЧМР | I128: 13.11.2019
A129: ВС | C129: Скважина | D129: НС | E129: п 1-й / ул. Воронова / 8а | F129: концессионное соглашение | G129: соглашение | H129: 2019/ЧМР | I129: 13.11.2019
A130: ВС | C130: Скважина | D130: НС | E130: пгт Верх-Чебула / ул Губернаторская / 23"а" | F130: концессионное соглашение | G130: соглашение | H130: 2019/ЧМР | I130: 13.11.2019
A131: ВС | C131: Скважина | D131: НС | E131: пгт Верх-Чебула / ул. Советская / 8 | F131: концессионное соглашение | G131: соглашение | H131: 2019/ЧМР | I131: 13.11.2019
A132: ВС | C132: Скважина | D132: НС | E132: пгт Верх-Чебула / ул. Пасова / 4а | F132: концессионное соглашение | G132: соглашение | H132: 2019/ЧМР | I132: 13.11.2019
A133: ВС | C133: Скважина | D133: НС | E133: с Алчедат / ул Октябрьская / 43"в" | F133: концессионное соглашение | G133: соглашение | H133: 2019/ЧМР | I133: 13.11.2019
A134: ВС | C134: Скважина | D134: НС | E134: с Николаевка / ул Осипова / 13"а" | F134: концессионное соглашение | G134: соглашение | H134: 2019/ЧМР | I134: 13.11.2019
A135: ВС | C135: Скважина | D135: НС | E135: с Усманка / ул Молодежная / 16 | F135: концессионное соглашение | G135: соглашение | H135: 2019/ЧМР | I135: 13.11.2019
A136: ВС | C136: Скважина | D136: НС | E136: с Усманка / ул Молодежная / 5в | F136: концессионное соглашение | G136: соглашение | H136: 2019/ЧМР | I136: 13.11.2019
A137: ВС | C137: Скважина | D137: НС | E137: с Усманка / ул Молодежная / 5"г" | F137: концессионное соглашение | G137: соглашение | H137: 2019/ЧМР | I137: 13.11.2019
A138: ВС | C138: Скважина | D138: НС | E138: с Усть-Серта / ул 60 лет ВЛКСМ / 19"а" | F138: концессионное соглашение | G138: соглашение | H138: 2019/ЧМР | I138: 13.11.2019
A139: ВС | C139: Скважина | D139: НС | E139: с Усть-Серта / ул Кирова / 11"а" | F139: концессионное соглашение | G139: соглашение | H139: 2019/ЧМР | I139: 13.11.2019
A140: ВС | C140: Скважина | D140: НС | E140: с Усть-Серта / ул Сибирская / 26"а" | F140: концессионное соглашение | G140: соглашение | H140: 2019/ЧМР | I140: 13.11.2019
A141: ВС | C141: Скважина | D141: НС | E141: с Усть-Чебула / ул. Школьная / 1в | F141: концессионное соглашение | G141: соглашение | H141: 2019/ЧМР | I141: 13.11.2019
A142: ВС | C142: Скважина №1 | D142: НС | E142: д Михайловка / ул Школьная / 1"б" | F142: концессионное соглашение | G142: соглашение | H142: 2019/ЧМР | I142: 13.11.2019
A143: ВС | C143: Скважина №1 | D143: НС | E143: пгт Верх-Чебула / ул. 40 лет Победы / 1"б" | F143: концессионное соглашение | G143: соглашение | H143: 2019/ЧМР | I143: 13.11.2019
A144: ВС | C144: Скважина №1 | D144: НС | E144: п Акация / ул.Мира / 1а | F144: концессионное соглашение | G144: соглашение | H144: №7/ЯМО | I144: 28.09.2021
A145: ВС | C145: Скважина №1 | D145: НС | E145: п Ленинский / ул.Юбилейная / 2а | F145: концессионное соглашение | G145: соглашение | H145: №7/ЯМО | I145: 28.09.2021
A146: ВС | C146: Скважина №1 КМ-65 | D146: НС | E146: пгт Яшкино / р.Яя / - | F146: концессионное соглашение | G146: соглашение | H146: №7/ЯМО | I146: 28.09.2021
A147: ВС | C147: Скважина №1/2058 | D147: НС | E147: с Колмогорово / ул.Мирная / 108а | F147: концессионное соглашение | G147: соглашение | H147: №7/ЯМО | I147: 28.09.2021
A148: ВС | C148: Скважина №1/4076 | D148: НС | E148: с Пача / ул.Ленина / 2б | F148: концессионное соглашение | G148: соглашение | H148: №7/ЯМО | I148: 28.09.2021
A149: ВС | C149: Скважина №1/4077 | D149: НС | E149: с Пача / ул.Ленина / 2в | F149: концессионное соглашение | G149: соглашение | H149: №7/ЯМО | I149: 28.09.2021
A150: ВС | C150: Скважина №10 | D150: НС | E150: п Акация / ул.Мира / 21 | F150: концессионное соглашение | G150: соглашение | H150: №7/ЯМО | I150: 28.09.2021
A151: ВС | C151: Скважина №11/4130 | D151: НС | E151: пгт Яшкино / ул.Ленинская / 2а | F151: концессионное соглашение | G151: соглашение | H151: №7/ЯМО | I151: 28.09.2021
A152: ВС | C152: Скважина №1174 | D152: НС | E152: пгт Верх-Чебула / ул. 40 лет Победы / Ближе к двум домам по ул. Советская,1а | F152: концессионное соглашение | G152: соглашение | H152: 2019/ЧМР | I152: 13.11.2019
A153: ВС | C153: Скважина №12/4268 | D153: НС | E153: с Поломошное / ул.Бениваленского / 41а | F153: концессионное соглашение | G153: соглашение | H153: №7/ЯМО | I153: 28.09.2021
A154: ВС | C154: Скважина №12/4627 | D154: НС | E154: пгт Яшкино / ул.Фестивальная / 7а | F154: концессионное соглашение | G154: соглашение | H154: №7/ЯМО | I154: 28.09.2021
A155: ВС | C155: Скважина №13/2366 | D155: НС | E155: с Поломошное / ул.70-лет Октября / 2б | F155: концессионное соглашение | G155: соглашение | H155: №7/ЯМО | I155: 28.09.2021
A156: ВС | C156: Скважина №14/4290 | D156: НС | E156: с Поломошное / пер.Школьный / 2б | F156: концессионное соглашение | G156: соглашение | H156: №7/ЯМО | I156: 28.09.2021
A157: ВС | C157: Скважина №15/4692а | D157: НС | E157: п Акация / ул.Мира / 27 | F157: концессионное соглашение | G157: соглашение | H157: №7/ЯМО | I157: 28.09.2021
A158: ВС | C158: Скважина №16/433 | D158: НС | E158: п.ст Литвиново / ул.Больничная / 7а | F158: концессионное соглашение | G158: соглашение | H158: №7/ЯМО | I158: 28.09.2021
A159: ВС | C159: Скважина №2 КМ-66 | D159: НС | E159: пгт Яшкино / р.Яя / - | F159: концессионное соглашение | G159: соглашение | H159: №7/ЯМО | I159: 28.09.2021
A160: ВС | C160: Скважина №2 в пойме р. Кия | D160: НС | E160: с Чумай / ул Ленинская / 125 | F160: концессионное соглашение | G160: соглашение | H160: 2019/ЧМР | I160: 13.11.2019
A161: ВС | C161: Скважина №2/3837 | D161: НС | E161: с Красноселка / ул.Лесная / 1б | F161: концессионное соглашение | G161: соглашение | H161: №7/ЯМО | I161: 28.09.2021
A162: ВС | C162: Скважина №2/4076 | D162: НС | E162: с Колмогорово / ул.Мирная / 108б | F162: концессионное соглашение | G162: соглашение | H162: №7/ЯМО | I162: 28.09.2021
A163: ВС | C163: Скважина №20/3671 | D163: НС | E163: п.ст Литвиново / ул.Молодежная / 14а | F163: концессионное соглашение | G163: соглашение | H163: №7/ЯМО | I163: 28.09.2021
A164: ВС | C164: Скважина №2382 | D164: НС | E164: д Литвиново / ул.Центральная / 5а | F164: концессионное соглашение | G164: соглашение | H164: №7/ЯМО | I164: 28.09.2021
A165: ВС | C165: Скважина №2а | D165: НС | E165: г Ленинск-Кузнецкий / в 800 м (слева) на северо-запад от 261 км автомобильной дороги Новосибирск-Ленинск-Кузнецкий-Кемерово-Юрга / б/н | F165: концессионное соглашение | G165: соглашение | H165: 1/Л-К | I165: 14.11.2019
A166: ВС | C166: Скважина №3/1777 | D166: НС | E166: с Красноселка / ул.Лесная / 2б | F166: концессионное соглашение | G166: соглашение | H166: №7/ЯМО | I166: 28.09.2021
A167: ВС | C167: Скважина №3/2865 | D167: НС | E167: с Колмогорово / ул.Мирная / 63а | F167: концессионное соглашение | G167: соглашение | H167: №7/ЯМО | I167: 28.09.2021
A168: ВС | C168: Скважина №3588 | D168: НС | E168: д Емельяновка / ул. Центральная / за домом 28 | F168: аренда | G168: договор | H168: 6-11-23 | I168: 01.08.2023
A169: ВС | C169: Скважина №3661(1) | D169: НС | E169: д Зырянка / ул.Юбилейная / 6а | F169: концессионное соглашение | G169: соглашение | H169: №7/ЯМО | I169: 28.09.2021
A170: ВС | C170: Скважина №3662(4750) | D170: НС | E170: д Нижняя Тайменка / ул.Центральная / 7а | F170: концессионное соглашение | G170: соглашение | H170: №7/ЯМО | I170: 28.09.2021
A171: ВС | C171: Скважина №4027 | D171: НС | E171: п Дубровка / ул.Мира / 28а | F171: концессионное соглашение | G171: соглашение | H171: №7/ЯМО | I171: 28.09.2021
A172: ВС | C172: Скважина №429/2813 | D172: НС | E172: п.ст Литвиново / ул.Октябрьская / 31а | F172: концессионное соглашение | G172: соглашение | H172: №7/ЯМО | I172: 28.09.2021
A173: ВС | C173: Скважина №4а | D173: НС | E173: г Ленинск-Кузнецкий / в 950 м (справа) на северо-запад от 261 км автомобильной дороги Новосибирск-Ленинск-Кузнецкий-Кемерово-Юрга / б/н | F173: концессионное соглашение | G173: соглашение | H173: 1/Л-К | I173: 14.11.2019
A174: ВС | C174: Скважина №5 | D174: НС | E174: д Нижняя Тайменка / ул.Кирпичная / 5а | F174: концессионное соглашение | G174: соглашение | H174: №7/ЯМО | I174: 28.09.2021
A175: ВС | C175: Скважина №5 | D175: НС | E175: пгт Яшкино / ул.Железнодорожная / 1а | F175: концессионное соглашение | G175: соглашение | H175: №7/ЯМО | I175: 28.09.2021
A176: ВС | C176: Скважина №6/2865 | D176: НС | E176: с Колмогорово / ул.Ленинская / 9а | F176: концессионное соглашение | G176: соглашение | H176: №7/ЯМО | I176: 28.09.2021
A177: ВС | C177: Скважина №6/2865 | D177: НС | E177: с Колмогорово / ул.Ленинская / 9б | F177: концессионное соглашение | G177: соглашение | H177: №7/ЯМО | I177: 28.09.2021
A178: ВС | C178: Скважина №6а | D178: НС | E178: г Ленинск-Кузнецкий / в 1200 м на юг от водонапорной башни в пос.Озеровка по ул.Центральной / б/н | F178: концессионное соглашение | G178: соглашение | H178: 1/Л-К | I178: 14.11.2019
A179: ВС | C179: Скважина №7/9_54 | D179: НС | E179: пгт Яшкино / пер. Базарный / 11а | F179: концессионное соглашение | G179: соглашение | H179: №7/ЯМО | I179: 28.09.2021
A180: ВС | C180: Скважина №7а | D180: НС | E180: г Ленинск-Кузнецкий / за придорожной полосой автомобильной дороги Новосибирск-Ленинск-Кузнецкий-Кемерово-Юрга, 259 км+500м(справа) / корпус 9 | F180: концессионное соглашение | G180: соглашение | H180: 1/Л-К | I180: 14.11.2019
A181: ВС | C181: Скважина №8 | D181: НС | E181: д Крылово / ул.Набережная / 4а | F181: концессионное соглашение | G181: соглашение | H181: №7/ЯМО | I181: 28.09.2021
A182: ВС | C182: Скважина №8/4422 | D182: НС | E182: пгт Яшкино / ул.Коллективная / 34а | F182: концессионное соглашение | G182: соглашение | H182: №7/ЯМО | I182: 28.09.2021
A183: ВС | C183: Скважина №9/4546 | D183: НС | E183: пгт Яшкино / ул.Колхозная / 22а | F183: концессионное соглашение | G183: соглашение | H183: №7/ЯМО | I183: 28.09.2021
A184: ВС | C184: Скважина Никитинская 534 | D184: НС | E184: п Никитинский / ул. Никитинская / 2"б" | F184: концессионное соглашение | G184: соглашение | H184: 1/Л-К | I184: 14.11.2019
A185: ВС | C185: Скважина Никитинская 602 | D185: НС | E185: п Никитинский / ул. Никитинская / 2"в" сооружение 1 | F185: концессионное соглашение | G185: соглашение | H185: 1/Л-К | I185: 14.11.2019
A186: ВС | C186: Скважина б/н | D186: НС | E186: д Арышево / - / - | F186: аренда | G186: договор | H186: 6-11-23 | I186: 01.08.2023
A187: ВС | C187: Скважина б/н | D187: НС | E187: д Данковка / ул. Молодежная / - | F187: аренда | G187: договор | H187: 6-11-23 | I187: 01.08.2023
A188: ВС | C188: Скважина б/н | D188: НС | E188: д Марьевка / ул. Федорова / 12а | F188: аренда | G188: договор | H188: 6-11-23 | I188: 01.08.2023
A189: ВС | C189: Скважина б/н | D189: НС | E189: д Марьевка / ул. Школьная / 19а | F189: аренда | G189: договор | H189: 6-11-23 | I189: 01.08.2023
A190: ВС | C190: Скважина б/н | D190: НС | E190: д Ольговка / - / - | F190: аренда | G190: договор | H190: 6-11-23 | I190: 01.08.2023
A191: ВС | C191: Скважина б/н | D191: НС | E191: д Сергеевка / - / - | F191: аренда | G191: договор | H191: 6-11-23 | I191: 01.08.2023
A192: ВС | C192: Скважина б/н | D192: НС | E192: д Соболинка / ул. Таежная / около дома №55 | F192: аренда | G192: договор | H192: 6-11-23 | I192: 01.08.2023
A193: ВС | C193: Скважина б/н | D193: НС | E193: п Безлесный / - / - | F193: аренда | G193: договор | H193: 6-11-23 | I193: 01.08.2023
A194: ВС | C194: Скважина б/н | D194: НС | E194: п Воскресенка (Суровка) / ул. Весенняя / - | F194: аренда | G194: договор | H194: 6-11-23 | I194: 01.08.2023
A195: ВС | C195: Скважина б/н | D195: НС | E195: п Майский / входило в состав сельского поселения Безлесное Яйского муниципального района / - / - | F195: аренда | G195: договор | H195: 6-11-23 | I195: 01.08.2023
A196: ВС | C196: Скважина б/н | D196: НС | E196: п Новостройка / - / - | F196: аренда | G196: договор | H196: 6-11-23 | I196: 01.08.2023
A197: ВС | C197: Скважина б/н | D197: НС | E197: п Турат / ул. Речная / 2 | F197: аренда | G197: договор | H197: 6-11-23 | I197: 01.08.2023
A198: ВС | C198: Скважина б/н | D198: НС | E198: п Турат / ул. Лесная / 5 | F198: аренда | G198: договор | H198: 6-11-23 | I198: 01.08.2023
A199: ВС | C199: Скважина б/н | D199: НС | E199: п Чиндатский / ул. Возрождения / около дома №13 | F199: аренда | G199: договор | H199: 6-11-23 | I199: 01.08.2023
A200: ВС | C200: Скважина б/н | D200: НС | E200: п.ст Судженка / пер. Садовый / 6 | F200: аренда | G200: договор | H200: 6-11-23 | I200: 01.08.2023
... 224 more rows

Sheet DICTIONARIES (hidden)
A1: OPF_VALUE | B1: SUBSIDIARY_LIST | C1: DPR_LIST
A2: 1 10 51 | Полные товарищества | B2: Кемеровская ГРЭС
A3: 1 10 64 | Товарищества на вере (коммандитные товарищества) | B3: Кемеровская ТЭЦ | C3: 1-го водоподъёма г. Новокузнецк
A4: 1 22 47 | Публичные акционерные общества | B4: Филиал "Новосибирский" | C4: 1-го водоподъёма г. Прокопьевск
A5: 1 22 67 | Непубличные акционерные общества | C5: Оказание услуг на территории: Беловский муниципальный район (ОКТМО: 32601000) - эксплуатация имущества по договору аренды
A6: 1 23 00 | Общества с ограниченной ответственностью | C6: Оказание услуг на территории: Беловский муниципальный район (ОКТМО: 32601000) - эксплуатация имущества по концессионному соглашению
A7: 1 30 00 | Хозяйственные партнерства | C7: Оказание услуг на территории: Кемеровский муниципальный округ (ОКТМО: 32507000) - д Сухово, п Металлплощадка
A8: 1 41 53 | Сельскохозяйственные артели (колхозы) | C8: Оказание услуг на территории: Крапивинский муниципальный округ (ОКТМО: 32510000) - за исключением пгт Крапивинский, пгт Зеленогорский, с Борисово
A9: 1 41 54 | Рыболовецкие артели (колхозы) | C9: Оказание услуг на территории: Крапивинский муниципальный округ (ОКТМО: 32510000) - пгт Крапивинский, пгт Зеленогорский, с Борисово
A10: 1 41 55 | Кооперативные хозяйства (коопхозы) | C10: Оказание услуг на территории: Крапивинский муниципальный район (ОКТМО: 32610000)
A11: 1 42 00 | Производственные кооперативы (кроме сельскохозяйственных производственных кооперативов) | C11: Оказание услуг на территории: Крапивинский муниципальный район (ОКТМО: 32610000) - пгт Крапивинский, пгт Зеленогорский, с Борисово
A12: 1 53 00 | Крестьянские (фермерские) хозяйства | C12: Оказание услуг на территории: Крапивинский муниципальный район (ОКТМО: 32610000) - пгт Крапивинский, пгт Зеленогорский, с Борисово (за исключением ул. Санаторная, № 1, № 3, № 9, ГАУ КО "Санаторий Борисовский", ул. Юбилейная, № 16, ул. Кирова, № 79, ул. Геологов, № 1а)
A13: 1 90 00 | Прочие юридические лица, являющиеся коммерческими организациями | C13: Оказание услуг на территории: Крапивинский муниципальный район (ОКТМО: 32610000) - с Борисово (ул. Санаторная, № 1, № 3, № 9, ГАУ КО "Санаторий Борисовский", ул. Юбилейная, № 16, ул. Кирова, № 79, ул. Геологов, № 1а)
A14: 2 01 01 | Гаражные и гаражно-строительные кооперативы | C14: Оказание услуг на территории: Мариинский муниципальный район (ОКТМО: 32616000) - имущество, переданное по концессионному соглашению
A15: 2 01 02 | Жилищные или жилищно-строительные кооперативы | C15: Оказание услуг на территории: Прокопьевский муниципальный округ (ОКТМО: 32522000) - п Большая Талда
A16: 2 01 03 | Жилищные накопительные кооперативы | C16: Оказание услуг на территории: Прокопьевский муниципальный округ (ОКТМО: 32522000) - п Калачево
A17: 2 01 04 | Кредитные потребительские кооперативы | C17: Оказание услуг на территории: Прокопьевский муниципальный округ (ОКТМО: 32522000) - п Ясная Поляна
A18: 2 01 05 | Кредитные потребительские кооперативы граждан | C18: Оказание услуг на территории: Прокопьевский муниципальный округ (ОКТМО: 32522000) - пгт Краснобродский
A19: 2 01 06 | Кредитные кооперативы второго уровня | C19: Оказание услуг на территории: Прокопьевский муниципальный округ (ОКТМО: 32522000) - с Большая Талда
A20: 2 01 07 | Потребительские общества | C20: Оказание услуг на территории: Прокопьевский муниципальный район (ОКТМО: 32622000) - Большеталдинское, Калачевское, Сафоновское, Терентьевское (с Большая Талда, с Малая Талда, с Тихоновка, с Терентьевское, с Серп и Молот)
A21: 2 01 08 | Общества взаимного страхования | C21: Оказание услуг на территории: Прокопьевский муниципальный район (ОКТМО: 32622000) - Бурлаковское, Каменно-Ключевское, Кузбассское, Михайловское, Терентьевское (п Кольчигиз, п Чапаевский, п Ускатский), Трудармейское
A22: 2 01 09 | Сельскохозяйственные потребительские перерабатывающие кооперативы | C22: Оказание услуг на территории: Прокопьевский муниципальный район (ОКТМО: 32622000) - сельское поселение Яснополянское
A23: 2 01 10 | Сельскохозяйственные потребительские сбытовые (торговые) кооперативы | C23: Оказание услуг на территории: Промышленновский муниципальный район (ОКТМО: 32625000) - пгт Промышленная
A24: 2 01 11 | Сельскохозяйственные потребительские обслуживающие кооперативы | C24: Оказание услуг на территории: Топкинский муниципальный округ (ОКТМО: 32531000) - ГЛД Топкинская, квартал 43
A25: 2 01 12 | Сельскохозяйственные потребительские снабженческие кооперативы | C25: Оказание услуг на территории: Топкинский муниципальный округ (ОКТМО: 32531000) - г Топки
A26: 2 01 15 | Сельскохозяйственные потребительские животноводческие кооперативы | C26: Оказание услуг на территории: Топкинский муниципальный округ (ОКТМО: 32531000) - населенные пункты, за исключением ГЛД Топкинская
A27: 2 01 16 | Сельскохозяйственные потребительские растениеводческие кооперативы | C27: Оказание услуг на территории: Топкинский муниципальный район (ОКТМО: 32631000) - Топкинская Роща
A28: 2 01 21 | Фонды проката | C28: Оказание услуг на территории: Топкинский муниципальный район (ОКТМО: 32631000) - сельские поселения
A29: 2 02 01 | Политические партии | C29: Оказание услуг на территории: Яшкинский муниципальный округ (ОКТМО: 32546000) - имущество, переданное по договору аренды
A30: 2 02 02 | Профсоюзные организации | C30: Оказание услуг на территории: Яшкинский муниципальный округ (ОКТМО: 32546000) - имущество, переданное по концессионному соглашению
A31: 2 02 10 | Общественные движения | C31: Оказание услуг на территории: город Березовский (ОКТМО: 32710000) - г Березовский
A32: 2 02 11 | Органы общественной самодеятельности | C32: Оказание услуг на территории: город Березовский (ОКТМО: 32710000) - г Ленинск-Кузнецкий, г Полысаево
A33: 2 02 17 | Территориальные общественные самоуправления | C33: Оказание услуг на территории: город Кемерово (ОКТМО: 32701000) - г Кемерово
A34: 2 06 01 | Ассоциации (союзы) экономического взаимодействия субъектов Российской Федерации | C34: Оказание услуг на территории: город Кемерово (ОКТМО: 32701000) - жилые районы Кедровка, Промышленновский
A35: 2 06 03 | Советы муниципальных образований субъектов Российской Федерации | C35: Оказание услуг на территории: город Ленинск-Кузнецкий (ОКТМО: 32719000) - г Ленинск-Кузнецкий
A36: 2 06 04 | Союзы (ассоциации) кредитных кооперативов | C36: Оказание услуг на территории: город Ленинск-Кузнецкий (ОКТМО: 32719000) - г Ленинск-Кузнецкий, г Полысаево
A37: 2 06 05 | Союзы (ассоциации) кооперативов | C37: Оказание услуг на территории: город Новокузнецк (ОКТМО: 32731000) - посёлок Абагур-Лесной
A38: 2 06 06 | Союзы (ассоциации) общественных объединений | C38: Оказание услуг на территории: город Полысаево (ОКТМО: 32732000) - г Ленинск-Кузнецкий, г Полысаево
A39: 2 06 07 | Союзы (ассоциации) общин малочисленных народов | C39: Оказание услуг на территории: город Полысаево (ОКТМО: 32732000) - г Полысаево
A40: 2 06 08 | Союзы потребительских обществ | C40: Оказание услуг на территории: город Юрга (ОКТМО: 32749000) - питьевая вода для АО "ГУ ЖКХ"
A41: 2 06 09 | Адвокатские палаты | C41: питьевая вода 3-го водоподъёма ЭЦ
A42: 2 06 10 | Нотариальные палаты | C42: питьевая вода цеха ВС и ВО
A43: 2 06 11 | Торгово-промышленные палаты | C43: питьевая вода через систему водоснабжения цеха ВС и ВО
A44: 2 06 12 | Объединения работодателей | C44: техническая вода 2-го водоподъема ЭЦ
A45: 2 06 13 | Объединения фермерских хозяйств | C45: техническая вода цеха ВС и ВО
A46: 2 06 14 | Некоммерческие партнерства | C46: техническая осветленная вода цеха ВС и ВО
A47: 2 06 15 | Адвокатские бюро | C47: Оказание услуг на территории: Беловский муниципальный район (ОКТМО: 32601000) - имущество, переданное по договору аренды
A48: 2 06 16 | Коллегии адвокатов | C48: Оказание услуг на территории: Беловский муниципальный район (ОКТМО: 32601000) - имущество, переданное по концессионному соглашению
A49: 2 06 19 | Саморегулируемые организации | C49: Оказание услуг на территории: Мариинский муниципальный район (ОКТМО: 32616000) - водоотведение через очистные сооружения, находящихся по адресу: г Мариинск, ул. Дзержинского, 9
A50: 2 06 20 | Объединения (ассоциации и союзы) благотворительных организаций | C50: Оказание услуг на территории: Мариинский муниципальный район (ОКТМО: 32616000) - г Мариинск, ул. Дзержинского, 9
A51: 2 07 02 | Садоводческие или огороднические некоммерческие товарищества | C51: Оказание услуг на территории: Мариинский муниципальный район (ОКТМО: 32616000) - за исключением водоотведения через очистные сооружения, находящихся по адресу: г Мариинск, ул. Дзержинского, 9
A52: 2 07 16 | Товарищества собственников жилья | C52: Оказание услуг на территории: Новокузнецкий муниципальный район (ОКТМО: 32619000) - п Степной
A53: 2 11 00 | Казачьи общества, внесенные в государственный реестр казачьих обществ в Российской Федерации | C53: Оказание услуг на территории: Прокопьевский муниципальный район (ОКТМО: 32622000) - Большеталдинское, Калачевское, Сафоновское, Терентьевское (с Большая Талда, с Малая Талда, с Тихоновка, с Терентьевское)
A54: 2 12 00 | Общины коренных малочисленных народов Российской Федерации | C54: Оказание услуг на территории: Прокопьевский муниципальный район (ОКТМО: 32622000) - Бурлаковское, Каменно-Ключевское, Кузбассское, Михайловское, Терентьевское (п Кольчигиз, п Чапаевский, п Ускатский)
A55: 3 00 01 | Представительства юридических лиц | C55: Оказание услуг на территории: Топкинский муниципальный округ (ОКТМО: 32531000) - населенные пункты, за исключением ГЛД Топкинская, квартал 43
A56: 3 00 02 | Филиалы юридических лиц | C56: Оказание услуг на территории: Яшкинский муниципальный район (ОКТМО: 32646000) - пгт Яшкино
A57: 3 00 03 | Обособленные подразделения юридических лиц | C57: Оказание услуг на территории: Яшкинский муниципальный район (ОКТМО: 32646000) - сельские поселения
A58: 3 00 04 | Структурные подразделения обособленных подразделений юридических лиц | C58: Оказание услуг на территории: город Калтан (ОКТМО: 32715000) - г Калтан
A59: 3 00 05 | Паевые инвестиционные фонды | C59: Оказание услуг на территории: город Кемерово (ОКТМО: 32701000) - водоотведение сточных вод, отводимых потребителями в камеру гашения по ул. Волгоградской, 45 канализационного коллектора ДУ-1000 мм
A60: 3 00 06 | Простые товарищества | C60: Оказание услуг на территории: город Кемерово (ОКТМО: 32701000) - г Кемерово, кроме ул. Волгоградская
A61: 3 00 08 | Районные суды, городские суды, межрайонные суды (районные суды) | C61: Оказание услуг на территории: город Кемерово (ОКТМО: 32701000) - г Кемерово, ул. Волгоградская
A62: 4 00 01 | Межправительственные международные организации | C62: Оказание услуг на территории: город Новокузнецк (ОКТМО: 32731000) - водоотведение промышленно-ливневых сточных вод цеха ВС и ВО
A63: 4 00 02 | Неправительственные международные организации | C63: Оказание услуг на территории: город Осинники (ОКТМО: 32734000) - г Осинники
A64: 5 01 01 | Главы крестьянских (фермерских) хозяйств | C64: Оказание услуг на территории: город Полысаево (ОКТМО: 32732000) - транспортировка
A65: 5 01 02 | Индивидуальные предприниматели | C65: Оказание услуг на территории: город Юрга (ОКТМО: 32749000) - водоотведение для АО "ГУ ЖКХ"
A66: 5 02 01 | Адвокаты, учредившие адвокатский кабинет | C66: водоотведение промышленно-ливневых сточных сточных вод выпусков № 2, 3 ЭЦ
A67: 5 02 02 | Нотариусы, занимающиеся частной практикой | C67: водоотведение сточных вод через систему водоотведения ЭЦ
A68: 6 51 41 | Федеральные казенные предприятия | C68: водоотведение сточных вод через систему водоотведения цеха ВС и ВО
A69: 6 51 42 | Казенные предприятия субъектов Российской Федерации
A70: 6 51 43 | Муниципальные казенные предприятия
A71: 6 52 41 | Федеральные государственные унитарные предприятия
A72: 6 52 42 | Государственные унитарные предприятия субъектов Российской Федерации
A73: 6 52 43 | Муниципальные унитарные предприятия
A74: 7 04 01 | Благотворительные фонды
A75: 7 04 02 | Негосударственные пенсионные фонды
A76: 7 04 03 | Общественные фонды
A77: 7 04 04 | Экологические фонды
A78: 7 14 00 | Автономные некоммерческие организации
A79: 7 15 00 | Религиозные организации
A80: 7 16 01 | Государственные корпорации
A81: 7 16 02 | Государственные компании
A82: 7 16 10 | Отделения иностранных некоммерческих неправительственных организаций
A83: 7 51 01 | Федеральные государственные автономные учреждения
A84: 7 51 03 | Федеральные государственные бюджетные учреждения
A85: 7 51 04 | Федеральные государственные казенные учреждения
A86: 7 51 05 | Государственные внебюджетные фонды Российской Федерации
A87: 7 52 01 | Государственные автономные учреждения субъектов Российской Федерации
A88: 7 52 03 | Государственные бюджетные учреждения субъектов Российской Федерации
A89: 7 52 04 | Государственные казенные учреждения субъектов Российской Федерации
A90: 7 53 00 | Государственные академии наук
A91: 7 54 01 | Муниципальные автономные учреждения
A92: 7 54 03 | Муниципальные бюджетные учреждения
A93: 7 54 04 | Муниципальные казенные учреждения
A94: 7 55 00 | Частные учреждения
A95: 7 55 02 | Благотворительные учреждения
A96: 7 55 05 | Общественные учреждения

Sheet modfrmDPR (hidden)

Sheet modfrmSelectTemplate (hidden)

Sheet REESTR_MO (hidden)
A1: MR_NAME | B1: MO_NAME | C1: OKTMO_NAME | D1: MR_LIST
A2: Беловский муниципальный округ | B2: Беловский муниципальный округ | C2: 32501000 | D2: Беловский муниципальный округ | E2: MO_LIST_1
A3: Беловский муниципальный район | B3: Беловский муниципальный район | C3: 32601000 | D3: Беловский муниципальный район | E3: MO_LIST_2
A4: Беловский муниципальный район | B4: Сельское поселение Беловского муниципального района/Бековское | C4: 32601402 | D4: Гурьевский муниципальный округ | E4: MO_LIST_3
A5: Беловский муниципальный район | B5: Сельское поселение Беловского муниципального района/Евтинское | C5: 32601412 | D5: Гурьевский муниципальный район | E5: MO_LIST_4
A6: Беловский муниципальный район | B6: Сельское поселение Беловского муниципального района/Менчерепское | C6: 32601432 | D6: Ижморский муниципальный округ | E6: MO_LIST_5
A7: Беловский муниципальный район | B7: Сельское поселение Беловского муниципального района/Моховское | C7: 32601436 | D7: Ижморский муниципальный район | E7: MO_LIST_6
A8: Беловский муниципальный район | B8: Сельское поселение Беловского муниципального района/Новобачатское | C8: 32601414 | D8: Кемеровский муниципальный округ | E8: MO_LIST_7
A9: Беловский муниципальный район | B9: Сельское поселение Беловского муниципального района/Пермяковское | C9: 32601444 | D9: Кемеровский муниципальный район | E9: MO_LIST_8
A10: Беловский муниципальный район | B10: Сельское поселение Беловского муниципального района/Старобачатское | C10: 32601451 | D10: Крапивинский муниципальный округ | E10: MO_LIST_9
A11: Беловский муниципальный район | B11: Сельское поселение Беловского муниципального района/Старопестеревское | C11: 32601452 | D11: Крапивинский муниципальный район | E11: MO_LIST_10
A12: Гурьевский муниципальный округ | B12: Гурьевский муниципальный округ | C12: 32502000 | D12: Ленинск-Кузнецкий муниципальный округ | E12: MO_LIST_11
A13: Гурьевский муниципальный район | B13: Городское поселение Гурьевского муниципального района/город Гурьевск | C13: 32602101 | D13: Ленинск-Кузнецкий муниципальный район | E13: MO_LIST_12
A14: Гурьевский муниципальный район | B14: Городское поселение Гурьевского муниципального района/город Салаир | C14: 32602104 | D14: Мариинский муниципальный округ | E14: MO_LIST_13
A15: Гурьевский муниципальный район | B15: Гурьевский муниципальный район | C15: 32602000 | D15: Мариинский муниципальный район | E15: MO_LIST_14
A16: Гурьевский муниципальный район | B16: Сельское поселение Гурьевского муниципального района/Горскинское | C16: 32602404 | D16: Новокузнецкий муниципальный округ | E16: MO_LIST_15
A17: Гурьевский муниципальный район | B17: Сельское поселение Гурьевского муниципального района/Малосалаирское | C17: 32602420 | D17: Новокузнецкий муниципальный район | E17: MO_LIST_16
A18: Гурьевский муниципальный район | B18: Сельское поселение Гурьевского муниципального района/Новопестеревское | C18: 32602428 | D18: Прокопьевский муниципальный округ | E18: MO_LIST_17
A19: Гурьевский муниципальный район | B19: Сельское поселение Гурьевского муниципального района/Раздольное | C19: 32602430 | D19: Прокопьевский муниципальный район | E19: MO_LIST_18
A20: Гурьевский муниципальный район | B20: Сельское поселение Гурьевского муниципального района/Сосновское | C20: 32602435 | D20: Промышленновский муниципальный округ | E20: MO_LIST_19
A21: Гурьевский муниципальный район | B21: Сельское поселение Гурьевского муниципального района/Ур-Бедаревское | C21: 32602450 | D21: Промышленновский муниципальный район | E21: MO_LIST_20
A22: Гурьевский муниципальный район | B22: Сельское поселение Гурьевского муниципального района/Урское | C22: 32602455 | D22: Таштагольский муниципальный район | E22: MO_LIST_21
A23: Ижморский муниципальный округ | B23: Ижморский муниципальный округ | C23: 32504000 | D23: Тисульский муниципальный округ | E23: MO_LIST_22
A24: Ижморский муниципальный район | B24: Городское поселение Ижморского муниципального района/п.г.т. Ижморский | C24: 32604151 | D24: Тисульский муниципальный район | E24: MO_LIST_23
A25: Ижморский муниципальный район | B25: Ижморский муниципальный район | C25: 32604000 | D25: Топкинский муниципальный округ | E25: MO_LIST_24
A26: Ижморский муниципальный район | B26: Сельское поселение Ижморского муниципального района/Колыонское | C26: 32604416 | D26: Топкинский муниципальный район | E26: MO_LIST_25
A27: Ижморский муниципальный район | B27: Сельское поселение Ижморского муниципального района/Красноярское | C27: 32604420 | D27: Тяжинский муниципальный округ | E27: MO_LIST_26
A28: Ижморский муниципальный район | B28: Сельское поселение Ижморского муниципального района/Постниковское | C28: 32604424 | D28: Тяжинский муниципальный район | E28: MO_LIST_27
A29: Ижморский муниципальный район | B29: Сельское поселение Ижморского муниципального района/Святославское | C29: 32604428 | D29: Чебулинский муниципальный округ | E29: MO_LIST_28
A30: Ижморский муниципальный район | B30: Сельское поселение Ижморского муниципального района/Симбирское | C30: 32604432 | D30: Чебулинский муниципальный район | E30: MO_LIST_29
A31: Ижморский муниципальный район | B31: Сельское поселение Ижморского муниципального района/Троицкое | C31: 32604436 | D31: Юргинский муниципальный округ | E31: MO_LIST_30
A32: Кемеровский муниципальный округ | B32: Кемеровский муниципальный округ | C32: 32507000 | D32: Юргинский муниципальный район | E32: MO_LIST_31
A33: Кемеровский муниципальный район | B33: Кемеровский муниципальный район | C33: 32607000 | D33: Яйский муниципальный округ | E33: MO_LIST_32
A34: Кемеровский муниципальный район | B34: Сельское поселение Кемеровского муниципального района/Арсентьевское | C34: 32607404 | D34: Яйский муниципальный район | E34: MO_LIST_33
A35: Кемеровский муниципальный район | B35: Сельское поселение Кемеровского муниципального района/Береговое | C35: 32607408 | D35: Яшкинский муниципальный округ | E35: MO_LIST_34
A36: Кемеровский муниципальный район | B36: Сельское поселение Кемеровского муниципального района/Березовское | C36: 32607412 | D36: Яшкинский муниципальный район | E36: MO_LIST_35
A37: Кемеровский муниципальный район | B37: Сельское поселение Кемеровского муниципального района/Елыкаевское | C37: 32607424 | D37: город Анжеро-Судженск | E37: MO_LIST_36
A38: Кемеровский муниципальный район | B38: Сельское поселение Кемеровского муниципального района/Звездное | C38: 32607426 | D38: город Белово | E38: MO_LIST_37
A39: Кемеровский муниципальный район | B39: Сельское поселение Кемеровского муниципального района/Суховское | C39: 32607441 | D39: город Березовский | E39: MO_LIST_38
A40: Кемеровский муниципальный район | B40: Сельское поселение Кемеровского муниципального района/Щегловское | C40: 32607416 | D40: город Калтан | E40: MO_LIST_39
A41: Кемеровский муниципальный район | B41: Сельское поселение Кемеровского муниципального района/Ягуновское | C41: 32607444 | D41: город Кемерово | E41: MO_LIST_40
A42: Кемеровский муниципальный район | B42: Сельское поселение Кемеровского муниципального района/Ясногорское | C42: 32607428 | D42: город Киселевск | E42: MO_LIST_41
A43: Крапивинский муниципальный округ | B43: Крапивинский муниципальный округ | C43: 32510000 | D43: город Ленинск-Кузнецкий | E43: MO_LIST_42
A44: Крапивинский муниципальный район | B44: Городское поселение Крапивинского муниципального района/п.г.т. Зеленогорский | C44: 32610153 | D44: город Междуреченск | E44: MO_LIST_43
A45: Крапивинский муниципальный район | B45: Городское поселение Крапивинского муниципального района/п.г.т. Крапивинский | C45: 32610151 | D45: город Мыски | E45: MO_LIST_44
A46: Крапивинский муниципальный район | B46: Крапивинский муниципальный район | C46: 32610000 | D46: город Новокузнецк | E46: MO_LIST_45
A47: Крапивинский муниципальный район | B47: Сельское поселение Крапивинского муниципального района/Банновское | C47: 32610404 | D47: город Осинники | E47: MO_LIST_46
A48: Крапивинский муниципальный район | B48: Сельское поселение Крапивинского муниципального района/Барачатское | C48: 32610408 | D48: город Полысаево | E48: MO_LIST_47
A49: Крапивинский муниципальный район | B49: Сельское поселение Крапивинского муниципального района/Борисовское | C49: 32610412 | D49: город Прокопьевск | E49: MO_LIST_48
A50: Крапивинский муниципальный район | B50: Сельское поселение Крапивинского муниципального района/Зеленовское | C50: 32610416 | D50: город Тайга | E50: MO_LIST_49
A51: Крапивинский муниципальный район | B51: Сельское поселение Крапивинского муниципального района/Каменское | C51: 32610420 | D51: город Юрга | E51: MO_LIST_50
A52: Крапивинский муниципальный район | B52: Сельское поселение Крапивинского муниципального района/Крапивинское | C52: 32610424 | D52: поселок городского типа Краснобродский | E52: MO_LIST_51
A53: Крапивинский муниципальный район | B53: Сельское поселение Крапивинского муниципального района/Мельковское | C53: 32610428
A54: Крапивинский муниципальный район | B54: Сельское поселение Крапивинского муниципального района/Тарадановское | C54: 32610436
A55: Крапивинский муниципальный район | B55: Сельское поселение Крапивинского муниципального района/Шевелевское | C55: 32610446
A56: Ленинск-Кузнецкий муниципальный округ | B56: Ленинск-Кузнецкий муниципальный округ | C56: 32513000
A57: Ленинск-Кузнецкий муниципальный район | B57: Ленинск-Кузнецкий муниципальный район | C57: 32613000
A58: Ленинск-Кузнецкий муниципальный район | B58: Сельское поселение Ленинск-Кузнецкого муниципального района/Горняцкое | C58: 32613412
A59: Ленинск-Кузнецкий муниципальный район | B59: Сельское поселение Ленинск-Кузнецкого муниципального района/Демьяновское | C59: 32613416
A60: Ленинск-Кузнецкий муниципальный район | B60: Сельское поселение Ленинск-Кузнецкого муниципального района/Драченинское | C60: 32613420
A61: Ленинск-Кузнецкий муниципальный район | B61: Сельское поселение Ленинск-Кузнецкого муниципального района/Краснинское | C61: 32613432
A62: Ленинск-Кузнецкий муниципальный район | B62: Сельское поселение Ленинск-Кузнецкого муниципального района/Подгорновское | C62: 32613448
A63: Ленинск-Кузнецкий муниципальный район | B63: Сельское поселение Ленинск-Кузнецкого муниципального района/Чкаловское | C63: 32613452
A64: Ленинск-Кузнецкий муниципальный район | B64: Сельское поселение Ленинск-Кузнецкого муниципального района/Чусовитинское | C64: 32613456
A65: Ленинск-Кузнецкий муниципальный район | B65: Сельское поселение Ленинск-Кузнецкого муниципального района/Шабановское | C65: 32613460
A66: Мариинский муниципальный округ | B66: Мариинский муниципальный округ | C66: 32516000
A67: Мариинский муниципальный район | B67: Городское поселение Мариинского муниципального района/город Мариинск | C67: 32616101
A68: Мариинский муниципальный район | B68: Мариинский муниципальный район | C68: 32616000
A69: Мариинский муниципальный район | B69: Сельское поселение Мариинского муниципального района/Белогородское | C69: 32616404
A70: Мариинский муниципальный район | B70: Сельское поселение Мариинского муниципального района/Благовещенское | C70: 32616408
A71: Мариинский муниципальный район | B71: Сельское поселение Мариинского муниципального района/Большеантибесское | C71: 32616412
A72: Мариинский муниципальный район | B72: Сельское поселение Мариинского муниципального района/Калининское | C72: 32616414
A73: Мариинский муниципальный район | B73: Сельское поселение Мариинского муниципального района/Кийское | C73: 32616415
A74: Мариинский муниципальный район | B74: Сельское поселение Мариинского муниципального района/Красноорловское | C74: 32616416
A75: Мариинский муниципальный район | B75: Сельское поселение Мариинского муниципального района/Лебяжье | C75: 32616420
A76: Мариинский муниципальный район | B76: Сельское поселение Мариинского муниципального района/Малопесчанское | C76: 32616424
A77: Мариинский муниципальный район | B77: Сельское поселение Мариинского муниципального района/Николаевское | C77: 32616428
A78: Мариинский муниципальный район | B78: Сельское поселение Мариинского муниципального района/Первомайское | C78: 32616440
A79: Мариинский муниципальный район | B79: Сельское поселение Мариинского муниципального района/Сусловское | C79: 32616444
A80: Мариинский муниципальный район | B80: Сельское поселение Мариинского муниципального района/Таежно-Михайловское | C80: 32616448
A81: Новокузнецкий муниципальный округ | B81: Новокузнецкий муниципальный округ | C81: 32519000
A82: Новокузнецкий муниципальный район | B82: Безруковское | C82: 32619408
A83: Новокузнецкий муниципальный район | B83: Бунгурское | C83: 32619416
A84: Новокузнецкий муниципальный район | B84: Еланское | C84: 32619420
A85: Новокузнецкий муниципальный район | B85: Ильинское | C85: 32619424
A86: Новокузнецкий муниципальный район | B86: Куртуковское | C86: 32619434
A87: Новокузнецкий муниципальный район | B87: Металлургское | C87: 32619440
A88: Новокузнецкий муниципальный район | B88: Новокузнецкий муниципальный район | C88: 32619000
A89: Новокузнецкий муниципальный район | B89: Орловское | C89: 32619446
A90: Новокузнецкий муниципальный район | B90: Сары-Чумышское | C90: 32619450
A91: Новокузнецкий муниципальный район | B91: Сельское поселение Новокузнецкого муниципального района/Загорское | C91: 32619422
A92: Новокузнецкий муниципальный район | B92: Сельское поселение Новокузнецкого муниципального района/Загорское | C92: 32619428
A93: Новокузнецкий муниципальный район | B93: Сельское поселение Новокузнецкого муниципального района/Красулинское | C93: 32619432
A94: Новокузнецкий муниципальный район | B94: Сельское поселение Новокузнецкого муниципального района/Кузедеевское | C94: 32619433
A95: Новокузнецкий муниципальный район | B95: Сельское поселение Новокузнецкого муниципального района/Сосновское | C95: 32619460
A96: Новокузнецкий муниципальный район | B96: Сельское поселение Новокузнецкого муниципального района/Терсинское | C96: 32619468
A97: Новокузнецкий муниципальный район | B97: Сельское поселение Новокузнецкого муниципального района/Терсинское | C97: 32619470
A98: Новокузнецкий муниципальный район | B98: Сельское поселение Новокузнецкого муниципального района/Центральное | C98: 32619404
A99: Новокузнецкий муниципальный район | B99: Сельское поселение Новокузнецкого муниципального района/Центральное | C99: 32619473
A100: Новокузнецкий муниципальный район | B100: Сидоровское | C100: 32619456
A101: Прокопьевский муниципальный округ | B101: Прокопьевский муниципальный округ | C101: 32522000
A102: Прокопьевский муниципальный район | B102: Прокопьевский муниципальный район | C102: 32622000
A103: Прокопьевский муниципальный район | B103: Сельское поселение Прокопьевского муниципального района/Большеталдинское | C103: 32622404
A104: Прокопьевский муниципальный район | B104: Сельское поселение Прокопьевского муниципального района/Бурлаковское | C104: 32622408
A105: Прокопьевский муниципальный район | B105: Сельское поселение Прокопьевского муниципального района/Калачевское | C105: 32622420
A106: Прокопьевский муниципальный район | B106: Сельское поселение Прокопьевского муниципального района/Каменно-Ключевское | C106: 32622424
A107: Прокопьевский муниципальный район | B107: Сельское поселение Прокопьевского муниципального района/Кузбасское | C107: 32622436
A108: Прокопьевский муниципальный район | B108: Сельское поселение Прокопьевского муниципального района/Михайловское | C108: 32622444
A109: Прокопьевский муниципальный район | B109: Сельское поселение Прокопьевского муниципального района/Сафоновское | C109: 32622448
A110: Прокопьевский муниципальный район | B110: Сельское поселение Прокопьевского муниципального района/Терентьевское | C110: 32622452
A111: Прокопьевский муниципальный район | B111: Сельское поселение Прокопьевского муниципального района/Трудармейское | C111: 32622454
A112: Прокопьевский муниципальный район | B112: Сельское поселение Прокопьевского муниципального района/Яснополянское | C112: 32622460
A113: Промышленновский муниципальный округ | B113: Промышленновский муниципальный округ | C113: 32525000
A114: Промышленновский муниципальный район | B114: Городское поселение Промышленновского муниципального района/п.г.т. Промышленная | C114: 32625151
A115: Промышленновский муниципальный район | B115: Промышленновский муниципальный район | C115: 32625000
A116: Промышленновский муниципальный район | B116: Сельское поселение Промышленновского муниципальног района/Вагановское | C116: 32625408
A117: Промышленновский муниципальный район | B117: Сельское поселение Промышленновского муниципального района/Калинкинское | C117: 32625414
A118: Промышленновский муниципальный район | B118: Сельское поселение Промышленновского муниципального района/Лебедевское | C118: 32625416
A119: Промышленновский муниципальный район | B119: Сельское поселение Промышленновского муниципального района/Окунёвское | C119: 32625424
A120: Промышленновский муниципальный район | B120: Сельское поселение Промышленновского муниципального района/Падунское | C120: 32625432
A121: Промышленновский муниципальный район | B121: Сельское поселение Промышленновского муниципального района/Плотниковское | C121: 32625428
A122: Промышленновский муниципальный район | B122: Сельское поселение Промышленновского муниципального района/Пушкинское | C122: 32625436
A123: Промышленновский муниципальный район | B123: Сельское поселение Промышленновского муниципального района/Тарабаринское | C123: 32625440
A124: Промышленновский муниципальный район | B124: Сельское поселение Промышленновского муниципального района/Тарасовское | C124: 32625444
A125: Промышленновский муниципальный район | B125: Сельское поселение Промышленновского муниципального района/Титовское | C125: 32625448
A126: Таштагольский муниципальный район | B126: Городское поселение Таштагольского муниципального района/город Таштагол | C126: 32627101
A127: Таштагольский муниципальный район | B127: Городское поселение Таштагольского муниципального района/п.г.т. Каз | C127: 32627154
A128: Таштагольский муниципальный район | B128: Городское поселение Таштагольского муниципального района/п.г.т. Мундыбаш | C128: 32627157
A129: Таштагольский муниципальный район | B129: Городское поселение Таштагольского муниципального района/п.г.т. Спасск | C129: 32627162
A130: Таштагольский муниципальный район | B130: Городское поселение Таштагольского муниципального района/п.г.т. Темиртау | C130: 32627165
A131: Таштагольский муниципальный район | B131: Городское поселение Таштагольского муниципального района/п.г.т. Шерегеш | C131: 32627175
A132: Таштагольский муниципальный район | B132: Сельское поселение Таштагольского муниципального района/Каларское | C132: 32627413
A133: Таштагольский муниципальный район | B133: Сельское поселение Таштагольского муниципального района/Коуринское | C133: 32627417
A134: Таштагольский муниципальный район | B134: Сельское поселение Таштагольского муниципального района/Кызыл-Шорское | C134: 32627420
A135: Таштагольский муниципальный район | B135: Сельское поселение Таштагольского муниципального района/Усть-Кабырзинское | C135: 32627438
A136: Таштагольский муниципальный район | B136: Таштагольский муниципальный район | C136: 32627000
A137: Тисульский муниципальный округ | B137: Тисульский муниципальный округ | C137: 32528000
A138: Тисульский муниципальный район | B138: Городское поселение Тисульского муниципального района/п.г.т. Белогорск | C138: 32628154
A139: Тисульский муниципальный район | B139: Городское поселение Тисульского муниципального района/п.г.т. Тисуль | C139: 32628151
A140: Тисульский муниципальный район | B140: Городское поселение Тисульского муниципального района/п.г.т.Комсомольск | C140: 32628160
A141: Тисульский муниципальный район | B141: Сельское поселение Тисульского муниципального района/Берикульское | C141: 32628402
A142: Тисульский муниципальный район | B142: Сельское поселение Тисульского муниципального района/Большебарандатское | C142: 32628408
A143: Тисульский муниципальный район | B143: Сельское поселение Тисульского муниципального района/Куликовское | C143: 32628412
A144: Тисульский муниципальный район | B144: Сельское поселение Тисульского муниципального района/Листвянское | C144: 32628415
A145: Тисульский муниципальный район | B145: Сельское поселение Тисульского муниципального района/Полуторниковское | C145: 32628420
A146: Тисульский муниципальный район | B146: Сельское поселение Тисульского муниципального района/Серебряковское | C146: 32628418
A147: Тисульский муниципальный район | B147: Сельское поселение Тисульского муниципального района/Тамбарское | C147: 32628424
A148: Тисульский муниципальный район | B148: Сельское поселение Тисульского муниципального района/Третьяковское | C148: 32628428
A149: Тисульский муниципальный район | B149: Сельское поселение Тисульского муниципального района/Утинское | C149: 32628436
A150: Тисульский муниципальный район | B150: Сельское поселение Тисульского муниципального района/Центральное | C150: 32628440
A151: Тисульский муниципальный район | B151: Тисульский муниципальный район | C151: 32628000
A152: Топкинский муниципальный округ | B152: Топкинский муниципальный округ | C152: 32531000
A153: Топкинский муниципальный район | B153: Городское поселение Топкинского муниципального района/город Топки | C153: 32631101
A154: Топкинский муниципальный район | B154: Сельское поселение Топкинского муниципального района/Верх-Падунское | C154: 32631404
A155: Топкинский муниципальный район | B155: Сельское поселение Топкинского муниципального района/Зарубинское | C155: 32631412
A156: Топкинский муниципальный район | B156: Сельское поселение Топкинского муниципального района/Лукошкинское | C156: 32631416
A157: Топкинский муниципальный район | B157: Сельское поселение Топкинского муниципального района/Осиногривское | C157: 32631420
A158: Топкинский муниципальный район | B158: Сельское поселение Топкинского муниципального района/Соломинское | C158: 32631424
A159: Топкинский муниципальный район | B159: Сельское поселение Топкинского муниципального района/Топкинское | C159: 32631428
A160: Топкинский муниципальный район | B160: Сельское поселение Топкинского муниципального района/Усть-Сосновское | C160: 32631432
A161: Топкинский муниципальный район | B161: Сельское поселение Топкинского муниципального района/Хорошеборское | C161: 32631436
A162: Топкинский муниципальный район | B162: Сельское поселение Топкинского муниципального района/Черемичкинское | C162: 32631440
A163: Топкинский муниципальный район | B163: Сельское поселение Топкинского муниципального района/Шишинское | C163: 32631444
A164: Топкинский муниципальный район | B164: Сельское поселение Топкинского муниципального района/Юрьевское | C164: 32631448
A165: Топкинский муниципальный район | B165: Топкинский муниципальный район | C165: 32631000
A166: Тяжинский муниципальный округ | B166: Тяжинский муниципальный округ | C166: 32534000
A167: Тяжинский муниципальный район | B167: Городское поселение Тяжинского муниципального района/п.г.т. Итатский | C167: 32634154
A168: Тяжинский муниципальный район | B168: Городское поселение Тяжинского муниципального района/п.г.т. Тяжинский | C168: 32634151
A169: Тяжинский муниципальный район | B169: Сельское поселение Тяжинского муниципального района/Акимо-Анненское | C169: 32634412
A170: Тяжинский муниципальный район | B170: Сельское поселение Тяжинского муниципального района/Кубитетское | C170: 32634404
A171: Тяжинский муниципальный район | B171: Сельское поселение Тяжинского муниципального района/Листвянское | C171: 32634408
A172: Тяжинский муниципальный район | B172: Сельское поселение Тяжинского муниципального района/Нововосточное | C172: 32634424
A173: Тяжинский муниципальный район | B173: Сельское поселение Тяжинского муниципального района/Новоподзорновское | C173: 32634414
A174: Тяжинский муниципальный район | B174: Сельское поселение Тяжинского муниципального района/Новопокровское | C174: 32634416
A175: Тяжинский муниципальный район | B175: Сельское поселение Тяжинского муниципального района/Преображенское | C175: 32634420
A176: Тяжинский муниципальный район | B176: Сельское поселение Тяжинского муниципального района/Ступишинское | C176: 32634428
A177: Тяжинский муниципальный район | B177: Сельское поселение Тяжинского муниципального района/Тисульское | C177: 32634432
A178: Тяжинский муниципальный район | B178: Сельское поселение Тяжинского муниципального района/Чулымское | C178: 32634436
A179: Тяжинский муниципальный район | B179: Тяжинский муниципальный район | C179: 32634000
A180: Чебулинский муниципальный округ | B180: Чебулинский муниципальный округ | C180: 32537000
A181: Чебулинский муниципальный район | B181: Городское поселение Чебулинского муниципального района/п.г.т. Верх-Чебула | C181: 32637151
A182: Чебулинский муниципальный район | B182: Сельское поселение Чебулинского муниципального района/Алчедатское | C182: 32637404
A183: Чебулинский муниципальный район | B183: Сельское поселение Чебулинского муниципального района/Ивановское | C183: 32637412
A184: Чебулинский муниципальный район | B184: Сельское поселение Чебулинского муниципального района/Усманское | C184: 32637420
A185: Чебулинский муниципальный район | B185: Сельское поселение Чебулинского муниципального района/Усть-Сертинское | C185: 32637424
A186: Чебулинский муниципальный район | B186: Сельское поселение Чебулинского муниципального района/Усть-Чебулинское | C186: 32637428
A187: Чебулинский муниципальный район | B187: Сельское поселение Чебулинского муниципального района/Чумайское | C187: 32637432
A188: Чебулинский муниципальный район | B188: Чебулинский муниципальный район | C188: 32637000
A189: Юргинский муниципальный округ | B189: Юргинский муниципальный округ | C189: 32540000
A190: Юргинский муниципальный район | B190: Сельское поселение Юргинского муниципального района/Арлюкское | C190: 32640404
A191: Юргинский муниципальный район | B191: Сельское поселение Юргинского муниципального района/Зеледеевское | C191: 32640408
A192: Юргинский муниципальный район | B192: Сельское поселение Юргинского муниципального района/Лебяжье-Асановское | C192: 32640412
A193: Юргинский муниципальный район | B193: Сельское поселение Юргинского муниципального района/Мальцевское | C193: 32640416
A194: Юргинский муниципальный район | B194: Сельское поселение Юргинского муниципального района/Новоромановское | C194: 32640420
A195: Юргинский муниципальный район | B195: Сельское поселение Юргинского муниципального района/Попереченское | C195: 32640424
A196: Юргинский муниципальный район | B196: Сельское поселение Юргинского муниципального района/Проскоковское | C196: 32640428
A197: Юргинский муниципальный район | B197: Сельское поселение Юргинского муниципального района/Тальское | C197: 32640432
A198: Юргинский муниципальный район | B198: Сельское поселение Юргинского муниципального района/Юргинское | C198: 32640436
A199: Юргинский муниципальный район | B199: Юргинский муниципальный район | C199: 32640000
A200: Яйский муниципальный округ | B200: Яйский муниципальный округ | C200: 32543000
... 40 more rows

Sheet REESTR_ORG (hidden)
A1: № | B1: REGION_ID | C1: REGION_NAME | D1: RST_ORG_ID | E1: ORG_NAME | F1: INN_NAME | G1: KPP_NAME | H1: ORG_START_DATE | I1: ORG_END_DATE
A2: 1 | B2: 2655 | C2: Кемеровская область | D2: 26560525 | E2: АО "ГУ ЖКХ" | F2: 5116000922 | G2: 511601001 | H2: 13-05-2009 00:00:00 | J2: VS
A3: 2 | B3: 2655 | C3: Кемеровская область | D3: 30401246 | E3: АО "ГУ ЖКХ" | F3: 5116000922 | G3: 540645001 | J3: VS
A4: 3 | B4: 2655 | C4: Кемеровская область | D4: 26356953 | E4: АО "ЕВРАЗ ЗСМК" | F4: 4218000951 | G4: 421801001 | H4: 30-11-1992 00:00:00 | J4: VS
A5: 4 | B5: 2655 | C5: Кемеровская область | D5: 28092960 | E5: АО "КФ" ОСП "Юргинский ферросплавный завод" | F5: 4216001565 | G5: 422101001 | H5: 19-02-2013 00:00:00 | J5: VS
A6: 5 | B6: 2655 | C6: Кемеровская область | D6: 27804990 | E6: АО "Кемеровская генерация" | F6: 4205243192 | G6: 420501001 | H6: 28-04-2012 00:00:00 | J6: VS
A7: 6 | B7: 2655 | C7: Кемеровская область | D7: 28048296 | E7: АО "Кузбассэнерго" | F7: 4200000333 | G7: 420501001 | H7: 30-12-1993 00:00:00 | J7: VS
A8: 7 | B8: 2655 | C8: Кемеровская область | D8: 27804826 | E8: АО "Кузнецкая ТЭЦ" | F8: 4205243178 | G8: 420501001 | H8: 28-04-2012 00:00:00 | J8: VS
A9: 8 | B9: 2655 | C9: Кемеровская область | D9: 26356963 | E9: АО "ПО Водоканал" | F9: 4223030694 | G9: 422301001 | H9: 06-11-2002 00:00:00 | J9: VS
A10: 9 | B10: 2655 | C10: Кемеровская область | D10: 26322889 | E10: АО "РУСАЛ Новокузнецкий Алюминиевый Завод" | F10: 4221000535 | G10: 997550001 | H10: 25-09-2002 00:00:00 | J10: VS
A11: 10 | B11: 2655 | C11: Кемеровская область | D11: 27820148 | E11: АО "СУЭК-Кузбасс" | F11: 4212024138 | G11: 424950001 | H11: 07-05-2007 00:00:00 | J11: VS
A12: 11 | B12: 2655 | C12: Кемеровская область | D12: 26427918 | E12: АО "Славино" | F12: 4238012426 | G12: 423801001 | H12: 17-12-2002 00:00:00 | I12: 16-11-2022 00:00:00 | J12: VS
A13: 12 | B13: 2655 | C13: Кемеровская область | D13: 26356905 | E13: АО "Теплоэнерго" | F13: 4205049011 | G13: 420501001 | H13: 30-04-2003 00:00:00 | J13: VS
A14: 13 | B14: 2655 | C14: Кемеровская область | D14: 26427149 | E14: АО "Транснефть-Западная Сибирь" | F14: 5502020634 | G14: 546050001 | J14: VS
A15: 14 | B15: 2655 | C15: Кемеровская область | D15: 26356936 | E15: АО "Энергетическая компания" | F15: 4212127479 | G15: 421201001 | H15: 20-09-2004 00:00:00 | J15: VS
A16: 15 | B16: 2655 | C16: Кемеровская область | D16: 26567321 | E16: АО «Мариинский ЛВЗ» | F16: 4213003050 | G16: 421301001 | H16: 25-12-2002 00:00:00 | J16: VS
A17: 16 | B17: 2655 | C17: Кемеровская область | D17: 27295125 | E17: АО ЦОФ "Берёзовская" | F17: 4203001617 | G17: 424950001 | H17: 25-07-2002 00:00:00 | J17: VS
A18: 17 | B18: 2655 | C18: Кемеровская область | D18: 28976938 | E18: Анжеро-Судженская ЛПДС филиала "Новосибирское РНУ" АО "Транснефть - Западная Сибирь" | F18: 5502020634 | G18: 424603001 | H18: 15-06-1994 00:00:00 | J18: VS
A19: 18 | B19: 2655 | C19: Кемеровская область | D19: 26824672 | E19: Ачинская дистанция гражданских сооружений - СП КЖД - филиала ОАО "РЖД" | F19: 7708503727 | G19: 421301001 | J19: VS
A20: 19 | B20: 2655 | C20: Кемеровская область | D20: 31359053 | E20: ИП Чайковский В.Л. | F20: 420300472840 | G20: отсутствует | H20: 17-10-2014 00:00:00 | J20: VS
A21: 20 | B21: 2655 | C21: Кемеровская область | D21: 28823439 | E21: Индивидуальный предприниматель Зубарева Евгения Анатольевна | F21: 420508603852 | G21: отсутствует | H21: 16-03-2009 00:00:00 | J21: VS
A22: 21 | B22: 2655 | C22: Кемеровская область | D22: 26322867 | E22: КАО "Азот" | F22: 4205000908 | G22: 997550001 | H22: 11-07-2001 00:00:00 | J22: VS
A23: 22 | B23: 2655 | C23: Кемеровская область | D23: 26824651 | E23: Красноярская дирекция по тепловодоснабжению | F23: 7708503727 | G23: 246645014 | J23: VS
A24: 23 | B24: 2655 | C24: Кемеровская область | D24: 26824396 | E24: Кузбасский территориальный участок ЗСД по тепловодоснабжению - СП ЦД по тепловодоснабжению - филиал ОАО "РЖД" | F24: 7708503727 | G24: 540775040 | J24: VS
A25: 24 | B25: 2655 | C25: Кемеровская область | D25: 31159489 | E25: МКП "Центральная ТЭЦ" | F25: 4220039385 | G25: 422001001 | H25: 06-04-2009 00:00:00 | I25: 01-01-2021 00:00:00 | J25: VS
A26: 25 | B26: 2655 | C26: Кемеровская область | D26: 31232672 | E26: МКП "ВКХ" | F26: 4217191774 | G26: 421701001 | H26: 15-11-2018 00:00:00 | J26: VS
A27: 26 | B27: 2655 | C27: Кемеровская область | D27: 31387447 | E27: МКП "Водоканал" ТМР | F27: 4252015570 | G27: 425201001 | H27: 12-08-2019 00:00:00 | J27: VS
A28: 27 | B28: 2655 | C28: Кемеровская область | D28: 28751671 | E28: МКП "Водоснаб НМР" | F28: 4252003568 | G28: 425201001 | H28: 16-07-2012 00:00:00 | J28: VS
A29: 28 | B29: 2655 | C29: Кемеровская область | D29: 27978231 | E29: МКП "ЖКХ" | F29: 4230005515 | G29: 423001001 | H29: 18-09-2012 00:00:00 | J29: VS
A30: 29 | B30: 2655 | C30: Кемеровская область | D30: 30808700 | E30: МКП "КОМФОРТ" | F30: 4213011357 | G30: 421301001 | H30: 02-03-2016 00:00:00 | J30: VS
A31: 30 | B31: 2655 | C31: Кемеровская область | D31: 31319221 | E31: МКП "КТВС НМР" | F31: 4252015404 | G31: 425201001 | H31: 05-06-2019 00:00:00 | J31: VS
A32: 31 | B32: 2655 | C32: Кемеровская область | D32: 27819046 | E32: МКП "КТС Новокузнецкого района" | F32: 4252003487 | G32: 425201001 | H32: 26-06-2012 00:00:00 | J32: VS
A33: 32 | B33: 2655 | C33: Кемеровская область | D33: 28822005 | E33: МКП "Полигон ТБО" | F33: 4246018397 | G33: 424601001 | H33: 29-05-2013 00:00:00 | J33: VS
A34: 33 | B34: 2655 | C34: Кемеровская область | D34: 31087651 | E34: МКП "Тепло" | F34: 4230032501 | G34: 423001001 | H34: 27-02-2018 00:00:00 | J34: VS
A35: 34 | B35: 2655 | C35: Кемеровская область | D35: 31343443 | E35: МКП ММО "Ресурс" | F35: 4213012417 | G35: 421301001 | H35: 26-07-2019 00:00:00 | J35: VS
A36: 35 | B36: 2655 | C36: Кемеровская область | D36: 28221445 | E36: МП "Водоканал" Тайгинского городского округа | F36: 4246018157 | G36: 424601001 | J36: VS
A37: 36 | B37: 2655 | C37: Кемеровская область | D37: 27542200 | E37: МП "Жильё" | F37: 4246000576 | G37: 424601001 | H37: 14-09-2011 00:00:00 | J37: VS
A38: 37 | B38: 2655 | C38: Кемеровская область | D38: 26486390 | E38: МП "Исток" | F38: 4211023572 | G38: 421101001 | H38: 13-03-2009 00:00:00 | J38: VS
A39: 38 | B39: 2655 | C39: Кемеровская область | D39: 27980182 | E39: МП "ССК" | F39: 4217146362 | G39: 421701001 | H39: 24-07-2012 00:00:00 | J39: VS
A40: 39 | B40: 2655 | C40: Кемеровская область | D40: 26505195 | E40: МП "Тепло" | F40: 4211023237 | G40: 421101001 | H40: 01-06-2009 00:00:00 | I40: 22-09-2022 00:00:00 | J40: VS
A41: 40 | B41: 2655 | C41: Кемеровская область | D41: 26530090 | E41: МУП "Водоканал" | F41: 4214031839 | G41: 421401001 | H41: 26-03-2010 00:00:00 | I41: 07-09-2020 00:00:00 | J41: VS
A42: 41 | B42: 2655 | C42: Кемеровская область | D42: 27977465 | E42: МУП "Водоканал" | F42: 4202043124 | G42: 420201001 | H42: 10-10-2012 00:00:00 | J42: VS
A43: 42 | B43: 2655 | C43: Кемеровская область | D43: 31310826 | E43: МУП "Водоканал" | F43: 4213012270 | G43: 421301001 | H43: 01-02-2019 00:00:00 | J43: VS
A44: 43 | B44: 2655 | C44: Кемеровская область | D44: 31159399 | E44: МУП "Гарант" | F44: 4213012128 | G44: 421301001 | H44: 29-12-2017 00:00:00 | I44: 07-04-2023 00:00:00 | J44: VS
A45: 44 | B45: 2655 | C45: Кемеровская область | D45: 31332720 | E45: МУП "Гарант" КГО | F45: 4202050210 | G45: 420201001 | H45: 04-12-2015 00:00:00 | J45: VS
A46: 45 | B46: 2655 | C46: Кемеровская область | D46: 28980595 | E46: МУП "ЖКХ Мариинского муниципального района" | F46: 4213011068 | G46: 421301001 | H46: 22-05-2015 00:00:00 | J46: VS
A47: 46 | B47: 2655 | C47: Кемеровская область | D47: 27826700 | E47: МУП "Жилищно-коммунальное управление Кемеровского муниципального округа" | F47: 4205242791 | G47: 420501001 | H47: 26-04-2012 00:00:00 | J47: VS
A48: 47 | B48: 2655 | C48: Кемеровская область | D48: 31308226 | E48: МУП "ИЖКХ" Ижморского муниципального округа" | F48: 4246021336 | G48: 424601001 | H48: 01-06-2017 00:00:00 | J48: VS
A49: 48 | B49: 2655 | C49: Кемеровская область | D49: 31284269 | E49: МУП "Комфорт" | F49: 4230026593 | G49: 423001001 | H49: 29-06-2009 00:00:00 | J49: VS
A50: 49 | B50: 2655 | C50: Кемеровская область | D50: 31241680 | E50: МУП "Междуреченский Водоканал" | F50: 4214040174 | G50: 421401001 | H50: 26-10-2018 00:00:00 | J50: VS
A51: 50 | B51: 2655 | C51: Кемеровская область | D51: 28221676 | E51: МУП "Сервис коммунальных систем" | F51: 4213010226 | G51: 421301001 | H51: 13-03-2013 00:00:00 | I51: 20-12-2021 00:00:00 | J51: VS
A52: 51 | B52: 2655 | C52: Кемеровская область | D52: 31579664 | E52: МУП "ТЖКХ" Тисульского муниципального района" | F52: 4213012375 | G52: 421301001 | H52: 10-07-2019 00:00:00 | J52: VS
A53: 52 | B53: 2655 | C53: Кемеровская область | D53: 31338382 | E53: МУП "Тепловик" | F53: 4246022315 | G53: 424601001 | H53: 25-04-2019 00:00:00 | J53: VS
A54: 53 | B54: 2655 | C54: Кемеровская область | D54: 28503043 | E54: МУП "УК ЖКХ" | F54: 4222014844 | G54: 422201001 | H54: 03-12-2013 00:00:00 | J54: VS
A55: 54 | B55: 2655 | C55: Кемеровская область | D55: 30824381 | E55: МУП "Энерго-Сервис" | F55: 4246019665 | G55: 424601001 | H55: 22-07-2016 00:00:00 | J55: VS
A56: 55 | B56: 2655 | C56: Кемеровская область | D56: 31218522 | E56: МУП "ЯТО" Яйского муниципального округа | F56: 4246022072 | G56: 424601001 | H56: 24-09-2018 00:00:00 | J56: VS
A57: 56 | B57: 2655 | C57: Кемеровская область | D57: 26322887 | E57: МУП «ЖКХ» Новокузнецкого района | F57: 4238015970 | G57: 423801001 | H57: 05-07-2004 00:00:00 | J57: VS
A58: 57 | B58: 2655 | C58: Кемеровская область | D58: 31003143 | E58: МУП Гурьевского муниципального района "УК ЖКХ" | F58: 4202047136 | G58: 420201001 | H58: 13-01-2014 00:00:00 | J58: VS
A59: 58 | B59: 2655 | C59: Кемеровская область | D59: 26357006 | E59: МУП ЖКУ "Белогорск" | F59: 4243015398 | G59: 424301001 | H59: 02-09-2003 00:00:00 | I59: 26-05-2023 00:00:00 | J59: VS
A60: 59 | B60: 2655 | C60: Кемеровская область | D60: 28954358 | E60: МУП КГО "УКВС" | F60: 4222015220 | G60: 422201001 | H60: 10-10-2014 00:00:00 | I60: 02-11-2021 00:00:00 | J60: VS
A61: 60 | B61: 2655 | C61: Кемеровская область | D61: 28511994 | E61: МУП ОГО "Водоканал" | F61: 4222014989 | G61: 422201001 | H61: 28-05-2014 00:00:00 | I61: 20-09-2022 00:00:00 | J61: VS
A62: 61 | B62: 2655 | C62: Кемеровская область | D62: 30435868 | E62: МУП ПМР "Теплоком" | F62: 4223095814 | G62: 422301001 | H62: 07-12-2015 00:00:00 | I62: 01-03-2020 00:00:00 | J62: VS
A63: 62 | B63: 2655 | C63: Кемеровская область | D63: 28254166 | E63: МУП ПМР "Тепломир" | F63: 4223060667 | G63: 422301001 | H63: 10-07-2013 00:00:00 | J63: VS
A64: 63 | B64: 2655 | C64: Кемеровская область | D64: 31159337 | E64: МУП бытового обслуживания | F64: 4244000281 | G64: 421301001 | H64: 17-07-1996 00:00:00 | I64: 27-05-2019 00:00:00 | J64: VS
A65: 64 | B65: 2655 | C65: Кемеровская область | D65: 28976969 | E65: Мариинская нефтеперекачивающая станция филиала "Новосибирскок РНУ" АО "Транснефть - Западная Сибирь" | F65: 5502020634 | G65: 421303001 | H65: 15-06-1994 00:00:00 | J65: VS
A66: 65 | B66: 2655 | C66: Кемеровская область | D66: 26472837 | E66: ОАО "Ваганово" | F66: 4240002697 | G66: 424001001 | H66: 03-09-2002 00:00:00 | J66: VS
A67: 66 | B67: 2655 | C67: Кемеровская область | D67: 26356896 | E67: ОАО "Гурьевский металлургический завод" | F67: 4204000253 | G67: 421650001 | H67: 12-05-1996 00:00:00 | J67: VS
A68: 67 | B68: 2655 | C68: Кемеровская область | D68: 26427858 | E68: ОАО "ИжморВодСтрой" | F68: 4246009988 | G68: 424601001 | H68: 28-05-2008 00:00:00 | I68: 01-03-2020 00:00:00 | J68: VS
A69: 68 | B69: 2655 | C69: Кемеровская область | D69: 26322895 | E69: ОАО «СКЭК» | F69: 4205153492 | G69: 420501001 | H69: 01-04-2008 00:00:00 | J69: VS
A70: 69 | B70: 2655 | C70: Кемеровская область | D70: 28119331 | E70: ООО "АВК ПЛЮС" | F70: 4205252430 | G70: 420501001 | H70: 05-03-2013 00:00:00 | J70: VS
A71: 70 | B71: 2655 | C71: Кемеровская область | D71: 26473644 | E71: ООО "АВК" | F71: 4246009378 | G71: 424601001 | H71: 19-02-2008 00:00:00 | I71: 21-12-2020 00:00:00 | J71: VS
A72: 71 | B72: 2655 | C72: Кемеровская область | D72: 26567329 | E72: ООО "Агросервис" | F72: 4238015106 | G72: 421701001 | H72: 22-11-2003 00:00:00 | J72: VS
A73: 72 | B73: 2655 | C73: Кемеровская область | D73: 26567354 | E73: ООО "Благоустройство" | F73: 4246006754 | G73: 424601001 | H73: 07-04-2006 00:00:00 | I73: 27-10-2022 00:00:00 | J73: VS
A74: 73 | B74: 2655 | C74: Кемеровская область | D74: 26428034 | E74: ООО "ВКУ" | F74: 4212427514 | G74: 421201001 | H74: 11-04-2005 00:00:00 | I74: 01-03-2020 00:00:00 | J74: VS
A75: 74 | B75: 2655 | C75: Кемеровская область | D75: 28817194 | E75: ООО "ВКХ" | F75: 4252005780 | G75: 425201001 | H75: 12-12-2013 00:00:00 | I75: 01-01-2020 00:00:00 | J75: VS
A76: 75 | B76: 2655 | C76: Кемеровская область | D76: 30988389 | E76: ООО "ВОДОРЕСУРС" | F76: 4253033332 | G76: 425301001 | H76: 31-03-2016 00:00:00 | J76: VS
A77: 76 | B77: 2655 | C77: Кемеровская область | D77: 27886900 | E77: ООО "Веста плюс" | F77: 4223057390 | G77: 422301001 | H77: 21-06-2012 00:00:00 | I77: 01-03-2020 00:00:00 | J77: VS
A78: 77 | B78: 2655 | C78: Кемеровская область | D78: 31356597 | E78: ООО "ВодСнаб" | F78: 4230030215 | G78: 423001001 | H78: 02-10-2015 00:00:00 | J78: VS
A79: 78 | B79: 2655 | C79: Кемеровская область | D79: 26567176 | E79: ООО "Вода" | F79: 4201008159 | G79: 424601001 | H79: 08-08-2002 00:00:00 | I79: 22-05-2023 00:00:00 | J79: VS
A80: 79 | B80: 2655 | C80: Кемеровская область | D80: 26427834 | E80: ООО "Водоканал" | F80: 4246009561 | G80: 424601001 | H80: 26-02-2008 00:00:00 | I80: 29-06-2023 00:00:00 | J80: VS
A81: 80 | B81: 2655 | C81: Кемеровская область | D81: 26427890 | E81: ООО "Водоканал" | F81: 4212027153 | G81: 421201001 | H81: 30-07-2008 00:00:00 | I81: 31-07-2023 00:00:00 | J81: VS
A82: 81 | B82: 2655 | C82: Кемеровская область | D82: 28869965 | E82: ООО "Водоканал" | F82: 4217166136 | G82: 421701001 | H82: 24-11-2014 00:00:00 | J82: VS
A83: 82 | B83: 2655 | C83: Кемеровская область | D83: 31215010 | E83: ООО "Водоканал" | F83: 4246021953 | G83: 424601001 | H83: 28-05-2018 00:00:00 | J83: VS
A84: 83 | B84: 2655 | C84: Кемеровская область | D84: 31336226 | E84: ООО "Водоканал" | F84: 4252012548 | G84: 425201001 | H84: 04-08-2016 00:00:00 | J84: VS
A85: 84 | B85: 2655 | C85: Кемеровская область | D85: 31022521 | E85: ООО "Водоканал" | F85: 4252014295 | G85: 425201001 | H85: 27-09-2017 00:00:00 | J85: VS
A86: 85 | B86: 2655 | C86: Кемеровская область | D86: 28452863 | E86: ООО "Водоканал" | F86: 4253018285 | G86: 425301001 | H86: 20-11-2013 00:00:00 | J86: VS
A87: 86 | B87: 2655 | C87: Кемеровская область | D87: 26427946 | E87: ООО "Водопроводные сети" | F87: 4213007304 | G87: 421301001 | H87: 26-03-2008 00:00:00 | I87: 01-03-2020 00:00:00 | J87: VS
A88: 87 | B88: 2655 | C88: Кемеровская область | D88: 27391966 | E88: ООО "Водоснабжение" | F88: 4252001828 | G88: 425201001 | H88: 28-07-2011 00:00:00 | I88: 18-01-2023 00:00:00 | J88: VS
A89: 88 | B89: 2655 | C89: Кемеровская область | D89: 27336388 | E89: ООО "ГД санаторий имени "60-летия Кузбасса" | F89: 4218025530 | G89: 421801001 | H89: 15-04-2004 00:00:00 | I89: 18-05-2022 00:00:00 | J89: VS
A90: 89 | B90: 2655 | C90: Кемеровская область | D90: 30373418 | E90: ООО "Горводоканал" | F90: 4202050033 | G90: 420201001 | H90: 21-10-2015 00:00:00 | J90: VS
A91: 90 | B91: 2655 | C91: Кемеровская область | D91: 28136671 | E91: ООО "Горводоканал" | F91: 5406737355 | G91: 540501001 | H91: 20-03-2013 00:00:00 | J91: VS
A92: 91 | B92: 2655 | C92: Кемеровская область | D92: 31573961 | E92: ООО "Гурьевск-Сталь" | F92: 4202050643 | G92: 420201001 | H92: 01-04-2016 00:00:00 | J92: VS
A93: 92 | B93: 2655 | C93: Кемеровская область | D93: 26427930 | E93: ООО "ЖКУ "Надежда" | F93: 4213004920 | G93: 421301001 | H93: 13-07-2004 00:00:00 | I93: 20-12-2020 00:00:00 | J93: VS
A94: 93 | B94: 2655 | C94: Кемеровская область | D94: 26476793 | E94: ООО "ЖКХ Тамбар" | F94: 4243006153 | G94: 424301001 | H94: 27-11-2007 00:00:00 | J94: VS
A95: 94 | B95: 2655 | C95: Кемеровская область | D95: 26356925 | E95: ООО "ЖКХ с. Тараданово" | F95: 4212004950 | G95: 421201001 | H95: 01-12-2005 00:00:00 | I95: 01-03-2020 00:00:00 | J95: VS
A96: 95 | B96: 2655 | C96: Кемеровская область | D96: 29645515 | E96: ООО "ЗЖБК-Сервис+" | F96: 4217164072 | G96: 421701001 | H96: 13-08-2014 00:00:00 | J96: VS
A97: 96 | B97: 2655 | C97: Кемеровская область | D97: 28509720 | E97: ООО "Завод "Горэкс-Светотехника" | F97: 4223027701 | G97: 771501001 | H97: 09-10-2012 00:00:00 | J97: VS
A98: 97 | B98: 2655 | C98: Кемеровская область | D98: 26476936 | E98: ООО "Ивановское ЖКХ" | F98: 4213006678 | G98: 421301001 | H98: 05-02-2007 00:00:00 | I98: 28-01-2021 00:00:00 | J98: VS
A99: 98 | B99: 2655 | C99: Кемеровская область | D99: 30950350 | E99: ООО "Ижморская ТСК" | F99: 4246021343 | G99: 424601001 | H99: 07-06-2017 00:00:00 | J99: VS
A100: 99 | B100: 2655 | C100: Кемеровская область | D100: 30854705 | E100: ООО "КВС" | F100: 4223104956 | G100: 422301001 | H100: 17-08-2016 00:00:00 | J100: VS
A101: 100 | B101: 2655 | C101: Кемеровская область | D101: 31656254 | E101: ООО "КК-ИНВЕСТ" | F101: 1901133713 | G101: 190101001 | H101: 03-03-2017 00:00:00 | J101: VS
A102: 101 | B102: 2655 | C102: Кемеровская область | D102: 28270197 | E102: ООО "КРК-Ижморский" | F102: 4205267517 | G102: 420501001 | H102: 04-06-2013 00:00:00 | I102: 19-06-2020 00:00:00 | J102: VS
A103: 102 | B103: 2655 | C103: Кемеровская область | D103: 26427844 | E103: ООО "КомСервис" | F103: 4217065924 | G103: 421701001 | H103: 01-07-2004 00:00:00 | J103: VS
A104: 103 | B104: 2655 | C104: Кемеровская область | D104: 27658715 | E104: ООО "Коммунальные сети горы Зелёной" | F104: 4228007586 | G104: 422801001 | H104: 05-12-2002 00:00:00 | J104: VS
A105: 104 | B105: 2655 | C105: Кемеровская область | D105: 28221643 | E105: ООО "Компания "Энергопромсервис" | F105: 4205250721 | G105: 420501001 | H105: 14-09-2012 00:00:00 | I105: 11-12-2020 00:00:00 | J105: VS
A106: 105 | B106: 2655 | C106: Кемеровская область | D106: 28977055 | E106: ООО "Комресурс" | F106: 4202049013 | G106: 420201001 | H106: 05-03-2015 00:00:00 | I106: 07-08-2020 00:00:00 | J106: VS
A107: 106 | B107: 2655 | C107: Кемеровская область | D107: 27841462 | E107: ООО "Комфорт - сервис" | F107: 4212032523 | G107: 421201001 | H107: 07-06-2011 00:00:00 | I107: 01-03-2020 00:00:00 | J107: VS
A108: 107 | B108: 2655 | C108: Кемеровская область | D108: 27822745 | E108: ООО "Мариинский спиртовой комбинат" | F108: 4213009781 | G108: 421301001 | H108: 28-05-2012 00:00:00 | I108: 31-08-2020 00:00:00 | J108: VS
A109: 108 | B109: 2655 | C109: Кемеровская область | D109: 31424033 | E109: ООО "НТСК" | F109: 5406993045 | G109: 540601001 | J109: VS
A110: 109 | B110: 2655 | C110: Кемеровская область | D110: 31651536 | E110: ООО "ПК "Юргинский машзавод" | F110: 4230033216 | G110: 423001001 | H110: 18-04-2019 00:00:00 | J110: VS
A111: 110 | B111: 2655 | C111: Кемеровская область | D111: 26653062 | E111: ООО "ППС Колмогоровский" | F111: 4246016953 | G111: 424601001 | H111: 11-05-2010 00:00:00 | I111: 01-03-2020 00:00:00 | J111: VS
A112: 111 | B112: 2655 | C112: Кемеровская область | D112: 26356931 | E112: ООО "Панфиловец" | F112: 4212021835 | G112: 421201001 | H112: 24-04-2002 00:00:00 | J112: VS
A113: 112 | B113: 2655 | C113: Кемеровская область | D113: 26473636 | E113: ООО "Потенциал" | F113: 4212029048 | G113: 421201001 | I113: 01-03-2020 00:00:00 | J113: VS
A114: 113 | B114: 2655 | C114: Кемеровская область | D114: 30848646 | E114: ООО "Програнд" | F114: 7702549732 | G114: 420501001 | H114: 11-01-2005 00:00:00 | J114: VS
A115: 114 | B115: 2655 | C115: Кемеровская область | D115: 26428026 | E115: ООО "Промышленновские коммунальные системы" | F115: 4240009967 | G115: 424001001 | H115: 25-12-2008 00:00:00 | J115: VS
A116: 115 | B116: 2655 | C116: Кемеровская область | D116: 30983894 | E116: ООО "РЭСК" | F116: 4202050940 | G116: 420201001 | H116: 24-06-2016 00:00:00 | J116: VS
A117: 116 | B117: 2655 | C117: Кемеровская область | D117: 28151808 | E117: ООО "Ресурс-Гарант" | F117: 4213010240 | G117: 421301001 | H117: 21-03-2013 00:00:00 | J117: VS
A118: 117 | B118: 2655 | C118: Кемеровская область | D118: 31541617 | E118: ООО "СДС" | F118: 4229006578 | G118: 422901001 | H118: 03-03-2005 00:00:00 | J118: VS
A119: 118 | B119: 2655 | C119: Кемеровская область | D119: 26356987 | E119: ООО "СПК "Чистогорский" | F119: 4238013194 | G119: 423801001 | J119: VS
A120: 119 | B120: 2655 | C120: Кемеровская область | D120: 31040886 | E120: ООО "СТГК" | F120: 4217182593 | G120: 421701001 | H120: 22-03-2017 00:00:00 | J120: VS
A121: 120 | B121: 2655 | C121: Кемеровская область | D121: 28112120 | E121: ООО "Санаторный коммунальный комплекс" | F121: 4223058869 | G121: 422301001 | H121: 29-11-2012 00:00:00 | I121: 01-01-2019 00:00:00 | J121: VS
A122: 121 | B122: 2655 | C122: Кемеровская область | D122: 26897760 | E122: ООО "Сибирь-Водоканал 2" | F122: 4202041053 | G122: 420201001 | H122: 17-03-2011 00:00:00 | I122: 01-03-2020 00:00:00 | J122: VS
A123: 122 | B123: 2655 | C123: Кемеровская область | D123: 28829450 | E123: ООО "СтройТехАгро" | F123: 4205247334 | G123: 420501001 | H123: 12-07-2012 00:00:00 | J123: VS
A124: 123 | B124: 2655 | C124: Кемеровская область | D124: 26356891 | E124: ООО "ТВК" | F124: 4202026697 | G124: 420201001 | H124: 02-09-2005 00:00:00 | J124: VS
A125: 124 | B125: 2655 | C125: Кемеровская область | D125: 28284204 | E125: ООО "ТВК" | F125: 4230006156 | G125: 423001001 | H125: 20-11-2012 00:00:00 | J125: VS
A126: 125 | B126: 2655 | C126: Кемеровская область | D126: 31241637 | E126: ООО "ТВКХ" | F126: 4205375960 | G126: 424601001 | H126: 14-12-2018 00:00:00 | J126: VS
A127: 126 | B127: 2655 | C127: Кемеровская область | D127: 27978219 | E127: ООО "Тепло" | F127: 4246008896 | G127: 424601001 | H127: 18-12-2007 00:00:00 | J127: VS
A128: 127 | B128: 2655 | C128: Кемеровская область | D128: 28819708 | E128: ООО "Тепло" | F128: 4252000648 | G128: 425201001 | H128: 15-11-2010 00:00:00 | J128: VS
A129: 128 | B129: 2655 | C129: Кемеровская область | D129: 26427956 | E129: ООО "Тепло-Водо-Канал" | F129: 4202035660 | G129: 420201001 | H129: 10-10-2008 00:00:00 | I129: 27-03-2020 00:00:00 | J129: VS
A130: 129 | B130: 2655 | C130: Кемеровская область | D130: 26356937 | E130: ООО "Тепло-энергетические предприятия" | F130: 4212427497 | G130: 421201001 | H130: 11-04-2005 00:00:00 | J130: VS
A131: 130 | B131: 2655 | C131: Кемеровская область | D131: 31221182 | E131: ООО "Тепловик" | F131: 4213012054 | G131: 421301001 | H131: 16-03-2018 00:00:00 | J131: VS
A132: 131 | B132: 2655 | C132: Кемеровская область | D132: 28982662 | E132: ООО "Тепловик" | F132: 4246019841 | G132: 424601001 | H132: 23-04-2015 00:00:00 | J132: VS
A133: 132 | B133: 2655 | C133: Кемеровская область | D133: 26427866 | E133: ООО "Теплосервис" | F133: 4202030485 | G133: 420201001 | H133: 25-01-2007 00:00:00 | I133: 01-03-2020 00:00:00 | J133: VS
A134: 133 | B134: 2655 | C134: Кемеровская область | D134: 27880847 | E134: ООО "Теплоснаб" | F134: 4230004328 | G134: 423001001 | H134: 15-06-2012 00:00:00 | I134: 13-06-2023 00:00:00 | J134: VS
A135: 134 | B135: 2655 | C135: Кемеровская область | D135: 30872315 | E135: ООО "Теплоснаб" | F135: 4205325631 | G135: 420501001 | H135: 04-04-2016 00:00:00 | J135: VS
A136: 135 | B136: 2655 | C136: Кемеровская область | D136: 27542212 | E136: ООО "Техстрой" | F136: 4212032682 | G136: 421201001 | H136: 01-07-2011 00:00:00 | I136: 01-03-2020 00:00:00 | J136: VS
A137: 136 | B137: 2655 | C137: Кемеровская область | D137: 26356983 | E137: ООО "УК "Энерготранс-Агро" | F137: 4230021588 | G137: 423001001 | H137: 29-05-2006 00:00:00 | J137: VS
A138: 137 | B138: 2655 | C138: Кемеровская область | D138: 30352093 | E138: ООО "УК ЖКХ" | F138: 4228010469 | G138: 422801001 | H138: 11-12-2006 00:00:00 | I138: 05-02-2021 00:00:00 | J138: VS
A139: 138 | B139: 2655 | C139: Кемеровская область | D139: 26356899 | E139: ООО "УКиТС" | F139: 4204007393 | G139: 420401001 | H139: 24-09-2007 00:00:00 | J139: VS
A140: 139 | B140: 2655 | C140: Кемеровская область | D140: 26356932 | E140: ООО "Шанс" | F140: 4212025734 | G140: 421201001 | H140: 17-01-2008 00:00:00 | J140: VS
A141: 140 | B141: 2655 | C141: Кемеровская область | D141: 26356972 | E141: ООО "Шерегеш-Энерго" | F141: 4228008050 | G141: 422801001 | H141: 16-06-2003 00:00:00 | J141: VS
A142: 141 | B142: 2655 | C142: Кемеровская область | D142: 28270293 | E142: ООО "ЭК" | F142: 4202044463 | G142: 420201001 | H142: 21-09-2012 00:00:00 | J142: VS
A143: 142 | B143: 2655 | C143: Кемеровская область | D143: 30992391 | E143: ООО "ЭнергоТранзит" | F143: 5406603432 | G143: 421701001 | H143: 17-10-2017 00:00:00 | J143: VS
A144: 143 | B144: 2655 | C144: Кемеровская область | D144: 28873362 | E144: ООО "Энергоресурс" | F144: 4205284720 | G144: 420501001 | H144: 26-03-2014 00:00:00 | J144: VS
A145: 144 | B145: 2655 | C145: Кемеровская область | D145: 28976681 | E145: ООО "Энергосервис г. Гурьевска" | F145: 4202049045 | G145: 420201001 | H145: 19-03-2015 00:00:00 | J145: VS
A146: 145 | B146: 2655 | C146: Кемеровская область | D146: 31431661 | E146: ООО "ЮЗК" | F146: 2466232547 | G146: 540401001 | J146: VS
A147: 146 | B147: 2655 | C147: Кемеровская область | D147: 26427828 | E147: ООО "Юрга Водтранс" | F147: 4230020538 | G147: 423001001 | H147: 01-12-2005 00:00:00 | J147: VS
A148: 147 | B148: 2655 | C148: Кемеровская область | D148: 26427908 | E148: ООО "Ясная поляна" | F148: 4223048846 | G148: 422301001 | H148: 11-03-2008 00:00:00 | I148: 20-11-2020 00:00:00 | J148: VS
A149: 148 | B149: 2655 | C149: Кемеровская область | D149: 26428030 | E149: ООО"Водоснабжение" | F149: 4202023801 | G149: 420201001 | H149: 14-11-2003 00:00:00 | J149: VS
A150: 149 | B150: 2655 | C150: Кемеровская область | D150: 31253284 | E150: ПАО "Южный Кузбасс" | F150: 4214000608 | G150: 997550001 | J150: VS
A151: 150 | B151: 2655 | C151: Кемеровская область | E151: РЕГИОНАЛЬНАЯ ЭНЕРГЕТИЧЕСКАЯ КОМИССИЯ КУЗБАССА | F151: 4207044509 | G151: 420501001 | J151: VS
A152: 151 | B152: 2655 | C152: Кемеровская область | D152: 30903763 | E152: ФГБУ "ЦЖКУ" МИНОБОРОНЫ РОССИИ | F152: 7729314745 | G152: 770101001 | J152: VS
A153: 152 | B153: 2655 | C153: Кемеровская область | D153: 26356939 | E153: ФГКУ комбинат "Алтай" Росрезерва | F153: 4213001052 | G153: 421301001 | H153: 19-07-1994 00:00:00 | J153: VS
A154: 153 | B154: 2655 | C154: Кемеровская область | D154: 26427862 | E154: ФГУП "ПО Прогресс" | F154: 4210000692 | G154: 420501001 | H154: 21-02-2003 00:00:00 | J154: VS
A155: 154 | B155: 2655 | C155: Кемеровская область | D155: 30984255 | E155: ФКУ КП-3 ГУФСИН России по Кемеровской области | F155: 4244001260 | G155: 421301001 | H155: 22-05-1995 00:00:00 | J155: VS
A156: 155 | B156: 2655 | C156: Кемеровская область | D156: 26987290 | E156: Филиал "Новосибирский" ОАО "Славянка" | F156: 7702707386 | G156: 420543001 | H156: 30-04-2009 00:00:00 | I156: 10-02-2021 00:00:00 | J156: VS
A157: 156 | B157: 2655 | C157: Кемеровская область | D157: 26520873 | E157: Филиал АО "УК "Кузбассразрезуголь" "Талдинский угольный разрез" | F157: 4205049090 | G157: 423802002 | H157: 05-05-2003 00:00:00 | J157: VS
A158: 157 | B158: 2655 | C158: Кемеровская область | D158: 26987067 | E158: Филиал АО "УК "Кузбассразрезуголь" - "Моховский угольный разрез" | F158: 4205049090 | G158: 421202001 | H158: 05-05-2003 00:00:00 | J158: VS
A159: 158 | B159: 2655 | C159: Кемеровская область | D159: 30914574 | E159: Филиал ФГБУ "ЦЖКУ" МИНОБОРОНЫ РОССИИ (по ЦВО) | F159: 7729314745 | G159: 667043001 | J159: VS
A160: 1 | B160: 2655 | C160: Кемеровская область | D160: 26560525 | E160: АО "ГУ ЖКХ" | F160: 5116000922 | G160: 511601001 | H160: 13-05-2009 00:00:00 | J160: VO
A161: 2 | B161: 2655 | C161: Кемеровская область | D161: 30401246 | E161: АО "ГУ ЖКХ" | F161: 5116000922 | G161: 540645001 | J161: VO
A162: 3 | B162: 2655 | C162: Кемеровская область | D162: 26356953 | E162: АО "ЕВРАЗ ЗСМК" | F162: 4218000951 | G162: 421801001 | H162: 30-11-1992 00:00:00 | J162: VO
A163: 4 | B163: 2655 | C163: Кемеровская область | D163: 26356915 | E163: АО "Знамя" | F163: 4211002950 | G163: 421101001 | H163: 21-06-1994 00:00:00 | J163: VO
A164: 5 | B164: 2655 | C164: Кемеровская область | D164: 27804990 | E164: АО "Кемеровская генерация" | F164: 4205243192 | G164: 420501001 | H164: 28-04-2012 00:00:00 | J164: VO
A165: 6 | B165: 2655 | C165: Кемеровская область | D165: 27857950 | E165: АО "Кузбасская птицефабрика" | F165: 4238019693 | G165: 423801001 | H165: 02-10-2006 00:00:00 | J165: VO
A166: 7 | B166: 2655 | C166: Кемеровская область | D166: 26356963 | E166: АО "ПО Водоканал" | F166: 4223030694 | G166: 422301001 | H166: 06-11-2002 00:00:00 | J166: VO
A167: 8 | B167: 2655 | C167: Кемеровская область | D167: 26322889 | E167: АО "РУСАЛ Новокузнецкий Алюминиевый Завод" | F167: 4221000535 | G167: 997550001 | H167: 25-09-2002 00:00:00 | J167: VO
A168: 9 | B168: 2655 | C168: Кемеровская область | D168: 27820148 | E168: АО "СУЭК-Кузбасс" | F168: 4212024138 | G168: 424950001 | H168: 07-05-2007 00:00:00 | J168: VO
A169: 10 | B169: 2655 | C169: Кемеровская область | D169: 26427149 | E169: АО "Транснефть-Западная Сибирь" | F169: 5502020634 | G169: 546050001 | J169: VO
A170: 11 | B170: 2655 | C170: Кемеровская область | D170: 26356936 | E170: АО "Энергетическая компания" | F170: 4212127479 | G170: 421201001 | H170: 20-09-2004 00:00:00 | J170: VO
A171: 12 | B171: 2655 | C171: Кемеровская область | D171: 28976938 | E171: Анжеро-Судженская ЛПДС филиала "Новосибирское РНУ" АО "Транснефть - Западная Сибирь" | F171: 5502020634 | G171: 424603001 | H171: 15-06-1994 00:00:00 | J171: VO
A172: 13 | B172: 2655 | C172: Кемеровская область | D172: 31359053 | E172: ИП Чайковский В.Л. | F172: 420300472840 | G172: отсутствует | H172: 17-10-2014 00:00:00 | J172: VO
A173: 14 | B173: 2655 | C173: Кемеровская область | D173: 28823439 | E173: Индивидуальный предприниматель Зубарева Евгения Анатольевна | F173: 420508603852 | G173: отсутствует | H173: 16-03-2009 00:00:00 | J173: VO
A174: 15 | B174: 2655 | C174: Кемеровская область | D174: 26322867 | E174: КАО "Азот" | F174: 4205000908 | G174: 997550001 | H174: 11-07-2001 00:00:00 | J174: VO
A175: 16 | B175: 2655 | C175: Кемеровская область | D175: 26824396 | E175: Кузбасский территориальный участок ЗСД по тепловодоснабжению - СП ЦД по тепловодоснабжению - филиал ОАО "РЖД" | F175: 7708503727 | G175: 540775040 | J175: VO
A176: 17 | B176: 2655 | C176: Кемеровская область | D176: 30365193 | E176: МБУ "Кемдор" | F176: 4205159600 | G176: 420501001 | H176: 27-06-2008 00:00:00 | J176: VO
A177: 18 | B177: 2655 | C177: Кемеровская область | D177: 31232672 | E177: МКП "ВКХ" | F177: 4217191774 | G177: 421701001 | H177: 15-11-2018 00:00:00 | J177: VO
A178: 19 | B178: 2655 | C178: Кемеровская область | D178: 28751671 | E178: МКП "Водоснаб НМР" | F178: 4252003568 | G178: 425201001 | H178: 16-07-2012 00:00:00 | J178: VO
A179: 20 | B179: 2655 | C179: Кемеровская область | D179: 27978231 | E179: МКП "ЖКХ" | F179: 4230005515 | G179: 423001001 | H179: 18-09-2012 00:00:00 | J179: VO
A180: 21 | B180: 2655 | C180: Кемеровская область | D180: 30808700 | E180: МКП "КОМФОРТ" | F180: 4213011357 | G180: 421301001 | H180: 02-03-2016 00:00:00 | J180: VO
A181: 22 | B181: 2655 | C181: Кемеровская область | D181: 31319221 | E181: МКП "КТВС НМР" | F181: 4252015404 | G181: 425201001 | H181: 05-06-2019 00:00:00 | J181: VO
A182: 23 | B182: 2655 | C182: Кемеровская область | D182: 27819046 | E182: МКП "КТС Новокузнецкого района" | F182: 4252003487 | G182: 425201001 | H182: 26-06-2012 00:00:00 | J182: VO
A183: 24 | B183: 2655 | C183: Кемеровская область | D183: 27953146 | E183: МКП "Коммунальные системы" | F183: 4246017964 | G183: 424601001 | H183: 01-11-2012 00:00:00 | I183: 23-08-2023 00:00:00 | J183: VO
A184: 25 | B184: 2655 | C184: Кемеровская область | D184: 30353027 | E184: МКП "ТВК" | F184: 4246019810 | G184: 424601001 | H184: 21-05-2015 00:00:00 | J184: VO
A185: 26 | B185: 2655 | C185: Кемеровская область | D185: 31087651 | E185: МКП "Тепло" | F185: 4230032501 | G185: 423001001 | H185: 27-02-2018 00:00:00 | J185: VO
A186: 27 | B186: 2655 | C186: Кемеровская область | D186: 31343443 | E186: МКП ММО "Ресурс" | F186: 4213012417 | G186: 421301001 | H186: 26-07-2019 00:00:00 | J186: VO
A187: 28 | B187: 2655 | C187: Кемеровская область | D187: 28221445 | E187: МП "Водоканал" Тайгинского городского округа | F187: 4246018157 | G187: 424601001 | J187: VO
A188: 29 | B188: 2655 | C188: Кемеровская область | D188: 27542200 | E188: МП "Жильё" | F188: 4246000576 | G188: 424601001 | H188: 14-09-2011 00:00:00 | J188: VO
A189: 30 | B189: 2655 | C189: Кемеровская область | D189: 31329806 | E189: МП "Кристалл" | F189: 4223124159 | G189: 422301001 | H189: 27-05-2019 00:00:00 | J189: VO
A190: 31 | B190: 2655 | C190: Кемеровская область | D190: 27980182 | E190: МП "ССК" | F190: 4217146362 | G190: 421701001 | H190: 24-07-2012 00:00:00 | J190: VO
A191: 32 | B191: 2655 | C191: Кемеровская область | D191: 26530090 | E191: МУП "Водоканал" | F191: 4214031839 | G191: 421401001 | H191: 26-03-2010 00:00:00 | I191: 07-09-2020 00:00:00 | J191: VO
A192: 33 | B192: 2655 | C192: Кемеровская область | D192: 31310826 | E192: МУП "Водоканал" | F192: 4213012270 | G192: 421301001 | H192: 01-02-2019 00:00:00 | J192: VO
A193: 34 | B193: 2655 | C193: Кемеровская область | D193: 31159399 | E193: МУП "Гарант" | F193: 4213012128 | G193: 421301001 | H193: 29-12-2017 00:00:00 | I193: 07-04-2023 00:00:00 | J193: VO
A194: 35 | B194: 2655 | C194: Кемеровская область | D194: 31332720 | E194: МУП "Гарант" КГО | F194: 4202050210 | G194: 420201001 | H194: 04-12-2015 00:00:00 | J194: VO
A195: 36 | B195: 2655 | C195: Кемеровская область | D195: 28980595 | E195: МУП "ЖКХ Мариинского муниципального района" | F195: 4213011068 | G195: 421301001 | H195: 22-05-2015 00:00:00 | J195: VO
A196: 37 | B196: 2655 | C196: Кемеровская область | D196: 27826700 | E196: МУП "Жилищно-коммунальное управление Кемеровского муниципального округа" | F196: 4205242791 | G196: 420501001 | H196: 26-04-2012 00:00:00 | J196: VO
A197: 38 | B197: 2655 | C197: Кемеровская область | D197: 31308226 | E197: МУП "ИЖКХ" Ижморского муниципального округа" | F197: 4246021336 | G197: 424601001 | H197: 01-06-2017 00:00:00 | J197: VO
A198: 39 | B198: 2655 | C198: Кемеровская область | D198: 31284269 | E198: МУП "Комфорт" | F198: 4230026593 | G198: 423001001 | H198: 29-06-2009 00:00:00 | J198: VO
A199: 40 | B199: 2655 | C199: Кемеровская область | D199: 31241680 | E199: МУП "Междуреченский Водоканал" | F199: 4214040174 | G199: 421401001 | H199: 26-10-2018 00:00:00 | J199: VO
A200: 41 | B200: 2655 | C200: Кемеровская область | D200: 28221676 | E200: МУП "Сервис коммунальных систем" | F200: 4213010226 | G200: 421301001 | H200: 13-03-2013 00:00:00 | I200: 20-12-2021 00:00:00 | J200: VO
... 102 more rows

Sheet REESTR_TARIFF (hidden)
A1: TEMPLATE_LGL_ID | B1: TEMPLATE_PRD | C1: TEMPLATE_STATUS | D1: TEMPLATE_DATE | E1: TARIFF_ID | F1: TARIFF_VID | G1: TARIFF_TIP | H1: TARIFF_VDET | I1: TARIFF_VTOV | J1: TARIFF_DOP | K1: TARIFF_MO_LIST
E2: ВО.42.26322895.0001 | F2: <нет шаблона>
E3: ВО.42.26322895.0002 | F3: <нет шаблона>
E4: ВО.42.26322895.0003 | F4: <нет шаблона>
E5: ВО.42.26322895.0004 | F5: <нет шаблона>
E6: ВО.42.26322895.0005 | F6: <нет шаблона>
E7: ВО.42.26322895.0006 | F7: <нет шаблона>
E8: ВО.42.26322895.0007 | F8: <нет шаблона>
E9: ВО.42.26322895.0008 | F9: <нет шаблона>
E10: ВО.42.26322895.0009 | F10: <нет шаблона>
E11: ВО.42.26322895.0010 | F11: <нет шаблона>
E12: ВО.42.26322895.0011 | F12: <нет шаблона>
E13: ВО.42.26322895.0012 | F13: <нет шаблона>
E14: ВО.42.26322895.0013 | F14: <нет шаблона>
E15: ВО.42.26322895.0014 | F15: <нет шаблона>
E16: ВО.42.26322895.0015 | F16: <нет шаблона>
E17: ВО.42.26322895.0016 | F17: <нет шаблона>
E18: ВО.42.26322895.0017 | F18: <нет шаблона>
E19: ВО.42.26322895.0018 | F19: <нет шаблона>
E20: ВО.42.26322895.0019 | F20: <нет шаблона>
E21: ВО.42.26322895.0020 | F21: <нет шаблона>
E22: ВО.42.26322895.0021 | F22: <нет шаблона>
E23: ХВС.42.26322895.0001 | F23: <нет шаблона>
E24: ХВС.42.26322895.0002 | F24: <нет шаблона>
E25: ХВС.42.26322895.0003 | F25: <нет шаблона>
E26: ХВС.42.26322895.0004 | F26: <нет шаблона>
E27: ХВС.42.26322895.0005 | F27: <нет шаблона>
E28: ХВС.42.26322895.0006 | F28: <нет шаблона>
E29: ХВС.42.26322895.0007 | F29: <нет шаблона>
E30: ХВС.42.26322895.0008 | F30: <нет шаблона>
E31: ХВС.42.26322895.0009 | F31: <нет шаблона>
E32: ХВС.42.26322895.0010 | F32: <нет шаблона>
E33: ХВС.42.26322895.0011 | F33: <нет шаблона>
E34: ХВС.42.26322895.0012 | F34: <нет шаблона>
E35: ХВС.42.26322895.0013 | F35: <нет шаблона>
E36: ХВС.42.26322895.0014 | F36: <нет шаблона>
E37: ХВС.42.26322895.0015 | F37: <нет шаблона>
E38: ХВС.42.26322895.0016 | F38: <нет шаблона>
E39: ХВС.42.26322895.0017 | F39: <нет шаблона>
E40: ХВС.42.26322895.0018 | F40: <нет шаблона>
E41: ХВС.42.26322895.0019 | F41: <нет шаблона>
E42: ХВС.42.26322895.0020 | F42: <нет шаблона>

Sheet modfrmRegion (hidden)

Sheet modfrmSelectTariff (hidden)

Sheet modCheckCyan (hidden)
A1: =IF('Общие сведения'!$H$8="",1,0) -> 0
A2: =IF('Общие сведения'!$H$26="",1,0) -> 0
A3: =IF('Общие сведения'!$H$27="",1,0) -> 0
A4: =IF('Общие сведения'!$H$28="",1,0) -> 0
A5: =IF('Общие сведения'!$H$29="",1,0) -> 0
A6: =IF('Общие сведения'!$H$30="",1,0) -> 0
A7: =IF('Общие сведения'!$H$31="",1,0) -> 0
A8: =IF('Общие сведения'!$H$32="",1,0) -> 0
A9: =IF('Общие сведения'!$H$34="",1,0) -> 0
A10: =IF('Общие сведения'!$H$35="",1,0) -> 0
A11: =IF('Общие сведения'!$H$36="",1,0) -> 0
A12: =IF('Общие сведения'!$H$37="",1,0) -> 0
A13: =IF('Общие сведения'!$H$38="",1,0) -> 0
A14: =IF('Общие сведения'!$H$39="",1,0) -> 0
A15: =IF('Общие сведения'!$H$47="",1,0) -> 0
A16: =IF('Общие сведения'!$H$48="",1,0) -> 0
A17: =IF('Общие сведения'!$H$55="",1,0) -> 0
A18: =IF('Общие сведения'!$H$85="",1,0) -> 0
A19: =IF('Общие сведения'!$H$112="",1,0) -> 0
A20: =IF('Общие сведения'!$H$57="",1,0) -> 0
A21: =IF('Общие сведения'!$H$59="",1,0) -> 0
A22: =IF('Общие сведения'!$H$88="",1,0) -> 0
A23: =IF('Общие сведения'!$H$86="",1,0) -> 0
A24: =IF('Общие сведения'!$H$92="",1,0) -> 0
A25: =IF('Общие сведения'!$H$95="",1,0) -> 0
A26: =IF('Список территорий'!$M$16="",1,0) -> 0
A27: =IF('Список территорий'!$N$16="",1,0) -> 0
A28: =IF('Список объектов'!$M$19="",1,0) -> 0
A29: =IF('Список объектов'!$N$19="",1,0) -> 0
A30: =IF('Условные метры'!$M$20="",1,0) -> 0

Sheet modfrmActivity (hidden)

Sheet modfrmCheckUpdates (hidden)

Sheet modProv (hidden)

Sheet modUpdTemplMain (hidden)

Sheet modThisWorkbook (hidden)

Sheet modInstruction (hidden)

Sheet AllSheetsInThisWorkbook (hidden)
A1: Расчетные листы | B1: Скрытые листы
A2: Инструкция | B2: et_union
A3: Лог обновления | B3: TEHSHEET
A4: Пояснения | B4: modProvGeneralProc
A5: Общие сведения | B5: modPreload
A6: Список территорий | B6: REESTR_OBJECT
A7: Список объектов | B7: DICTIONARIES
A8: Баланс | B8: modfrmReestrSource
A9: Условные метры | B9: modfrmDPR
A10: Амортизация (аналог) | B10: modfrmSelectTemplate
A11: ГО | B11: REESTR_MO
A12: Расчёт тарифа | B12: REESTR_ORG
A13: Комментарии | B13: REESTR_TARIFF
A14: Проверка | B14: modfrmRegion
B15: modfrmSelectTariff
B16: modHTTP
B17: modCheckCyan
B18: modfrmActivity
B19: modfrmCheckUpdates
B20: modProv
B21: modUpdTemplMain
B22: modList00
B23: modThisWorkbook
B24: modInstruction
B25: AllSheetsInThisWorkbook
B26: modHyp
B27: modfrmReestr
B28: modReestr
B29: modList01
B30: modList02
B31: modList04
B32: modList06

Sheet modHyp (hidden)

Sheet modfrmReestr (hidden)

Sheet modList01 (hidden)

Sheet modList04 (hidden)

Sheet modList06 (hidden)
